Service Area,Service Division,Expense Type,Expense Code,Detailed Expense Type,Payment Date,Transaction Number,Amount Exc VAT,Supplier Name
Children and Young Peoples Services,Head of Education and Skills,Supplies and Services,336005,Advertising E336,03/04/2023,4117969-93521,666.60,ALLWAG PROMOTIONS LTD.
Children and Young Peoples Services,Head of Education and Skills,Supplies and Services,336005,Advertising E336,03/04/2023,4117969-93522,"1,041.00",ALLWAG PROMOTIONS LTD.
Children and Young Peoples Services,Head of Early Help Inclusion & Vulnerable Children.,Employees,080025,Agency Staff,03/04/2023,4118383-0000499346,"1,648.80",TEACHERACTIVE LTD.
Resources BK0010,Pensions CK0700,Supplies and Services,342051,Computers and Communications,03/04/2023,4118029-C/PE267130,"118,044.00",CIVICA UK LTD.
Resources BK0010,Transactional & Customer Services,Supplies and Services,342055,Computers and Communications,03/04/2023,4118029-C/RB262587,"2,490.00",CIVICA UK LTD.
Resources BK0010,Digital Services,Supplies and Services,342051,Computers and Communications,03/04/2023,4118057-22856,"2,796.00",DOTTED EYES LTD T/A MISO PORTAL.
Resources BK0010,Pensions CK0700,Supplies and Services,342051,Computers and Communications,03/04/2023,4118102-HEX67000758860,"3,989.76",EXPERIAN LTD.
Resources BK0010,Digital Services,Supplies and Services,342051,Computers and Communications,03/04/2023,4118102-HEX67000759794,"5,328.49",EXPERIAN LTD.
Resources BK0010,Digital Services,Supplies and Services,342033,Computers and Communications,03/04/2023,4118125-792614,"7,786.80",GETECH LTD.
Children and Young Peoples Services,Childrens Services Operational Support,Supplies and Services,342053,Computers and Communications,03/04/2023,4118221-033740,"84,365.58",LIQUIDLOGIC LTD.
Resources BK0010,Legal & Democratic Services,Supplies and Services,352001,Conference Expenses,03/04/2023,4118045-40131,936.00,COUNTY COUNCILS NETWORK.
Neighbourhoods and Climate Change,Highways,Construction work A908,908105,Construction work,03/04/2023,4118178-27511,979.51,JACK COUPE & SONS LTD T/A COUPE LINE.
Neighbourhoods and Climate Change,Highways,Construction work A908,908105,Construction work,03/04/2023,4118178-27585,"2,107.25",JACK COUPE & SONS LTD T/A COUPE LINE.
Regeneration Economy and Growth,Transport and Contracted Services,Construction work A908,908105,Construction work,03/04/2023,4118178-27587,"1,139.06",JACK COUPE & SONS LTD T/A COUPE LINE.
Children and Young Peoples Services,Head of Education and Skills,Construction work A908,908105,Construction work,03/04/2023,4118223-175739,960.00,LUCION ENVIRONMENTAL LLP LTD.
Neighbourhoods and Climate Change,Highways,Fees,901002,Professional fees 901002,03/04/2023,4118093-PF00000792,"8,571.01",ENVIRONMENT AGENCY.
Neighbourhoods and Climate Change,Highways,Fees,901002,Professional fees 901002,03/04/2023,4118441-297,"1,017.25",WEAR RIVERS TRUST.
Children and Young Peoples Services,Head of Education and Skills,Transport,230034,Contract Hire,03/04/2023,4117997-INV01834,"2,903.40",BLUELINE SOUTH INCORPORATING NAVIGATION TAXIS T/A BLUELINE TAXIS.
Children and Young Peoples Services,Head of Education and Skills,Transport,230008,Contract Hire,03/04/2023,4117997-INV01836,"2,293.37",BLUELINE SOUTH INCORPORATING NAVIGATION TAXIS T/A BLUELINE TAXIS.
Children and Young Peoples Services,Head of Education and Skills,Transport,230008,Contract Hire,03/04/2023,4118117-103305,"1,523.61",G & P JOHNSON LTD T/A NIGHTINGALE COACHES.
Children and Young Peoples Services,Head of Education and Skills,Transport,230008,Contract Hire,03/04/2023,4118117-103307,"3,611.51",G & P JOHNSON LTD T/A NIGHTINGALE COACHES.
Children and Young Peoples Services,Head of Education and Skills,Transport,230008,Contract Hire,03/04/2023,4118117-103309,"1,853.64",G & P JOHNSON LTD T/A NIGHTINGALE COACHES.
Children and Young Peoples Services,Head of Education and Skills,Transport,230008,Contract Hire,03/04/2023,4118117-103343,"1,186.81",G & P JOHNSON LTD T/A NIGHTINGALE COACHES.
Children and Young Peoples Services,Head of Education and Skills,Transport,230006,Contract Hire,03/04/2023,4118201-3165,"2,317.90",KINGSWAY CABS LTD.
Children and Young Peoples Services,Head of Education and Skills,Transport,230008,Contract Hire,03/04/2023,4118201-3200,"2,452.80",KINGSWAY CABS LTD.
Children and Young Peoples Services,Head of Education and Skills,Transport,230005,Contract Hire,03/04/2023,4118483-18712,"2,806.00",WEARDALE MOTOR SERVICES LTD.
Children and Young Peoples Services,Head of Education and Skills,Transport,230008,Contract Hire,03/04/2023,4118186-185-MAR23,"5,085.60",CONSETT CONTRACTS LTD.
Regeneration Economy and Growth,Business Durham CL0850,Third Party Payments,460305,Contract Payments,03/04/2023,4118481-RES-03-2023-677,"5,851.30",UMI COMMERCIAL LTD.
Regeneration Economy and Growth,Transport and Contracted Services,Cap Exp on Grants & Other Financial Assistance (REFCUS),918004,Contributions to other bodies 918004,03/04/2023,4118154-S0018794,"621,000.00",HOMES ENGLAND.
Regeneration Economy and Growth,Corporate Property and Land,Supplies and Services,304221,Equipment and Materials,03/04/2023,4118237-2688031,810.00,MCD GROUP LTD T/A WILKIES.
Neighbourhoods and Climate Change,Environmental Services,Supplies and Services,304999,Equipment and Materials,03/04/2023,4118244-390571,"1,210.13",MIDDLETON FORGE LTD.
Neighbourhoods and Climate Change,Environmental Services,Supplies and Services,304259,Equipment and Materials,03/04/2023,4117960-013578,"5,383.20",A HILL & SONS LTD.
Neighbourhoods and Climate Change,Environmental Services,Supplies and Services,304259,Equipment and Materials,03/04/2023,4117960-013579,"4,278.72",A HILL & SONS LTD.
Neighbourhoods and Climate Change,Environmental Services,Supplies and Services,304259,Equipment and Materials,03/04/2023,4117960-013580,"2,636.70",A HILL & SONS LTD.
Regeneration Economy and Growth,Corporate Property and Land,Supplies and Services,304359,Equipment and Materials,03/04/2023,4117993-BMPR/1122/SKIPS,829.20,BISHOP MIDDLEHAM PLANT & RECYCLING LTD.
Neighbourhoods and Climate Change,Environmental Services,Supplies and Services,304259,Equipment and Materials,03/04/2023,4117999-1032506,727.01,BOSTON SEEDS LTD.
Regeneration Economy and Growth,Corporate Property and Land,Supplies and Services,304221,Equipment and Materials,03/04/2023,4118028-2852ABT517,906.02,CITY PLUMBING SUPPLIES HOLDINGS LTD.
Resources BK0010,Digital Services,Supplies and Services,304303,Equipment and Materials,03/04/2023,4118048-3745005,760.27,CPC (ELECTRICAL WHOLESALERS).
Regeneration Economy and Growth,Corporate Property and Land,Supplies and Services,304221,Equipment and Materials,03/04/2023,4118080-059-315822,"1,590.01",EDMUNDSON ELECTRICAL LTD.
Neighbourhoods and Climate Change,Environmental Services,Supplies and Services,304259,Equipment and Materials,03/04/2023,4118124-I304887,"2,380.94",GEMCO SERVICE LTD.
Resources BK0010,Digital Services,Supplies and Services,304303,Equipment and Materials,03/04/2023,4118136-INV0192390,"12,155.70",GVAV LTD.
Regeneration Economy and Growth,Culture Sport and Tourism,Supplies and Services,304259,Equipment and Materials,03/04/2023,4118137-INV-5491,833.87,GYM TECH NORTH EAST.
Neighbourhoods and Climate Change,Environmental Services,Supplies and Services,304221,Equipment and Materials,03/04/2023,4118141-SI-8111,735.60,HARELAW SAWMILL LTD.
Neighbourhoods and Climate Change,Environmental Services,Supplies and Services,304221,Equipment and Materials,03/04/2023,4118141-SI-8112,735.60,HARELAW SAWMILL LTD.
Regeneration Economy and Growth,Corporate Property and Land,Supplies and Services,304221,Equipment and Materials,03/04/2023,4118158-A38/0164014,"3,150.30",HOWDENS JOINERY LTD.
Regeneration Economy and Growth,Corporate Property and Land,Supplies and Services,304259,Equipment and Materials,03/04/2023,4118164-SI-00181368,782.34,ID CARD CENTRE LTD.
Neighbourhoods and Climate Change,Community Protection,Supplies and Services,304403,Equipment and Materials,03/04/2023,4118172--INS2588,"1,080.00",INSPECTORATE LTD T/A ROCH NDT SERVICES.
Regeneration Economy and Growth,Corporate Property and Land,Supplies and Services,304221,Equipment and Materials,03/04/2023,4118191-0113/00043252,759.72,JT DOVE LTD.
Regeneration Economy and Growth,Corporate Property and Land,Supplies and Services,304221,Equipment and Materials,03/04/2023,4118191-0213/00831157,"2,771.57",JT DOVE LTD.
Regeneration Economy and Growth,Corporate Property and Land,Supplies and Services,304221,Equipment and Materials,03/04/2023,4118191-0213/00838860,"1,837.07",JT DOVE LTD.
Regeneration Economy and Growth,Corporate Property and Land,Supplies and Services,304221,Equipment and Materials,03/04/2023,4118191-0213/00839623,"4,865.50",JT DOVE LTD.
Neighbourhoods and Climate Change,Environmental Services,Supplies and Services,304221,Equipment and Materials,03/04/2023,4118191-0303/00842941,"5,401.44",JT DOVE LTD.
Regeneration Economy and Growth,Corporate Property and Land,Supplies and Services,304221,Equipment and Materials,03/04/2023,4118215-102889,"1,507.20",LEISURETEQ LTD.
Regeneration Economy and Growth,Corporate Property and Land,Supplies and Services,304221,Equipment and Materials,03/04/2023,4118216-00032488,"9,955.80",LESTER CONTROL SYSTEMS LTD.
Neighbourhoods and Climate Change,Highways,Supplies and Services,304221,Equipment and Materials,03/04/2023,4118232-309552,"3,641.51",MARWOOD ELECTRICAL COMPANY LTD.
Regeneration Economy and Growth,Corporate Property and Land,Supplies and Services,304221,Equipment and Materials,03/04/2023,4118247-53323237,"10,019.38",MITSUBISHI ELECTRIC EUROPE.
Neighbourhoods and Climate Change,Highways,Supplies and Services,304221,Equipment and Materials,03/04/2023,4118248-0045/45046782,"4,945.20",MKM BUILDING SUPPLIES LTD.
Neighbourhoods and Climate Change,Highways,Supplies and Services,304221,Equipment and Materials,03/04/2023,4118248-0045/45046783,"1,334.40",MKM BUILDING SUPPLIES LTD.
Neighbourhoods and Climate Change,Highways,Supplies and Services,304221,Equipment and Materials,03/04/2023,4118248-0045/45046789,"4,945.20",MKM BUILDING SUPPLIES LTD.
Resources BK0010,Digital Services,Supplies and Services,304040,Equipment and Materials,03/04/2023,4118274-0000004978,919.13,NOMINET UK.
Regeneration Economy and Growth,Business Durham CL0850,Supplies and Services,304293,Equipment and Materials,03/04/2023,4118300-101464,"1,693.80",PETERLEE FIRE CO LTD.
Regeneration Economy and Growth,Corporate Property and Land,Supplies and Services,304221,Equipment and Materials,03/04/2023,4118358-714560226461,730.68,SIG TRADING LTD.
Regeneration Economy and Growth,Corporate Property and Land,Supplies and Services,304221,Equipment and Materials,03/04/2023,4118411-10993288,774.69,TRADECHOICE DISTRIBUTION LTD.
Neighbourhoods and Climate Change,Highways,Supplies and Services,304221,Equipment and Materials,03/04/2023,4118419-243954,"4,697.93",TYNEDALE ROADSTONE LTD.
Neighbourhoods and Climate Change,Highways,Supplies and Services,304221,Equipment and Materials,03/04/2023,4118419-243955,"3,461.16",TYNEDALE ROADSTONE LTD.
Resources BK0010,Digital Services,Supplies and Services,304040,Equipment and Materials,03/04/2023,4118434-SIN-01639,"2,470.11",VIZST TECHNOLOGY LTD.
Neighbourhoods and Climate Change,Highways,Supplies and Services,304221,Equipment and Materials,03/04/2023,4118437-28348,"4,348.80",WARD TIMBER LTD.
Neighbourhoods and Climate Change,Highways,Supplies and Services,304221,Equipment and Materials,03/04/2023,4118464-145516931,"1,843.20",ZG LIGHTING (UK) LTD.
Neighbourhoods and Climate Change,Environmental Services,Supplies and Services,304259,Equipment and Materials,03/04/2023,4118032-27760,711.79,CLENTEC.
Neighbourhoods and Climate Change,Environmental Services,Supplies and Services,304259,Equipment and Materials,03/04/2023,4118032-27774,"8,097.60",CLENTEC.
Non-Service Specific,Insurances,Expenditure 8INSEX,810001,Insurance Expenditure,03/04/2023,4118231-7647985,971.60,MARSH LTD UK.
Neighbourhoods and Climate Change,Environmental Services,Supplies and Services,384700,Miscellaneous Expenses,03/04/2023,4118134-RES-03-2023-660,"9,412.50",REDACTED - PAYMENT TO INDIVIDUAL
Neighbourhoods and Climate Change,Environmental Services,Supplies and Services,384899,Miscellaneous Expenses,03/04/2023,4118227-NEI-EXP-03-2023-048,500.00,REDACTED - PAYMENT TO INDIVIDUAL
Neighbourhoods and Climate Change,Environmental Services,Supplies and Services,384700,Miscellaneous Expenses,03/04/2023,4118238-RES-03-2023-681,"2,313.10",REDACTED - PAYMENT TO INDIVIDUAL
Neighbourhoods and Climate Change,Environmental Services,Supplies and Services,384899,Miscellaneous Expenses,03/04/2023,4118150-NEI-EXP-03-2023-053,500.00,HOLMLANDS PARK RESIDENTS ASSOCIATION.
Neighbourhoods and Climate Change,Environmental Services,Supplies and Services,384899,Miscellaneous Expenses,03/04/2023,4118160-NEI-EXP-03-2023-045,500.00,"HUNWICK COMMUNITY, SOCIAL & ENVIRONMENT GROUP (HCSEG)."
Adult and Health Services,Head of Adults,Supplies and Services,384999,Miscellaneous Expenses,03/04/2023,4118176-RES-03-2023-670,569.50,J MULLIGAN ASSOCIATES LTD.
Neighbourhoods and Climate Change,Environmental Services,Supplies and Services,384700,Miscellaneous Expenses,03/04/2023,4118265-RES-03-2023-661,"10,450.60",NATURAL LEADERS LTD.
Neighbourhoods and Climate Change,Environmental Services,Supplies and Services,384899,Miscellaneous Expenses,03/04/2023,4118054-NEI-EXP-03-2023-047,500.00,DALTON LE DALE PARISH COUNCIL.
Neighbourhoods and Climate Change,Environmental Services,Supplies and Services,384899,Miscellaneous Expenses,03/04/2023,4118260-NEI-EXP-03-2023-055,500.00,MURTON COMMUNITY & YOUNG PEOPLES CLUB.
Regeneration Economy and Growth,Culture Sport and Tourism,Supplies and Services,384167,Miscellaneous Expenses,03/04/2023,4117959-INV-4751,"1,380.00",4GLOBAL CONSULTING LTD.
Neighbourhoods and Climate Change,Environmental Services,Supplies and Services,384899,Miscellaneous Expenses,03/04/2023,4118005-NEI-EXP-03-2023-051,500.00,BRANCEPETH PARISH COUNCIL.
Regeneration Economy and Growth,Planning & Housing,Supplies and Services,384199,Miscellaneous Expenses,03/04/2023,4118010-18435,835.20,BROWN & ILLINGWORTH LTD.
Regeneration Economy and Growth,Culture Sport and Tourism,Supplies and Services,384199,Miscellaneous Expenses,03/04/2023,4118021-INV-0813,768.86,CHANNELL EVENTS LTD.
Dedicated Schools Grant BG0015,DSG High Needs Block,Supplies and Services,384302,Miscellaneous Expenses,03/04/2023,4118078-TASI86,"3,750.00",EDEN LEARNING TRUST T/A TANFIELD SCHOOL.
Neighbourhoods and Climate Change,Environmental Services,Supplies and Services,384199,Miscellaneous Expenses,03/04/2023,4118230-1374,"19,230.61",MARSDEN AES LTD.
Children and Young Peoples Services,Head of Childrens Social Care,Supplies and Services,384540,Miscellaneous Expenses,03/04/2023,4118239-PSI-0020849,720.00,MEDIAWORKS UK LTD.
Children and Young Peoples Services,Head of Childrens Social Care,Supplies and Services,384540,Miscellaneous Expenses,03/04/2023,4118239-PSI-0020850,960.00,MEDIAWORKS UK LTD.
Children and Young Peoples Services,Head of Childrens Social Care,Supplies and Services,384540,Miscellaneous Expenses,03/04/2023,4118239-PSI-0020851,960.00,MEDIAWORKS UK LTD.
Resources BK0010,Legal & Democratic Services,Supplies and Services,384956,Miscellaneous Expenses,03/04/2023,4118278-INV-16407,"5,423.84",OD CONSULTANCY LTD.
Children and Young Peoples Services,Head of Education and Skills,Supplies and Services,384199,Miscellaneous Expenses,03/04/2023,4118303-22/23-07,728.00,PGI SMITH SOLUTIONS LTD.
Neighbourhoods and Climate Change,Environmental Services,Supplies and Services,384899,Miscellaneous Expenses,03/04/2023,4118309-NEI-EXP-03-2023-052,500.00,PITTINGTON PARISH COUNCIL.
Dedicated Schools Grant BG0015,DSG Schools Block,Supplies and Services,384984,Miscellaneous Expenses,03/04/2023,4118310-0000049724,"9,684.96",PLAYDALE PLAYGROUNDS LTD.
Neighbourhoods and Climate Change,Environmental Services,Supplies and Services,384899,Miscellaneous Expenses,03/04/2023,4118351-NEI-EXP-03-2023-050,500.00,SHERBURN HILL COMMUNITY HUB CIO.
Regeneration Economy and Growth,Culture Sport and Tourism,Supplies and Services,384237,Miscellaneous Expenses,03/04/2023,4118379-SWINV078927,"16,800.00",SWIM ENGLAND TRADING LTD.*
Neighbourhoods and Climate Change,Environmental Services,Supplies and Services,384899,Miscellaneous Expenses,03/04/2023,4118388-NEI-EXP-03-2023-054,500.00,THE FRIENDS OF ADDISON PARK.
Regeneration Economy and Growth,Culture Sport and Tourism,Supplies and Services,384199,Miscellaneous Expenses,03/04/2023,4118429-INV-0024,"3,703.85",VIRTUAL COLLABORATIONS.
Dedicated Schools Grant BG0015,DSG High Needs Block,Supplies and Services,384199,Miscellaneous Expenses,03/04/2023,4118088-177,"1,035.00",REDACTED - PAYMENT TO INDIVIDUAL
Dedicated Schools Grant BG0015,DSG Schools Block,Supplies and Services,384199,Miscellaneous Expenses,03/04/2023,4118187-LG005,500.00,REDACTED - PAYMENT TO INDIVIDUAL
Neighbourhoods and Climate Change,Environmental Services,Supplies and Services,384700,Miscellaneous Expenses,03/04/2023,4118240-RES-03-2023-662,"23,611.66",REDACTED - PAYMENT TO INDIVIDUAL
Neighbourhoods and Climate Change,Environmental Services,Supplies and Services,384899,Miscellaneous Expenses,03/04/2023,4117963-NEI-EXP-03-2023-046,500.00,ACTION FOR STATION TOWN CIC.
Regeneration Economy and Growth,Business Durham CL0850,Supplies and Services,384899,Miscellaneous Expenses,03/04/2023,4117996-RES-03-2023-674,"2,598.38",BLOCK LEARNING LTD.
Neighbourhoods and Climate Change,Environmental Services,Supplies and Services,384899,Miscellaneous Expenses,03/04/2023,4118152-NEI-EXP-03-2023-056,500.00,HOLY TRINITY PARISH CHURCH.
Regeneration Economy and Growth,Business Durham CL0850,Supplies and Services,384899,Miscellaneous Expenses,03/04/2023,4118389-RES-03-2023-666,"3,396.40",THE HEALTHY PREP CHEF LTD.
Neighbourhoods and Climate Change,Environmental Services,Supplies and Services,384700,Miscellaneous Expenses,03/04/2023,4118293-RES-03-2023-663,"5,642.93",PASTURE-FED LIVESTOCK ASSOCIATION CIC.
Neighbourhoods and Climate Change,Environmental Services,Supplies and Services,384899,Miscellaneous Expenses,03/04/2023,4118299-NEI-EXP-03-2023-049,500.00,PETERLEE COMMUNITY GARDEN.
Neighbourhoods and Climate Change,Environmental Services,Supplies and Services,384700,Miscellaneous Expenses,03/04/2023,4118440-RES-03-2023-667,"13,612.50",WD & JP HOWARD.
Resources - C A C,Resources - C A C- Level C,Third Party Payments,440070,Other third party payments E440,03/04/2023,4117985-RES-04-2023-003A,"1,551.00",BEARPARK PARISH COUNCIL.
Resources - C A C,Resources - C A C- Level C,Third Party Payments,440070,Other third party payments E440,03/04/2023,4118000-RES-04-2023-008A,725.00,BOURNMOOR PARISH COUNCIL.
Resources - C A C,Resources - C A C- Level C,Third Party Payments,440070,Other third party payments E440,03/04/2023,4118012-RES-04-2023-013A,662.00,BURNHOPE PARISH COUNCIL.
Resources - C A C,Resources - C A C- Level C,Third Party Payments,440070,Other third party payments E440,03/04/2023,4118036-RES-04-2023-019A,"3,801.00",COCKFIELD PARISH COUNCIL.
Resources - C A C,Resources - C A C- Level C,Third Party Payments,440070,Other third party payments E440,03/04/2023,4118041-RES-04-2023-020A,"28,205.00",CORNFORTH PARISH COUNCIL.
Resources - C A C,Resources - C A C- Level C,Third Party Payments,440070,Other third party payments E440,03/04/2023,4118073-RES-04-2023-027A,"36,480.50",EASINGTON COLLIERY PARISH COUNCIL.
Resources - C A C,Resources - C A C- Level C,Third Party Payments,440070,Other third party payments E440,03/04/2023,4118079-RES-04-2023-029A,"1,697.00",EDMONDSLEY PARISH COUNCIL.
Resources - C A C,Resources - C A C- Level C,Third Party Payments,440070,Other third party payments E440,03/04/2023,4118086-RES-04-2023-031A,"1,526.00",ELDON PARISH COUNCIL.
Resources - C A C,Resources - C A C- Level C,Third Party Payments,440070,Other third party payments E440,03/04/2023,4118100-RES-04-2023-034A,"2,494.00",EVENWOOD & BARONY PARISH COUNCIL.
Resources - C A C,Resources - C A C- Level C,Third Party Payments,440070,Other third party payments E440,03/04/2023,4118109-RES-04-2023-036A,"12,443.00",FISHBURN PARISH COUNCIL.
Resources - C A C,Resources - C A C- Level C,Third Party Payments,440070,Other third party payments E440,03/04/2023,4118129-RES-04-2023-039A,"102,455.50",GREAT AYCLIFFE TOWN COUNCIL.
Resources - C A C,Resources - C A C- Level C,Third Party Payments,440070,Other third party payments E440,03/04/2023,4118143-RES-04-2023-044A,"10,720.00",HASWELL PARISH COUNCIL.
Resources - C A C,Resources - C A C- Level C,Third Party Payments,440070,Other third party payments E440,03/04/2023,4118196-RES-04-2023-052A,"1,864.00",KELLOE PARISH COUNCIL.
Resources - C A C,Resources - C A C- Level C,Third Party Payments,440070,Other third party payments E440,03/04/2023,4118208-RES-04-2023-054A,947.00,LANCHESTER PARISH COUNCIL.
Resources - C A C,Resources - C A C- Level C,Third Party Payments,440070,Other third party payments E440,03/04/2023,4118336-RES-04-2023-075A,"8,855.00",SACRISTON PARISH COUNCIL.
Resources - C A C,Resources - C A C- Level C,Third Party Payments,440070,Other third party payments E440,03/04/2023,4118406-RES-04-2023-001A,"1,994.00",TOW LAW TOWN COUNCIL.
Resources - C A C,Resources - C A C- Level C,Third Party Payments,440070,Other third party payments E440,03/04/2023,4118412-RES-04-2023-094A,"12,969.00",TRIMDON FOUNDRY PARISH COUNCIL.
Resources - C A C,Resources - C A C- Level C,Third Party Payments,440070,Other third party payments E440,03/04/2023,4118425-RES-04-2023-096A,838.00,URPETH PARISH COUNCIL.
Resources - C A C,Resources - C A C- Level C,Third Party Payments,440070,Other third party payments E440,03/04/2023,4118445-RES-04-2023-099A,"2,582.00",WEST RAINTON & LEAMSIDE PARISH COUNCIL..
Resources - C A C,Resources - C A C- Level C,Third Party Payments,440070,Other third party payments E440,03/04/2023,4117987-RES-04-2023-004A,"6,256.00",BELMONT PARISH COUNCIL.
Resources - C A C,Resources - C A C- Level C,Third Party Payments,440070,Other third party payments E440,03/04/2023,4117991-RES-04-2023-005A,"5,762.00",BISHOP AUCKLAND TOWN COUNCIL.
Resources - C A C,Resources - C A C- Level C,Third Party Payments,440070,Other third party payments E440,03/04/2023,4117992-RES-04-2023-006A,"2,651.00",BISHOP MIDDLEHAM PARISH COUNCIL.
Resources - C A C,Resources - C A C- Level C,Third Party Payments,440070,Other third party payments E440,03/04/2023,4118042-RES-04-2023-021A,"1,093.00",CORNSAY PARISH COUNCIL.
Resources - C A C,Resources - C A C- Level C,Third Party Payments,440070,Other third party payments E440,03/04/2023,4118050-RES-04-2023-024A,"1,067.00",CROXDALE & HETT PARISH COUNCIL.
Resources - C A C,Resources - C A C- Level C,Third Party Payments,440070,Other third party payments E440,03/04/2023,4118108-RES-04-2023-035A,"87,827.00",FERRYHILL TOWN COUNCIL.
Resources - C A C,Resources - C A C- Level C,Third Party Payments,440070,Other third party payments E440,03/04/2023,4118119-RES-04-2023-038A,703.00,GAINFORD & LANGTON PARISH COUNCIL.
Resources - C A C,Resources - C A C- Level C,Third Party Payments,440070,Other third party payments E440,03/04/2023,4118131-RES-04-2023-041A,"1,187.00",GREATER WILLINGTON TOWN COUNCIL.
Resources - C A C,Resources - C A C- Level C,Third Party Payments,440070,Other third party payments E440,03/04/2023,4118157-RES-04-2023-048A,"57,991.00",HORDEN PARISH COUNCIL.
Resources - C A C,Resources - C A C- Level C,Third Party Payments,440070,Other third party payments E440,03/04/2023,4118161-RES-04-2023-049A,"4,559.00",HUTTON HENRY PARISH COUNCIL.
Resources - C A C,Resources - C A C- Level C,Third Party Payments,440070,Other third party payments E440,03/04/2023,4118249-RES-04-2023-063A,"22,655.00",MONK HESLEDEN PARISH COUNCIL.
Resources - C A C,Resources - C A C- Level C,Third Party Payments,440070,Other third party payments E440,03/04/2023,4118261-RES-04-2023-066A,"23,157.00",MURTON PARISH COUNCIL.
Resources - C A C,Resources - C A C- Level C,Third Party Payments,440070,Other third party payments E440,03/04/2023,4118301-RES-04-2023-071A,"141,632.50",PETERLEE TOWN COUNCIL.
Resources - C A C,Resources - C A C- Level C,Third Party Payments,440070,Other third party payments E440,03/04/2023,4118345-RES-04-2023-077A,"93,557.50",SEAHAM TOWN COUNCIL.
Resources - C A C,Resources - C A C- Level C,Third Party Payments,440070,Other third party payments E440,03/04/2023,4118352-RES-04-2023-081A,"2,258.00",SHERBURN VILLAGE PARISH COUNCIL.
Resources - C A C,Resources - C A C- Level C,Third Party Payments,440070,Other third party payments E440,03/04/2023,4118353-RES-04-2023-082A,"30,449.00",SHILDON TOWN COUNCIL.
Resources - C A C,Resources - C A C- Level C,Third Party Payments,440070,Other third party payments E440,03/04/2023,4118365-RES-04-2023-086A,"15,642.00",SOUTH HETTON PARISH COUNCIL.
Children and Young Peoples Services,Head of Education and Skills,Third Party Payments,440999,Other third party payments E440,03/04/2023,4118369-22-23-INV06,"6,794.39",SPORTSCAPE TRAINING LTD.
Resources - C A C,Resources - C A C- Level C,Third Party Payments,440070,Other third party payments E440,03/04/2023,4118374-RES-04-2023-091A,"55,773.50",STANLEY TOWN COUNCIL.*
Resources - C A C,Resources - C A C- Level C,Third Party Payments,440070,Other third party payments E440,03/04/2023,4118397-RES-04-2023-093A,"5,516.50",THORNLEY PARISH COUNCIL.
Resources - C A C,Resources - C A C- Level C,Third Party Payments,440070,Other third party payments E440,03/04/2023,4118413-RES-04-2023-095A,"16,132.00",TRIMDON PARISH COUNCIL.
Resources - C A C,Resources - C A C- Level C,Third Party Payments,440070,Other third party payments E440,03/04/2023,4118435-RES-04-2023-097A,638.00,WALDRIDGE PARISH COUNCIL.
Resources - C A C,Resources - C A C- Level C,Third Party Payments,440070,Other third party payments E440,03/04/2023,4118444-RES-04-2023-098A,"4,116.00",WEST AUCKLAND PARISH COUNCIL.
Resources - C A C,Resources - C A C- Level C,Third Party Payments,440070,Other third party payments E440,03/04/2023,4118447-RES-04-2023-100A,"9,321.00",WHEATLEY HILL PARISH COUNCIL.
Resources - C A C,Resources - C A C- Level C,Third Party Payments,440070,Other third party payments E440,03/04/2023,4118455-RES-04-2023-106A,513.00,WOLSINGHAM PARISH COUNCIL.
Resources - C A C,Resources - C A C- Level C,Third Party Payments,440070,Other third party payments E440,03/04/2023,4118022-RES-04-2023-017A,"6,544.00",CHARTER TRUSTEES FOR THE CITY OF DURHAM.
Resources BK0010,Digital Services,Supplies and Services,332029,Printing Stationery and Gen Off Exps,03/04/2023,4118320-20656,630.00,RADECAL SIGNS GRAPHICS & ADVERTISING.
Adult and Health Services,Commissioning inc Supporting People,Third Party Payments,479102,Purchase of Care,03/04/2023,4118065-549,"1,404.00",DURHAM COUNTY CARERS SUPPORT.
Adult and Health Services,Head of Adults,Third Party Payments,479102,Purchase of Care,03/04/2023,4118311-INV-0120,"5,860.31",POSITIVE CARE & SUPPORT LTD.
Adult and Health Services,Head of Adults,Third Party Payments,479102,Purchase of Care,03/04/2023,4118311-INV-0123,"7,679.56",POSITIVE CARE & SUPPORT LTD.
Children and Young Peoples Services,Head of Education and Skills,Third Party Payments,410037,Rendered by Other Local Authorities,03/04/2023,4118431-543378,693.02,VISION FOR EDUCATION LTD.
Children and Young Peoples Services,Head of Education and Skills,Third Party Payments,410037,Rendered by Other Local Authorities,03/04/2023,4118431-557662,646.80,VISION FOR EDUCATION LTD.
Children and Young Peoples Services,Head of Education and Skills,Third Party Payments,410037,Rendered by Other Local Authorities,03/04/2023,4118431-559315,646.80,VISION FOR EDUCATION LTD.
Children and Young Peoples Services,Head of Education and Skills,Third Party Payments,410037,Rendered by Other Local Authorities,03/04/2023,4118431-560759,646.80,VISION FOR EDUCATION LTD.
Children and Young Peoples Services,Head of Education and Skills,Third Party Payments,410037,Rendered by Other Local Authorities,03/04/2023,4118431-562386,646.80,VISION FOR EDUCATION LTD.
Children and Young Peoples Services,Head of Education and Skills,Third Party Payments,410037,Rendered by Other Local Authorities,03/04/2023,4118431-563991,646.80,VISION FOR EDUCATION LTD.
Children and Young Peoples Services,Head of Education and Skills,Third Party Payments,410037,Rendered by Other Local Authorities,03/04/2023,4118431-565679,646.80,VISION FOR EDUCATION LTD.
Children and Young Peoples Services,Head of Education and Skills,Third Party Payments,410037,Rendered by Other Local Authorities,03/04/2023,4118431-568900,646.80,VISION FOR EDUCATION LTD.
Children and Young Peoples Services,Head of Education and Skills,Third Party Payments,410037,Rendered by Other Local Authorities,03/04/2023,4118431-571992,646.80,VISION FOR EDUCATION LTD.
Children and Young Peoples Services,Head of Education and Skills,Third Party Payments,410037,Rendered by Other Local Authorities,03/04/2023,4118431-573473,646.80,VISION FOR EDUCATION LTD.
Children and Young Peoples Services,Head of Education and Skills,Third Party Payments,410037,Rendered by Other Local Authorities,03/04/2023,4118431-576751,646.80,VISION FOR EDUCATION LTD.
Children and Young Peoples Services,Head of Education and Skills,Third Party Payments,410037,Rendered by Other Local Authorities,03/04/2023,4118431-579745,646.80,VISION FOR EDUCATION LTD.
Neighbourhoods and Climate Change,Environmental Services,Third Party Payments,430100,Rendered by Private Contractors,03/04/2023,4117967-204R/23/92861,"1,395.00",ALAN M RANSON FUNERAL SERVICE.
Neighbourhoods and Climate Change,Environmental Services,Third Party Payments,430100,Rendered by Private Contractors,03/04/2023,4117967-214R/23/92867,"1,395.00",ALAN M RANSON FUNERAL SERVICE.
Regeneration Economy and Growth,Corporate Property and Land,Third Party Payments,430100,Rendered by Private Contractors,03/04/2023,4117970-AEL2115,764.26,AMELIO ENTERPRISES LTD.
Regeneration Economy and Growth,Corporate Property and Land,Third Party Payments,430100,Rendered by Private Contractors,03/04/2023,4118018-10936,"5,984.33",CATHEDRAL LOCK & SAFE SERVICES LTD.
Neighbourhoods and Climate Change,Highways,Third Party Payments,430100,Rendered by Private Contractors,03/04/2023,4118037-23000RI23000448,"15,350.20",COLAS LTD.
Neighbourhoods and Climate Change,Highways,Third Party Payments,430100,Rendered by Private Contractors,03/04/2023,4118037-23000RI23000450,"10,667.78",COLAS LTD.
Regeneration Economy and Growth,Corporate Property and Land,Third Party Payments,430100,Rendered by Private Contractors,03/04/2023,4118038-4554/CCS1912,"75,361.20",COMPLETE CLADDING SYSTEMS LTD.
Regeneration Economy and Growth,Corporate Property and Land,Third Party Payments,430100,Rendered by Private Contractors,03/04/2023,4118182-53120,873.60,JBL SERVICES LTD.
Neighbourhoods and Climate Change,Highways,Third Party Payments,430100,Rendered by Private Contractors,03/04/2023,4118198-230046,"45,586.24",KIELY BROS LTD.
Regeneration Economy and Growth,Corporate Property and Land,Third Party Payments,430100,Rendered by Private Contractors,03/04/2023,4118326-75356,"2,142.00",RJ UTILITY SERVICES LTD.
Regeneration Economy and Growth,Corporate Property and Land,Third Party Payments,430100,Rendered by Private Contractors,03/04/2023,4118326-75368,"2,244.00",RJ UTILITY SERVICES LTD.
Regeneration Economy and Growth,Corporate Property and Land,Third Party Payments,430100,Rendered by Private Contractors,03/04/2023,4118337-7340,"3,720.00",SAFE STRIP UK LTD.
Regeneration Economy and Growth,Corporate Property and Land,Third Party Payments,430100,Rendered by Private Contractors,03/04/2023,4118370-19867,"9,503.00",SPRINGS ROOFING LTD.
Regeneration Economy and Growth,Corporate Property and Land,Third Party Payments,430100,Rendered by Private Contractors,03/04/2023,4118400-TIS2024,"1,921.63",TIS (NGA) LTD.
Regeneration Economy and Growth,Business Durham CL0850,Premises,108099,Service Repairs and Maintenance,03/04/2023,4118019-789,"1,766.09",CDC ENTERPRISE AGENCY LTD.
Children and Young Peoples Services,Head of Childrens Social Care,Supplies and Services,338099,Services,03/04/2023,4118394-41HEATHFIELDS,"2,375.00",REDACTED - PAYMENT TO INDIVIDUAL
Neighbourhoods and Climate Change,Environmental Services,Supplies and Services,338066,Services,03/04/2023,4118475-RES-03-2023-683,"5,000.00",J & J CLARK & SONS.
Children and Young Peoples Services,Childrens Services Operational Support,Supplies and Services,338026,Services,03/04/2023,4117975-APD143,"1,431.90",AP & D CONSULTANCY.
Neighbourhoods and Climate Change,Environmental Services,Supplies and Services,338066,Services,03/04/2023,4117980-201,"1,000.00",ATEVENTS.
Neighbourhoods and Climate Change,Community Protection,Supplies and Services,338099,Services,03/04/2023,4118070-HIRE090323,"1,260.00",DURHAM ST NICHOLAS PCC.
Resources BK0010,Legal & Democratic Services,Supplies and Services,338101,Services,03/04/2023,4118110-PNC0062-002-2023-JC,750.00,FORENSIC PATHOLOGY LTD.
Resources BK0010,Legal & Democratic Services,Supplies and Services,338025,Services,03/04/2023,4118116-338616/1172,720.00,FUNERAL PARTNERS LTD T/A JOHN BLENKIRON & SONS.
Children and Young Peoples Services,Head of Education and Skills,Supplies and Services,338035,Services,03/04/2023,4118173-806259892,925.00,INSTITUTE OF LEADERSHIP & MANAGEMENT (ILM).
Children and Young Peoples Services,Childrens Services Operational Support,Supplies and Services,338089,Services,03/04/2023,4118200-960/KKLL/2023/DURHAM09,"1,260.00",KINGSLEY KNIGHT LAW LTD.
Children and Young Peoples Services,Childrens Services Operational Support,Supplies and Services,338089,Services,03/04/2023,4118200-961/KKLL/2023/DURHAM10,"1,260.00",KINGSLEY KNIGHT LAW LTD.
Children and Young Peoples Services,Childrens Services Operational Support,Supplies and Services,338089,Services,03/04/2023,4118200-962/KKLL/2023/DURHAM11,"1,260.00",KINGSLEY KNIGHT LAW LTD.
Resources BK0010,Legal & Democratic Services,Supplies and Services,338042,Services,03/04/2023,4118292-INV/RAC13,"4,560.00",PARKLANE PLOWDEN CHAMBERS (BARRISTERS).
Regeneration Economy and Growth,Business Durham CL0850,Supplies and Services,338099,Services,03/04/2023,4118338-17653,"3,388.90",SAFEGUARD SECURITY (NE) LTD.
Resources BK0010,Legal & Democratic Services,Supplies and Services,338101,Services,03/04/2023,4118350-2100224497,500.00,SHEFFIELD CHILDREN`S NHS FOUNDATION TRUST.
Children and Young Peoples Services,Head of Childrens Social Care,Supplies and Services,338094,Services,03/04/2023,4118351-INV13,"1,595.00",SHERBURN HILL COMMUNITY HUB CIO.
Children and Young Peoples Services,Head of Early Help Inclusion & Vulnerable Children.,Supplies and Services,338094,Services,03/04/2023,4118386-7044,671.70,THE DURHAM CENTRE LTD.
Adult and Health Services,Head of Adults,Supplies and Services,338365,Services,03/04/2023,4118401-SOI0311720,750.30,TK ACCESS SOLUTIONS LTD.
Resources BK0010,Legal & Democratic Services,Supplies and Services,338042,Services,03/04/2023,4118414-301901/INVHH83,"1,020.00",TRINITY CHAMBERS.
Resources BK0010,Legal & Democratic Services,Supplies and Services,338042,Services,03/04/2023,4118414-305172/INVKW692,864.00,TRINITY CHAMBERS.
Children and Young Peoples Services,Head of Education and Skills,Supplies and Services,338076,Services,03/04/2023,4118458-0518,"3,315.00",WORLD ALTERNATIVE EDUCATION LTD.
Children and Young Peoples Services,Head of Education and Skills,Supplies and Services,338076,Services,03/04/2023,4118458-0523,"4,875.00",WORLD ALTERNATIVE EDUCATION LTD.
Adult and Health Services,Commissioning inc Supporting People,Supplies and Services,338066,Services,03/04/2023,4118470-3910019509A,"2,590.00",COUNTY DURHAM & DARLINGTON NHS FOUNDATION TRUST (CDDFT).
Resources BK0010,Legal & Democratic Services,Supplies and Services,338042,Services,03/04/2023,4118480-299055/INVKIO202,864.00,TRINITY CHAMBERS.
Resources BK0010,Legal & Democratic Services,Supplies and Services,338042,Services,03/04/2023,4118480-299333/INVPCA40,"4,572.00",TRINITY CHAMBERS.
Resources BK0010,Legal & Democratic Services,Supplies and Services,338042,Services,03/04/2023,4118480-305057/INVMA224,"1,158.00",TRINITY CHAMBERS.
Resources BK0010,HR & Employee Services,Supplies and Services,338099,Services,03/04/2023,4118017-881,"5,280.00",REDACTED - PAYMENT TO INDIVIDUAL
Resources BK0010,Legal & Democratic Services,Supplies and Services,338101,Services,03/04/2023,4118058-09032023,"1,900.00",REDACTED - PAYMENT TO INDIVIDUAL
Adult and Health Services,Head of Adults,Supplies and Services,338066,Services,03/04/2023,4118059-2023DN-03-01,537.60,REDACTED - PAYMENT TO INDIVIDUAL
Adult and Health Services,Head of Adults,Supplies and Services,338066,Services,03/04/2023,4118063-SWMARB23,528.60,REDACTED - PAYMENT TO INDIVIDUAL
Neighbourhoods and Climate Change,Highways,Stock A926,926900,Stock in hand-Inventory system,03/04/2023,4118291-XL298741,"1,780.90",PARK ELECTRICAL DISTRIBUTORS LTD.
Neighbourhoods and Climate Change,Highways,Stock A926,926900,Stock in hand-Inventory system,03/04/2023,4118291-XL298742,"1,774.80",PARK ELECTRICAL DISTRIBUTORS LTD.
Neighbourhoods and Climate Change,Highways,Stock A926,926900,Stock in hand-Inventory system,03/04/2023,4118382-9046627641,621.86,TARMAC TRADING LTD.
Neighbourhoods and Climate Change,Highways,Stock A926,926900,Stock in hand-Inventory system,03/04/2023,4118405-113043,"1,920.00",TOTAL RENTAL SOLUTIONS LTD.
Neighbourhoods and Climate Change,Highways,Stock A926,926900,Stock in hand-Inventory system,03/04/2023,4118405-113044,"5,612.40",TOTAL RENTAL SOLUTIONS LTD.
Neighbourhoods and Climate Change,Highways,Stock A926,926900,Stock in hand-Inventory system,03/04/2023,4118424-INV069698,"13,015.87",URBIS SCHREDER LTD.
Regeneration Economy and Growth,Culture Sport and Tourism,Supplies and Services,372009,Subscriptions E372,03/04/2023,4117979-INV-0103,"48,960.00",ASPIRECRM LTD.
Regeneration Economy and Growth,Culture Sport and Tourism,Supplies and Services,372009,Subscriptions E372,03/04/2023,4117979-INV-0112,"24,480.00",ASPIRECRM LTD.
Resources BK0010,Corporate Finance & Commercial Services,Supplies and Services,372009,Subscriptions E372,03/04/2023,4118217-6003940,"9,174.00",LG FUTURES LTD.
Children and Young Peoples Services,Head of Early Help Inclusion & Vulnerable Children.,Supplies and Services,344033,Telephones,03/04/2023,4118422-209317,687.24,UNIFY BUSINESS SOLUTIONS LTD.
Regeneration Economy and Growth,Planning & Housing,Premises,135005,Water Services,03/04/2023,4118477-383127020025034714,"2,208.00",NORTHUMBRIAN WATER LTD.
Regeneration Economy and Growth,Planning & Housing,Premises,135005,Water Services,03/04/2023,4118477-542916020025034601,768.56,NORTHUMBRIAN WATER LTD.
Regeneration Economy and Growth,Planning & Housing,Premises,135005,Water Services,03/04/2023,4118477-572091020025034801,"2,208.00",NORTHUMBRIAN WATER LTD.
Regeneration Economy and Growth,Planning & Housing,Premises,135005,Water Services,03/04/2023,4118477-614548020025034391,"1,678.08",NORTHUMBRIAN WATER LTD.
Regeneration Economy and Growth,Planning & Housing,Premises,135005,Water Services,03/04/2023,4118477-984981020025035001,"1,678.08",NORTHUMBRIAN WATER LTD.
Resources BK0010,Digital Services,Supplies and Services,342051,Computers and Communications,04/04/2023,4119175-UK-FIN000292,"172,800.00",ESRI (UK) LTD.
Regeneration Economy and Growth,Planning & Housing,Supplies and Services,352001,Conference Expenses,04/04/2023,4119348-2094,630.00,SAFFER COOPER LTD.
Neighbourhoods and Climate Change,Highways,Supplies and Services,304221,Equipment and Materials,04/04/2023,4119103-21150006,767.39,BREEDON TRADING LTD.
Regeneration Economy and Growth,Corporate Property and Land,Supplies and Services,304259,Equipment and Materials,04/04/2023,4119122-CN30210582,910.44,CITRON HYGIENE UK LTD.
Neighbourhoods and Climate Change,Environmental Services,Supplies and Services,304221,Equipment and Materials,04/04/2023,4119316-065810,763.39,NEW ROW FARM NURSERIES.
Children and Young Peoples Services,Head of Education and Skills,Supplies and Services,304259,Equipment and Materials,04/04/2023,4119395-0001,500.00,THE LAIDLAW SCHOOLS TRUST T/A SEDGEFIELD HARDWICK PRIMARY SCHOOL.
Adult and Health Services,Head of Adults,Supplies and Services,304259,Equipment and Materials,04/04/2023,4119111-43278027,"18,672.00",CARE QUALITY COMMISSION.
Children and Young Peoples Services,Head of Education and Skills,Supplies and Services,304259,Equipment and Materials,04/04/2023,4119149-5100058,500.00,DELTA ACADEMIES TRUST T/A CROOKESBROOM PRIMARY ACADEMY.
Neighbourhoods and Climate Change,Partnerships & Community Engagement Div.,Supplies and Services,364501,Grants to Voluntary Organisations,04/04/2023,4119183-297751603,"1,000.00",GEORGE F WHITE LLP.
Neighbourhoods and Climate Change,Partnerships & Community Engagement Div.,Supplies and Services,364501,Grants to Voluntary Organisations,04/04/2023,4119336-41GREENFIELDS-03/03/23,990.00,REA ESTATES LTD.
Adult and Health Services,Public Health CC0450,Supplies and Services,384540,Miscellaneous Expenses,04/04/2023,4119188-C-INV180387,"55,586.40",GLOBAL MEDIA GROUP SERVICES LTD.
Neighbourhoods and Climate Change,Environmental Services,Supplies and Services,384199,Miscellaneous Expenses,04/04/2023,4119237-1653,"23,436.60",JW BAINBRIDGE CONTRACTORS LTD.
Regeneration Economy and Growth,Planning & Housing,Supplies and Services,384999,Miscellaneous Expenses,04/04/2023,4119324-2303001,"1,000.00",PETER CLARK PROPERTY SERVICES LTD.
Children and Young Peoples Services,Head of Childrens Social Care,Supplies and Services,384199,Miscellaneous Expenses,04/04/2023,4119389-INV262092,796.80,SYMBOLS WORLDWIDE LTD T/A WIDGIT SOFTWARE.
Children and Young Peoples Services,Head of Childrens Social Care,Third Party Payments,440046,Other third party payments E440,04/04/2023,4119283-30117669,"2,539.94",MAJOR RECRUITMENT LTD.
Children and Young Peoples Services,Head of Childrens Social Care,Third Party Payments,440046,Other third party payments E440,04/04/2023,4119283-30117671,800.35,MAJOR RECRUITMENT LTD.
Children and Young Peoples Services,Head of Childrens Social Care,Third Party Payments,440046,Other third party payments E440,04/04/2023,4119283-30117672,"9,785.54",MAJOR RECRUITMENT LTD.
Children and Young Peoples Services,Head of Childrens Social Care,Third Party Payments,440046,Other third party payments E440,04/04/2023,4119283-30117673,944.51,MAJOR RECRUITMENT LTD.
Children and Young Peoples Services,Head of Childrens Social Care,Third Party Payments,440046,Other third party payments E440,04/04/2023,4119283-30117674,"2,000.88",MAJOR RECRUITMENT LTD.
Children and Young Peoples Services,Head of Childrens Social Care,Third Party Payments,440046,Other third party payments E440,04/04/2023,4119283-30117675,"1,240.70",MAJOR RECRUITMENT LTD.
Children and Young Peoples Services,Head of Childrens Social Care,Third Party Payments,440046,Other third party payments E440,04/04/2023,4119283-30117676,666.96,MAJOR RECRUITMENT LTD.
Children and Young Peoples Services,Head of Childrens Social Care,Third Party Payments,440046,Other third party payments E440,04/04/2023,4119283-30117677,"17,147.70",MAJOR RECRUITMENT LTD.
Children and Young Peoples Services,Head of Childrens Social Care,Third Party Payments,440046,Other third party payments E440,04/04/2023,4119283-30117974,"3,096.77",MAJOR RECRUITMENT LTD.
Children and Young Peoples Services,Head of Childrens Social Care,Third Party Payments,440046,Other third party payments E440,04/04/2023,4119283-30117977,"12,536.47",MAJOR RECRUITMENT LTD.
Children and Young Peoples Services,Head of Childrens Social Care,Third Party Payments,440046,Other third party payments E440,04/04/2023,4119283-30117978,"5,602.46",MAJOR RECRUITMENT LTD.
Children and Young Peoples Services,Head of Childrens Social Care,Third Party Payments,440046,Other third party payments E440,04/04/2023,4119283-30117979,"11,830.45",MAJOR RECRUITMENT LTD.
Children and Young Peoples Services,Head of Childrens Social Care,Third Party Payments,440046,Other third party payments E440,04/04/2023,4119283-30117981,690.44,MAJOR RECRUITMENT LTD.
Children and Young Peoples Services,Head of Childrens Social Care,Third Party Payments,440046,Other third party payments E440,04/04/2023,4119283-30117983,"7,874.90",MAJOR RECRUITMENT LTD.
Children and Young Peoples Services,Head of Childrens Social Care,Third Party Payments,440046,Other third party payments E440,04/04/2023,4119283-30117984,"3,349.84",MAJOR RECRUITMENT LTD.
Children and Young Peoples Services,Head of Childrens Social Care,Third Party Payments,440046,Other third party payments E440,04/04/2023,4119283-30118274,"6,852.36",MAJOR RECRUITMENT LTD.
Children and Young Peoples Services,Head of Childrens Social Care,Third Party Payments,440046,Other third party payments E440,04/04/2023,4119283-30118276,"2,052.72",MAJOR RECRUITMENT LTD.
Children and Young Peoples Services,Head of Childrens Social Care,Third Party Payments,440046,Other third party payments E440,04/04/2023,4119283-30118278,"3,983.17",MAJOR RECRUITMENT LTD.
Children and Young Peoples Services,Head of Childrens Social Care,Third Party Payments,440046,Other third party payments E440,04/04/2023,4119283-30118918,"1,126.14",MAJOR RECRUITMENT LTD.
Children and Young Peoples Services,Head of Childrens Social Care,Third Party Payments,440046,Other third party payments E440,04/04/2023,4119283-30118920,"2,026.26",MAJOR RECRUITMENT LTD.
Children and Young Peoples Services,Head of Childrens Social Care,Third Party Payments,440046,Other third party payments E440,04/04/2023,4119283-30118921,"11,320.25",MAJOR RECRUITMENT LTD.
Children and Young Peoples Services,Head of Childrens Social Care,Third Party Payments,440046,Other third party payments E440,04/04/2023,4119283-30118922,"8,800.49",MAJOR RECRUITMENT LTD.
Children and Young Peoples Services,Head of Childrens Social Care,Third Party Payments,440046,Other third party payments E440,04/04/2023,4119283-30118923,"9,033.78",MAJOR RECRUITMENT LTD.
Children and Young Peoples Services,Head of Childrens Social Care,Third Party Payments,440046,Other third party payments E440,04/04/2023,4119283-30118924,"9,972.54",MAJOR RECRUITMENT LTD.
Children and Young Peoples Services,Head of Childrens Social Care,Third Party Payments,440046,Other third party payments E440,04/04/2023,4119283-30118925,620.92,MAJOR RECRUITMENT LTD.
Children and Young Peoples Services,Head of Childrens Social Care,Third Party Payments,440046,Other third party payments E440,04/04/2023,4119283-30118929,"2,042.57",MAJOR RECRUITMENT LTD.
Children and Young Peoples Services,Head of Childrens Social Care,Third Party Payments,440046,Other third party payments E440,04/04/2023,4119283-30118930,"7,619.36",MAJOR RECRUITMENT LTD.
Children and Young Peoples Services,Head of Childrens Social Care,Third Party Payments,440046,Other third party payments E440,04/04/2023,4119283-30118931,801.76,MAJOR RECRUITMENT LTD.
Children and Young Peoples Services,Head of Childrens Social Care,Third Party Payments,440046,Other third party payments E440,04/04/2023,4119283-30118932,"1,200.53",MAJOR RECRUITMENT LTD.
Children and Young Peoples Services,Head of Childrens Social Care,Third Party Payments,440046,Other third party payments E440,04/04/2023,4119283-30118933,812.75,MAJOR RECRUITMENT LTD.
Children and Young Peoples Services,Head of Childrens Social Care,Third Party Payments,440046,Other third party payments E440,04/04/2023,4119283-30118934,"6,179.89",MAJOR RECRUITMENT LTD.
Children and Young Peoples Services,Head of Childrens Social Care,Third Party Payments,440046,Other third party payments E440,04/04/2023,4119283-30118935,"4,527.65",MAJOR RECRUITMENT LTD.
Children and Young Peoples Services,Head of Childrens Social Care,Third Party Payments,440046,Other third party payments E440,04/04/2023,4119283-30118936,"5,328.01",MAJOR RECRUITMENT LTD.
Children and Young Peoples Services,Head of Childrens Social Care,Third Party Payments,440046,Other third party payments E440,04/04/2023,4119283-30118938,"3,068.02",MAJOR RECRUITMENT LTD.
Children and Young Peoples Services,Head of Childrens Social Care,Third Party Payments,440046,Other third party payments E440,04/04/2023,4119283-30118939,800.35,MAJOR RECRUITMENT LTD.
Children and Young Peoples Services,Head of Childrens Social Care,Third Party Payments,440046,Other third party payments E440,04/04/2023,4119283-30118940,"3,484.80",MAJOR RECRUITMENT LTD.
Children and Young Peoples Services,Head of Childrens Social Care,Third Party Payments,440046,Other third party payments E440,04/04/2023,4119283-30118941,"7,197.43",MAJOR RECRUITMENT LTD.
Children and Young Peoples Services,Head of Childrens Social Care,Third Party Payments,440046,Other third party payments E440,04/04/2023,4119283-30118942,"8,934.80",MAJOR RECRUITMENT LTD.
Children and Young Peoples Services,Head of Childrens Social Care,Third Party Payments,440046,Other third party payments E440,04/04/2023,4119283-30118943,"2,401.06",MAJOR RECRUITMENT LTD.
Children and Young Peoples Services,Head of Childrens Social Care,Third Party Payments,440046,Other third party payments E440,04/04/2023,4119283-30119260,"1,083.61",MAJOR RECRUITMENT LTD.
Children and Young Peoples Services,Head of Childrens Social Care,Third Party Payments,440046,Other third party payments E440,04/04/2023,4119283-30119262,"2,472.48",MAJOR RECRUITMENT LTD.
Children and Young Peoples Services,Head of Childrens Social Care,Third Party Payments,440046,Other third party payments E440,04/04/2023,4119283-30119263,"9,442.24",MAJOR RECRUITMENT LTD.
Children and Young Peoples Services,Head of Childrens Social Care,Third Party Payments,440046,Other third party payments E440,04/04/2023,4119283-30119264,"1,483.92",MAJOR RECRUITMENT LTD.
Children and Young Peoples Services,Head of Childrens Social Care,Third Party Payments,440046,Other third party payments E440,04/04/2023,4119283-30119265,"11,438.50",MAJOR RECRUITMENT LTD.
Children and Young Peoples Services,Head of Childrens Social Care,Third Party Payments,440046,Other third party payments E440,04/04/2023,4119283-30119266,"7,610.54",MAJOR RECRUITMENT LTD.
Children and Young Peoples Services,Head of Childrens Social Care,Third Party Payments,440046,Other third party payments E440,04/04/2023,4119283-30119267,"10,852.81",MAJOR RECRUITMENT LTD.
Children and Young Peoples Services,Head of Childrens Social Care,Third Party Payments,440046,Other third party payments E440,04/04/2023,4119283-30119269,"3,606.38",MAJOR RECRUITMENT LTD.
Children and Young Peoples Services,Head of Childrens Social Care,Third Party Payments,440046,Other third party payments E440,04/04/2023,4119283-30119270,"6,096.22",MAJOR RECRUITMENT LTD.
Children and Young Peoples Services,Head of Childrens Social Care,Third Party Payments,440046,Other third party payments E440,04/04/2023,4119283-30119271,"6,978.11",MAJOR RECRUITMENT LTD.
Children and Young Peoples Services,Head of Childrens Social Care,Third Party Payments,440046,Other third party payments E440,04/04/2023,4119283-30119272,"1,362.67",MAJOR RECRUITMENT LTD.
Children and Young Peoples Services,Head of Childrens Social Care,Third Party Payments,440046,Other third party payments E440,04/04/2023,4119283-30119273,"1,746.74",MAJOR RECRUITMENT LTD.
Children and Young Peoples Services,Head of Childrens Social Care,Third Party Payments,440046,Other third party payments E440,04/04/2023,4119283-30119274,"6,350.83",MAJOR RECRUITMENT LTD.
Children and Young Peoples Services,Head of Childrens Social Care,Third Party Payments,440046,Other third party payments E440,04/04/2023,4119283-30119275,"3,861.50",MAJOR RECRUITMENT LTD.
Children and Young Peoples Services,Head of Childrens Social Care,Third Party Payments,440038,Other third party payments E440,04/04/2023,4119283-30119276,"3,875.36",MAJOR RECRUITMENT LTD.
Children and Young Peoples Services,Head of Childrens Social Care,Third Party Payments,440038,Other third party payments E440,04/04/2023,4119283-30119278,"3,184.54",MAJOR RECRUITMENT LTD.
Children and Young Peoples Services,Head of Childrens Social Care,Third Party Payments,440038,Other third party payments E440,04/04/2023,4119283-30119279,716.92,MAJOR RECRUITMENT LTD.
Children and Young Peoples Services,Head of Childrens Social Care,Third Party Payments,440038,Other third party payments E440,04/04/2023,4119283-30119280,"1,640.34",MAJOR RECRUITMENT LTD.
Children and Young Peoples Services,Head of Childrens Social Care,Third Party Payments,440038,Other third party payments E440,04/04/2023,4119283-30119281,"8,986.96",MAJOR RECRUITMENT LTD.
Children and Young Peoples Services,Head of Childrens Social Care,Third Party Payments,440046,Other third party payments E440,04/04/2023,4119283-30119282,"3,239.42",MAJOR RECRUITMENT LTD.
Children and Young Peoples Services,Head of Childrens Social Care,Third Party Payments,440046,Other third party payments E440,04/04/2023,4119283-30119283,"1,600.70",MAJOR RECRUITMENT LTD.
Children and Young Peoples Services,Head of Childrens Social Care,Third Party Payments,440038,Other third party payments E440,04/04/2023,4119283-30119592,716.99,MAJOR RECRUITMENT LTD.
Children and Young Peoples Services,Head of Childrens Social Care,Third Party Payments,440038,Other third party payments E440,04/04/2023,4119283-30119594,"9,351.22",MAJOR RECRUITMENT LTD.
Children and Young Peoples Services,Head of Childrens Social Care,Third Party Payments,440038,Other third party payments E440,04/04/2023,4119283-30119595,"1,444.36",MAJOR RECRUITMENT LTD.
Children and Young Peoples Services,Head of Childrens Social Care,Third Party Payments,440038,Other third party payments E440,04/04/2023,4119283-30119596,"7,257.89",MAJOR RECRUITMENT LTD.
Children and Young Peoples Services,Head of Childrens Social Care,Third Party Payments,440038,Other third party payments E440,04/04/2023,4119283-30119597,"4,095.72",MAJOR RECRUITMENT LTD.
Children and Young Peoples Services,Head of Childrens Social Care,Third Party Payments,440038,Other third party payments E440,04/04/2023,4119283-30119598,666.96,MAJOR RECRUITMENT LTD.
Children and Young Peoples Services,Head of Childrens Social Care,Third Party Payments,440038,Other third party payments E440,04/04/2023,4119283-30119599,"8,113.02",MAJOR RECRUITMENT LTD.
Children and Young Peoples Services,Head of Childrens Social Care,Third Party Payments,440038,Other third party payments E440,04/04/2023,4119283-30119600,"3,201.41",MAJOR RECRUITMENT LTD.
Children and Young Peoples Services,Head of Childrens Social Care,Third Party Payments,440038,Other third party payments E440,04/04/2023,4119283-30119602,"3,177.92",MAJOR RECRUITMENT LTD.
Children and Young Peoples Services,Head of Childrens Social Care,Third Party Payments,440038,Other third party payments E440,04/04/2023,4119283-30119603,"9,511.40",MAJOR RECRUITMENT LTD.
Children and Young Peoples Services,Head of Childrens Social Care,Third Party Payments,440038,Other third party payments E440,04/04/2023,4119283-30119604,"6,302.24",MAJOR RECRUITMENT LTD.
Children and Young Peoples Services,Head of Childrens Social Care,Third Party Payments,440046,Other third party payments E440,04/04/2023,4119283-30119605,"1,035.82",MAJOR RECRUITMENT LTD.
Children and Young Peoples Services,Head of Childrens Social Care,Third Party Payments,440046,Other third party payments E440,04/04/2023,4119283-30119606,800.35,MAJOR RECRUITMENT LTD.
Children and Young Peoples Services,Head of Childrens Social Care,Third Party Payments,440046,Other third party payments E440,04/04/2023,4119283-30119608,"6,663.68",MAJOR RECRUITMENT LTD.
Children and Young Peoples Services,Head of Childrens Social Care,Third Party Payments,440046,Other third party payments E440,04/04/2023,4119283-30119609,783.48,MAJOR RECRUITMENT LTD.
Children and Young Peoples Services,Head of Childrens Social Care,Third Party Payments,440046,Other third party payments E440,04/04/2023,4119283-30119610,"3,884.98",MAJOR RECRUITMENT LTD.
Children and Young Peoples Services,Head of Childrens Social Care,Third Party Payments,440046,Other third party payments E440,04/04/2023,4119283-30119611,"4,196.05",MAJOR RECRUITMENT LTD.
Children and Young Peoples Services,Head of Childrens Social Care,Third Party Payments,440046,Other third party payments E440,04/04/2023,4119283-30119612,"3,252.02",MAJOR RECRUITMENT LTD.
Children and Young Peoples Services,Head of Childrens Social Care,Third Party Payments,440046,Other third party payments E440,04/04/2023,4119283-30119613,"3,084.62",MAJOR RECRUITMENT LTD.
Children and Young Peoples Services,Head of Childrens Social Care,Third Party Payments,440046,Other third party payments E440,04/04/2023,4119283-30119614,"1,083.74",MAJOR RECRUITMENT LTD.
Children and Young Peoples Services,Head of Childrens Social Care,Third Party Payments,440046,Other third party payments E440,04/04/2023,4119283-30119615,"2,684.45",MAJOR RECRUITMENT LTD.
Children and Young Peoples Services,Head of Childrens Social Care,Third Party Payments,440046,Other third party payments E440,04/04/2023,4119283-30119616,"7,853.12",MAJOR RECRUITMENT LTD.
Children and Young Peoples Services,Head of Childrens Social Care,Third Party Payments,440046,Other third party payments E440,04/04/2023,4119283-30120304,"1,574.15",MAJOR RECRUITMENT LTD.
Children and Young Peoples Services,Head of Childrens Social Care,Third Party Payments,440046,Other third party payments E440,04/04/2023,4119283-30120306,"13,848.55",MAJOR RECRUITMENT LTD.
Children and Young Peoples Services,Head of Childrens Social Care,Third Party Payments,440046,Other third party payments E440,04/04/2023,4119283-30120307,"9,293.15",MAJOR RECRUITMENT LTD.
Children and Young Peoples Services,Head of Childrens Social Care,Third Party Payments,440046,Other third party payments E440,04/04/2023,4119283-30120308,"11,222.60",MAJOR RECRUITMENT LTD.
Children and Young Peoples Services,Head of Childrens Social Care,Third Party Payments,440046,Other third party payments E440,04/04/2023,4119283-30120309,"2,093.58",MAJOR RECRUITMENT LTD.
Children and Young Peoples Services,Head of Childrens Social Care,Third Party Payments,440046,Other third party payments E440,04/04/2023,4119283-30120310,"2,000.88",MAJOR RECRUITMENT LTD.
Children and Young Peoples Services,Head of Childrens Social Care,Third Party Payments,440046,Other third party payments E440,04/04/2023,4119283-30120311,"1,200.53",MAJOR RECRUITMENT LTD.
Children and Young Peoples Services,Head of Childrens Social Care,Third Party Payments,440046,Other third party payments E440,04/04/2023,4119283-30120312,"6,555.41",MAJOR RECRUITMENT LTD.
Children and Young Peoples Services,Head of Childrens Social Care,Third Party Payments,440046,Other third party payments E440,04/04/2023,4119283-30120315,"4,700.40",MAJOR RECRUITMENT LTD.
Children and Young Peoples Services,Head of Childrens Social Care,Third Party Payments,440046,Other third party payments E440,04/04/2023,4119283-30120316,"4,425.42",MAJOR RECRUITMENT LTD.
Children and Young Peoples Services,Head of Childrens Social Care,Third Party Payments,440046,Other third party payments E440,04/04/2023,4119283-30120317,"1,239.11",MAJOR RECRUITMENT LTD.
Children and Young Peoples Services,Head of Childrens Social Care,Third Party Payments,440046,Other third party payments E440,04/04/2023,4119283-30120318,"1,494.94",MAJOR RECRUITMENT LTD.
Children and Young Peoples Services,Head of Childrens Social Care,Third Party Payments,440046,Other third party payments E440,04/04/2023,4119283-30120320,"1,448.14",MAJOR RECRUITMENT LTD.
Children and Young Peoples Services,Head of Childrens Social Care,Third Party Payments,440046,Other third party payments E440,04/04/2023,4119283-30120321,"5,052.96",MAJOR RECRUITMENT LTD.
Children and Young Peoples Services,Head of Childrens Social Care,Third Party Payments,440046,Other third party payments E440,04/04/2023,4119283-30120322,"3,091.24",MAJOR RECRUITMENT LTD.
Children and Young Peoples Services,Head of Childrens Social Care,Third Party Payments,440046,Other third party payments E440,04/04/2023,4119283-30120323,"2,628.28",MAJOR RECRUITMENT LTD.
Children and Young Peoples Services,Head of Childrens Social Care,Third Party Payments,440046,Other third party payments E440,04/04/2023,4119283-30120324,"3,201.22",MAJOR RECRUITMENT LTD.
Children and Young Peoples Services,Head of Childrens Social Care,Third Party Payments,440046,Other third party payments E440,04/04/2023,4119283-30120325,"1,934.12",MAJOR RECRUITMENT LTD.
Children and Young Peoples Services,Head of Childrens Social Care,Third Party Payments,440046,Other third party payments E440,04/04/2023,4119283-30120326,"1,417.30",MAJOR RECRUITMENT LTD.
Children and Young Peoples Services,Head of Childrens Social Care,Third Party Payments,440046,Other third party payments E440,04/04/2023,4119283-30120669,"2,367.71",MAJOR RECRUITMENT LTD.
Children and Young Peoples Services,Head of Childrens Social Care,Third Party Payments,440046,Other third party payments E440,04/04/2023,4119283-30120670,"2,494.96",MAJOR RECRUITMENT LTD.
Children and Young Peoples Services,Head of Childrens Social Care,Third Party Payments,440046,Other third party payments E440,04/04/2023,4119283-30120671,"11,365.62",MAJOR RECRUITMENT LTD.
Children and Young Peoples Services,Head of Childrens Social Care,Third Party Payments,440046,Other third party payments E440,04/04/2023,4119283-30120672,"8,911.90",MAJOR RECRUITMENT LTD.
Children and Young Peoples Services,Head of Childrens Social Care,Third Party Payments,440046,Other third party payments E440,04/04/2023,4119283-30120673,"1,588.84",MAJOR RECRUITMENT LTD.
Children and Young Peoples Services,Head of Childrens Social Care,Third Party Payments,440046,Other third party payments E440,04/04/2023,4119283-30120675,"9,241.73",MAJOR RECRUITMENT LTD.
Children and Young Peoples Services,Head of Childrens Social Care,Third Party Payments,440046,Other third party payments E440,04/04/2023,4119283-30120677,802.90,MAJOR RECRUITMENT LTD.
Children and Young Peoples Services,Head of Childrens Social Care,Third Party Payments,440046,Other third party payments E440,04/04/2023,4119283-30120678,"2,233.38",MAJOR RECRUITMENT LTD.
Children and Young Peoples Services,Head of Childrens Social Care,Third Party Payments,440046,Other third party payments E440,04/04/2023,4119283-30120679,"9,808.54",MAJOR RECRUITMENT LTD.
Children and Young Peoples Services,Head of Childrens Social Care,Third Party Payments,440046,Other third party payments E440,04/04/2023,4119283-30120680,"7,967.03",MAJOR RECRUITMENT LTD.
Children and Young Peoples Services,Head of Childrens Social Care,Third Party Payments,440046,Other third party payments E440,04/04/2023,4119283-30120681,"2,066.65",MAJOR RECRUITMENT LTD.
Children and Young Peoples Services,Head of Childrens Social Care,Third Party Payments,440046,Other third party payments E440,04/04/2023,4119283-30120682,906.36,MAJOR RECRUITMENT LTD.
Children and Young Peoples Services,Head of Childrens Social Care,Third Party Payments,440046,Other third party payments E440,04/04/2023,4119283-30120684,792.01,MAJOR RECRUITMENT LTD.
Children and Young Peoples Services,Head of Childrens Social Care,Third Party Payments,440046,Other third party payments E440,04/04/2023,4119283-30120685,800.35,MAJOR RECRUITMENT LTD.
Children and Young Peoples Services,Head of Childrens Social Care,Third Party Payments,440046,Other third party payments E440,04/04/2023,4119283-30121025,"3,298.49",MAJOR RECRUITMENT LTD.
Children and Young Peoples Services,Head of Childrens Social Care,Third Party Payments,440046,Other third party payments E440,04/04/2023,4119283-30121026,"6,059.98",MAJOR RECRUITMENT LTD.
Children and Young Peoples Services,Head of Childrens Social Care,Third Party Payments,440046,Other third party payments E440,04/04/2023,4119283-30121028,"8,146.09",MAJOR RECRUITMENT LTD.
Children and Young Peoples Services,Head of Childrens Social Care,Third Party Payments,440046,Other third party payments E440,04/04/2023,4119283-30121029,"2,489.24",MAJOR RECRUITMENT LTD.
Children and Young Peoples Services,Head of Childrens Social Care,Third Party Payments,440046,Other third party payments E440,04/04/2023,4119283-30121032,"9,166.76",MAJOR RECRUITMENT LTD.
Children and Young Peoples Services,Head of Childrens Social Care,Third Party Payments,440046,Other third party payments E440,04/04/2023,4119283-30121033,"4,309.45",MAJOR RECRUITMENT LTD.
Children and Young Peoples Services,Head of Childrens Social Care,Third Party Payments,440046,Other third party payments E440,04/04/2023,4119283-30121035,810.96,MAJOR RECRUITMENT LTD.
Children and Young Peoples Services,Head of Childrens Social Care,Third Party Payments,440046,Other third party payments E440,04/04/2023,4119283-30121036,"2,475.72",MAJOR RECRUITMENT LTD.
Children and Young Peoples Services,Head of Childrens Social Care,Third Party Payments,440046,Other third party payments E440,04/04/2023,4119283-30121037,745.00,MAJOR RECRUITMENT LTD.
Children and Young Peoples Services,Head of Childrens Social Care,Third Party Payments,440046,Other third party payments E440,04/04/2023,4119283-30121038,"9,025.76",MAJOR RECRUITMENT LTD.
Children and Young Peoples Services,Head of Childrens Social Care,Third Party Payments,440046,Other third party payments E440,04/04/2023,4119283-30121039,"8,736.43",MAJOR RECRUITMENT LTD.
Children and Young Peoples Services,Head of Childrens Social Care,Third Party Payments,440046,Other third party payments E440,04/04/2023,4119283-30121040,"1,800.66",MAJOR RECRUITMENT LTD.
Children and Young Peoples Services,Head of Childrens Social Care,Third Party Payments,440046,Other third party payments E440,04/04/2023,4119283-30121041,767.00,MAJOR RECRUITMENT LTD.
Children and Young Peoples Services,Head of Childrens Social Care,Third Party Payments,440046,Other third party payments E440,04/04/2023,4119283-30121042,"10,591.94",MAJOR RECRUITMENT LTD.
Children and Young Peoples Services,Head of Childrens Social Care,Third Party Payments,440046,Other third party payments E440,04/04/2023,4119283-30121043,"9,033.52",MAJOR RECRUITMENT LTD.
Children and Young Peoples Services,Head of Childrens Social Care,Third Party Payments,440046,Other third party payments E440,04/04/2023,4119283-30121044,"1,770.96",MAJOR RECRUITMENT LTD.
Children and Young Peoples Services,Head of Childrens Social Care,Third Party Payments,440046,Other third party payments E440,04/04/2023,4119283-30121045,806.72,MAJOR RECRUITMENT LTD.
Adult and Health Services,Head of Adults,Third Party Payments,478151,Purchase of Care,04/04/2023,4119052-SI-1869,"1,798.23",ACCEPT CARE LTD.
Adult and Health Services,Head of Adults,Third Party Payments,478151,Purchase of Care,04/04/2023,4119130-421R233594L1,"4,794.20",COMMUNITY INTEGRATED CARE LTD.
Adult and Health Services,Head of Adults,Third Party Payments,478151,Purchase of Care,04/04/2023,4119130-421R235598L1,"7,006.52",COMMUNITY INTEGRATED CARE LTD.
Adult and Health Services,Commissioning inc Supporting People,Third Party Payments,470111,Purchase of Care,04/04/2023,4119269-LCD-FTI136834,"5,132.89",LEONARD CHESHIRE DISABILITY.
Adult and Health Services,Commissioning inc Supporting People,Third Party Payments,479111,Purchase of Care,04/04/2023,4119282-12063,"11,757.00",MAIN - TAKING AUTISM PERSONALLY.
Regeneration Economy and Growth,Corporate Property and Land,Third Party Payments,430100,Rendered by Private Contractors,04/04/2023,4119076-5688,"8,820.00",APEX ROOFING SPECIALISTS LTD.
Regeneration Economy and Growth,Culture Sport and Tourism,Third Party Payments,430100,Rendered by Private Contractors,04/04/2023,4119131-INV00622,"2,492.09",COMPETITION LINE UK LTD T/A LIFESTYLE FITNESS.
Regeneration Economy and Growth,Corporate Property and Land,Third Party Payments,430100,Rendered by Private Contractors,04/04/2023,4119214-13793,"1,937.04",INGLEFORD SCAFFOLDING LTD.
Regeneration Economy and Growth,Corporate Property and Land,Third Party Payments,430100,Rendered by Private Contractors,04/04/2023,4119359-24230,"182,632.55",SEYMOUR (CIVIL ENGINEERING CONTRACTORS) LTD.
Regeneration Economy and Growth,Corporate Property and Land,Third Party Payments,430100,Rendered by Private Contractors,04/04/2023,4119359-24271,"33,082.19",SEYMOUR (CIVIL ENGINEERING CONTRACTORS) LTD.
Regeneration Economy and Growth,Transport and Contracted Services,Third Party Payments,430100,Rendered by Private Contractors,04/04/2023,4119390-INV-32184,"1,722.92",T3 SECURITY LTD.
Regeneration Economy and Growth,Corporate Property and Land,Third Party Payments,430100,Rendered by Private Contractors,04/04/2023,4119299-DCC275,"1,500.00",REDACTED - PAYMENT TO INDIVIDUAL
Regeneration Economy and Growth,Corporate Property and Land,Third Party Payments,430100,Rendered by Private Contractors,04/04/2023,4119299-DCC276,"1,500.00",REDACTED - PAYMENT TO INDIVIDUAL
Regeneration Economy and Growth,Corporate Property and Land,Third Party Payments,430100,Rendered by Private Contractors,04/04/2023,4119299-DCC277,"1,500.00",REDACTED - PAYMENT TO INDIVIDUAL
Dedicated Schools Grant BG0015,DSG Early Years Block,Transfer Payments,510032,School Children,04/04/2023,4119241-35134,808.76,REDACTED - PAYMENT TO INDIVIDUAL
Dedicated Schools Grant BG0015,DSG Early Years Block,Transfer Payments,510030,School Children,04/04/2023,4119256-35529,"1,104.19",REDACTED - PAYMENT TO INDIVIDUAL
Dedicated Schools Grant BG0015,DSG Early Years Block,Transfer Payments,510030,School Children,04/04/2023,4119284-35541,633.26,REDACTED - PAYMENT TO INDIVIDUAL
Dedicated Schools Grant BG0015,DSG Early Years Block,Transfer Payments,510030,School Children,04/04/2023,4119297-35519,625.95,REDACTED - PAYMENT TO INDIVIDUAL
Dedicated Schools Grant BG0015,DSG Early Years Block,Transfer Payments,510030,School Children,04/04/2023,4119046-35312,"6,771.38",1EXCELLENCE MULTI ACADEMY TRUST.
Dedicated Schools Grant BG0015,DSG Early Years Block,Transfer Payments,510030,School Children,04/04/2023,4119047-35363,"19,825.36",1EXCELLENCE MULTI ACADEMY TRUST.
Dedicated Schools Grant BG0015,DSG Early Years Block,Transfer Payments,510032,School Children,04/04/2023,4119053-35148,"5,661.34",ADVANCE LEARNING PARTNERSHIP.
Dedicated Schools Grant BG0015,DSG Early Years Block,Transfer Payments,510030,School Children,04/04/2023,4119053-35345,"13,250.25",ADVANCE LEARNING PARTNERSHIP.
Dedicated Schools Grant BG0015,DSG Early Years Block,Transfer Payments,510032,School Children,04/04/2023,4119054-35150,"5,661.34",ADVANCE LEARNING PARTNERSHIP.
Dedicated Schools Grant BG0015,DSG Early Years Block,Transfer Payments,510030,School Children,04/04/2023,4119054-35347,"11,661.98",ADVANCE LEARNING PARTNERSHIP.
Dedicated Schools Grant BG0015,DSG Early Years Block,Transfer Payments,510030,School Children,04/04/2023,4119055-35324,"19,875.38",ADVANCE LEARNING PARTNERSHIP.
Dedicated Schools Grant BG0015,DSG Early Years Block,Transfer Payments,510030,School Children,04/04/2023,4119056-35595,"2,807.51",ADVANCE LEARNING PARTNERSHIP.
Dedicated Schools Grant BG0015,DSG Early Years Block,Transfer Payments,510030,School Children,04/04/2023,4119057-35544,"8,303.49",ADVANCE LEARNING PARTNERSHIP.
Dedicated Schools Grant BG0015,DSG Early Years Block,Transfer Payments,510030,School Children,04/04/2023,4119058-35459,"9,937.69",ADVANCE LEARNING PARTNERSHIP.
Dedicated Schools Grant BG0015,DSG Early Years Block,Transfer Payments,510032,School Children,04/04/2023,4119059-35203,808.76,ADVENTURE VALLEY DAY NURSERY LTD.
Dedicated Schools Grant BG0015,DSG Early Years Block,Transfer Payments,510030,School Children,04/04/2023,4119059-35444,"20,512.64",ADVENTURE VALLEY DAY NURSERY LTD.
Dedicated Schools Grant BG0015,DSG Early Years Block,Transfer Payments,510032,School Children,04/04/2023,4119078-35212,"1,887.11",AYCLIFFE DAY NURSERY.
Dedicated Schools Grant BG0015,DSG Early Years Block,Transfer Payments,510030,School Children,04/04/2023,4119078-35455,"7,591.35",AYCLIFFE DAY NURSERY.
Dedicated Schools Grant BG0015,DSG Early Years Block,Transfer Payments,510032,School Children,04/04/2023,4119082-35111,"8,492.01",BISHOP AUCKLAND COLLEGE NURSERY.
Dedicated Schools Grant BG0015,DSG Early Years Block,Transfer Payments,510030,School Children,04/04/2023,4119082-35295,"38,678.89",BISHOP AUCKLAND COLLEGE NURSERY.
Dedicated Schools Grant BG0015,DSG Early Years Block,Transfer Payments,510032,School Children,04/04/2023,4119083-35152,"6,470.10",BISHOP CHADWICK CATHOLIC EDUCATION TRUST (NSCET).
Dedicated Schools Grant BG0015,DSG Early Years Block,Transfer Payments,510030,School Children,04/04/2023,4119083-35349,"16,928.44",BISHOP CHADWICK CATHOLIC EDUCATION TRUST (NSCET).
Dedicated Schools Grant BG0015,DSG Early Years Block,Transfer Payments,510030,School Children,04/04/2023,4119084-35296,"15,900.30",BISHOP CHADWICK CATHOLIC EDUCATION TRUST (NSCET).
Dedicated Schools Grant BG0015,DSG Early Years Block,Transfer Payments,510030,School Children,04/04/2023,4119085-35574,"11,174.38",BISHOP HOGARTH CATHOLIC EDUCATION TRUST.
Dedicated Schools Grant BG0015,DSG Early Years Block,Transfer Payments,510030,School Children,04/04/2023,4119086-35359,"7,774.65",BISHOP HOGARTH CATHOLIC EDUCATION TRUST.
Dedicated Schools Grant BG0015,DSG Early Years Block,Transfer Payments,510030,School Children,04/04/2023,4119087-35547,"2,650.05",BISHOP HOGARTH CATHOLIC EDUCATION TRUST.
Dedicated Schools Grant BG0015,DSG Early Years Block,Transfer Payments,510030,School Children,04/04/2023,4119088-35578,"8,082.65",BISHOP HOGARTH CATHOLIC EDUCATION TRUST.
Dedicated Schools Grant BG0015,DSG Early Years Block,Transfer Payments,510030,School Children,04/04/2023,4119089-35360,"13,250.25",BISHOP HOGARTH CATHOLIC EDUCATION TRUST.
Dedicated Schools Grant BG0015,DSG Early Years Block,Transfer Payments,510032,School Children,04/04/2023,4119090-35112,808.76,BISHOP HOGARTH CATHOLIC EDUCATION TRUST.
Dedicated Schools Grant BG0015,DSG Early Years Block,Transfer Payments,510030,School Children,04/04/2023,4119090-35297,"9,937.69",BISHOP HOGARTH CATHOLIC EDUCATION TRUST.
Dedicated Schools Grant BG0015,DSG Early Years Block,Transfer Payments,510030,School Children,04/04/2023,4119091-35575,"3,312.56",BISHOP HOGARTH CATHOLIC EDUCATION TRUST.
Dedicated Schools Grant BG0015,DSG Early Years Block,Transfer Payments,510030,School Children,04/04/2023,4119092-35362,"13,692.02",BISHOP HOGARTH CATHOLIC EDUCATION TRUST.
Dedicated Schools Grant BG0015,DSG Early Years Block,Transfer Payments,510030,School Children,04/04/2023,4119093-35577,"4,965.68",BISHOP HOGARTH CATHOLIC EDUCATION TRUST.
Dedicated Schools Grant BG0015,DSG Early Years Block,Transfer Payments,510030,School Children,04/04/2023,4119094-35293,"15,549.30",BISHOP WILKINSON CATHOLIC EDUCATION TRUST.
Dedicated Schools Grant BG0015,DSG Early Years Block,Transfer Payments,510030,School Children,04/04/2023,4119095-35576,662.51,BISHOP WILKINSON CATHOLIC EDUCATION TRUST.
Dedicated Schools Grant BG0015,DSG Early Years Block,Transfer Payments,510030,School Children,04/04/2023,4119096-35365,"33,042.26",BISHOP WILKINSON CATHOLIC EDUCATION TRUST.
Dedicated Schools Grant BG0015,DSG Early Years Block,Transfer Payments,510030,School Children,04/04/2023,4119097-35361,"33,125.63",BISHOP WILKINSON CATHOLIC EDUCATION TRUST.
Dedicated Schools Grant BG0015,DSG Early Years Block,Transfer Payments,510030,School Children,04/04/2023,4119098-35573,"12,309.86",BISHOP WILKINSON CATHOLIC EDUCATION TRUST.
Dedicated Schools Grant BG0015,DSG Early Years Block,Transfer Payments,510030,School Children,04/04/2023,4119099-35366,"9,394.37",BISHOP WILKINSON CATHOLIC EDUCATION TRUST.
Dedicated Schools Grant BG0015,DSG Early Years Block,Transfer Payments,510032,School Children,04/04/2023,4119100-35143,"9,705.15",BLUE SKY CHILDCARE.
Dedicated Schools Grant BG0015,DSG Early Years Block,Transfer Payments,510030,School Children,04/04/2023,4119100-35339,"41,738.29",BLUE SKY CHILDCARE.
Dedicated Schools Grant BG0015,DSG Early Years Block,Transfer Payments,510030,School Children,04/04/2023,4119101-35311,"25,267.61",BOW SCHOOL & NURSERY.
Dedicated Schools Grant BG0015,DSG Early Years Block,Transfer Payments,510032,School Children,04/04/2023,4119102-35113,"1,617.53",BOWES PRE SCHOOL.
Dedicated Schools Grant BG0015,DSG Early Years Block,Transfer Payments,510030,School Children,04/04/2023,4119102-35298,"1,377.09",BOWES PRE SCHOOL.
Dedicated Schools Grant BG0015,DSG Early Years Block,Transfer Payments,510032,School Children,04/04/2023,4119104-35217,"4,582.99",BRIGHT STAR NURSERY.
Dedicated Schools Grant BG0015,DSG Early Years Block,Transfer Payments,510030,School Children,04/04/2023,4119104-35461,"27,758.25",BRIGHT STAR NURSERY.
Dedicated Schools Grant BG0015,DSG Early Years Block,Transfer Payments,510032,School Children,04/04/2023,4119105-35115,"5,661.34",BUDDIES CHILDCARE CENTRE.
Dedicated Schools Grant BG0015,DSG Early Years Block,Transfer Payments,510030,School Children,04/04/2023,4119105-35300,"16,845.08",BUDDIES CHILDCARE CENTRE.
Dedicated Schools Grant BG0015,DSG Early Years Block,Transfer Payments,510032,School Children,04/04/2023,4119106-35116,"16,175.25",BUSY BEARS (DURHAM) LTD.
Dedicated Schools Grant BG0015,DSG Early Years Block,Transfer Payments,510030,School Children,04/04/2023,4119106-35302,"85,607.54",BUSY BEARS (DURHAM) LTD.
Dedicated Schools Grant BG0015,DSG Early Years Block,Transfer Payments,510032,School Children,04/04/2023,4119107-35117,"4,852.58",BUSY BEES (DURHAM) LTD.
Dedicated Schools Grant BG0015,DSG Early Years Block,Transfer Payments,510030,School Children,04/04/2023,4119107-35303,"157,436.66",BUSY BEES (DURHAM) LTD.
Dedicated Schools Grant BG0015,DSG Early Years Block,Transfer Payments,510030,School Children,04/04/2023,4119108-35462,655.20,BUTTERFLIES DAY CARE.
Dedicated Schools Grant BG0015,DSG Early Years Block,Transfer Payments,510032,School Children,04/04/2023,4119110-35218,"4,582.99",BYERLEY ROAD PRE SCHOOL.
Dedicated Schools Grant BG0015,DSG Early Years Block,Transfer Payments,510030,School Children,04/04/2023,4119110-35463,"5,962.61",BYERLEY ROAD PRE SCHOOL.
Dedicated Schools Grant BG0015,DSG Early Years Block,Transfer Payments,510032,School Children,04/04/2023,4119113-35221,"1,599.55",CASTLE KINDERGARTEN LTD.
Dedicated Schools Grant BG0015,DSG Early Years Block,Transfer Payments,510030,School Children,04/04/2023,4119113-35466,"7,176.98",CASTLE KINDERGARTEN LTD.
Dedicated Schools Grant BG0015,DSG Early Years Block,Transfer Payments,510032,School Children,04/04/2023,4119114-35220,"4,313.40",CASTLE KINDERGARTEN LTD.
Dedicated Schools Grant BG0015,DSG Early Years Block,Transfer Payments,510030,School Children,04/04/2023,4119114-35465,"17,225.33",CASTLE KINDERGARTEN LTD.
Dedicated Schools Grant BG0015,DSG Early Years Block,Transfer Payments,510032,School Children,04/04/2023,4119115-35222,"1,003.70",CASTLE VIEW PRIVATE DAY NURSERY LTD.
Dedicated Schools Grant BG0015,DSG Early Years Block,Transfer Payments,510030,School Children,04/04/2023,4119115-35467,"39,349.48",CASTLE VIEW PRIVATE DAY NURSERY LTD.
Dedicated Schools Grant BG0015,DSG Early Years Block,Transfer Payments,510032,School Children,04/04/2023,4119127-35118,808.76,CLEVER CLOGS DAY NURSERIES LTD.
Dedicated Schools Grant BG0015,DSG Early Years Block,Transfer Payments,510030,School Children,04/04/2023,4119127-35305,"40,996.80",CLEVER CLOGS DAY NURSERIES LTD.
Dedicated Schools Grant BG0015,DSG Early Years Block,Transfer Payments,510032,School Children,04/04/2023,4119128-35119,"4,852.58",CLEVER CLOGS DAY NURSERY (DURHAM) LTD.
Dedicated Schools Grant BG0015,DSG Early Years Block,Transfer Payments,510030,School Children,04/04/2023,4119128-35306,"54,422.55",CLEVER CLOGS DAY NURSERY (DURHAM) LTD.
Dedicated Schools Grant BG0015,DSG Early Years Block,Transfer Payments,510030,School Children,04/04/2023,4119132-35476,"3,671.36",CONKERS LIFE LTD (NURSERY SCHOOL).
Dedicated Schools Grant BG0015,DSG Early Years Block,Transfer Payments,510032,School Children,04/04/2023,4119134-35125,"6,470.10",CORE CARE EVENWOOD LTD T/A FLOWERPOTS NURSERY.
Dedicated Schools Grant BG0015,DSG Early Years Block,Transfer Payments,510030,School Children,04/04/2023,4119134-35315,"9,275.18",CORE CARE EVENWOOD LTD T/A FLOWERPOTS NURSERY.
Dedicated Schools Grant BG0015,DSG Early Years Block,Transfer Payments,510032,School Children,04/04/2023,4119135-35131,"12,940.20",CORECARE N/A LTD.
Dedicated Schools Grant BG0015,DSG Early Years Block,Transfer Payments,510030,School Children,04/04/2023,4119135-35323,"15,574.16",CORECARE N/A LTD.
Dedicated Schools Grant BG0015,DSG Early Years Block,Transfer Payments,510032,School Children,04/04/2023,4119137-35225,"2,156.70",COUNDON & LEEHOLME EARLY YEARS CENTRE LTD.
Dedicated Schools Grant BG0015,DSG Early Years Block,Transfer Payments,510030,School Children,04/04/2023,4119137-35477,"7,368.08",COUNDON & LEEHOLME EARLY YEARS CENTRE LTD.
Dedicated Schools Grant BG0015,DSG Early Years Block,Transfer Payments,510032,School Children,04/04/2023,4119138-35226,"2,695.88",CRAGHEAD CHILDCARE CENTRE.
Dedicated Schools Grant BG0015,DSG Early Years Block,Transfer Payments,510030,School Children,04/04/2023,4119138-35478,"7,259.85",CRAGHEAD CHILDCARE CENTRE.
Dedicated Schools Grant BG0015,DSG Early Years Block,Transfer Payments,510032,School Children,04/04/2023,4119145-35166,"1,779.28",DAYPARK LTD T/A YELLOW WELLIES.
Dedicated Schools Grant BG0015,DSG Early Years Block,Transfer Payments,510030,School Children,04/04/2023,4119145-35378,"20,430.05",DAYPARK LTD T/A YELLOW WELLIES.
Dedicated Schools Grant BG0015,DSG Early Years Block,Transfer Payments,510032,School Children,04/04/2023,4119146-35165,"6,524.02",DAYPARK LTD T/A YELLOW WELLIES.
Dedicated Schools Grant BG0015,DSG Early Years Block,Transfer Payments,510030,School Children,04/04/2023,4119146-35377,"29,178.24",DAYPARK LTD T/A YELLOW WELLIES.
Dedicated Schools Grant BG0015,DSG Early Years Block,Transfer Payments,510032,School Children,04/04/2023,4119148-35121,"1,617.53",DEERNESS VALLEY NURSERY SCHOOL.
Dedicated Schools Grant BG0015,DSG Early Years Block,Transfer Payments,510030,School Children,04/04/2023,4119148-35309,"29,459.72",DEERNESS VALLEY NURSERY SCHOOL.
Dedicated Schools Grant BG0015,DSG Early Years Block,Transfer Payments,510032,School Children,04/04/2023,4119153-35122,"2,426.29",DO RE MI DAY NURSERY.
Dedicated Schools Grant BG0015,DSG Early Years Block,Transfer Payments,510030,School Children,04/04/2023,4119153-35310,"69,971.85",DO RE MI DAY NURSERY.
Dedicated Schools Grant BG0015,DSG Early Years Block,Transfer Payments,510030,School Children,04/04/2023,4119155-35505,985.08,DURHAM & NEWCASTLE DIOCESAN LEARNING TRUST T/A INGLETON CE PRIMARY SCHOOL
Dedicated Schools Grant BG0015,DSG Early Years Block,Transfer Payments,510030,School Children,04/04/2023,4119156-35579,"8,177.78",DURHAM & NEWCASTLE DIOCESAN LEARNING TRUST T/A STANHOPE BARRINGTON C OF E PRIMARY SCHOOL.
Dedicated Schools Grant BG0015,DSG Early Years Block,Transfer Payments,510032,School Children,04/04/2023,4119158-35230,"1,887.11",EARLY LEARNERS PRIVATE DAY NURSERY.
Dedicated Schools Grant BG0015,DSG Early Years Block,Transfer Payments,510030,School Children,04/04/2023,4119158-35486,"1,106.56",EARLY LEARNERS PRIVATE DAY NURSERY.
Dedicated Schools Grant BG0015,DSG Early Years Block,Transfer Payments,510032,School Children,04/04/2023,4119160-35259,"1,078.35",EAST DURHAM COLLEGE.
Dedicated Schools Grant BG0015,DSG Early Years Block,Transfer Payments,510030,School Children,04/04/2023,4119160-35552,"8,612.66",EAST DURHAM COLLEGE.
Dedicated Schools Grant BG0015,DSG Early Years Block,Transfer Payments,510032,School Children,04/04/2023,4119161-35214,"3,774.23",EDEN ACADEMY TRUST LTD T/A BLUEBELL MEADOW PRIMARY SCHOOL.
Dedicated Schools Grant BG0015,DSG Early Years Block,Transfer Payments,510030,School Children,04/04/2023,4119161-35458,"8,038.49",EDEN ACADEMY TRUST LTD T/A BLUEBELL MEADOW PRIMARY SCHOOL.
Dedicated Schools Grant BG0015,DSG Early Years Block,Transfer Payments,510032,School Children,04/04/2023,4119162-35231,"2,156.70",EDEN GARDEN NURSERY.
Dedicated Schools Grant BG0015,DSG Early Years Block,Transfer Payments,510030,School Children,04/04/2023,4119162-35487,"12,727.65",EDEN GARDEN NURSERY.
Dedicated Schools Grant BG0015,DSG Early Years Block,Transfer Payments,510030,School Children,04/04/2023,4119163-35470,"16,562.81",EDEN LEARNING TRUST T/A CHILTON ACADEMY.
Dedicated Schools Grant BG0015,DSG Early Years Block,Transfer Payments,510032,School Children,04/04/2023,4119173-35233,"4,582.99",EMERALDS LITTLE GEMS DAYCARE LTD.
Dedicated Schools Grant BG0015,DSG Early Years Block,Transfer Payments,510032,School Children,04/04/2023,4119174-35234,"5,930.93",EMERALDS LITTLE GEMS DAYCARE LTD.
Dedicated Schools Grant BG0015,DSG Early Years Block,Transfer Payments,510030,School Children,04/04/2023,4119174-35491,"9,275.18",EMERALDS LITTLE GEMS DAYCARE LTD.
Dedicated Schools Grant BG0015,DSG Early Years Block,Transfer Payments,510030,School Children,04/04/2023,4119174-35492,"24,242.40",EMERALDS LITTLE GEMS DAYCARE LTD.
Dedicated Schools Grant BG0015,DSG Early Years Block,Transfer Payments,510032,School Children,04/04/2023,4119176-35123,"7,278.86",EXPLORERS DAY CARE.
Dedicated Schools Grant BG0015,DSG Early Years Block,Transfer Payments,510030,School Children,04/04/2023,4119176-35313,"90,704.25",EXPLORERS DAY CARE.
Dedicated Schools Grant BG0015,DSG Early Years Block,Transfer Payments,510032,School Children,04/04/2023,4119179-35124,"4,043.81",FIRST STEPS NURSERY.
Dedicated Schools Grant BG0015,DSG Early Years Block,Transfer Payments,510030,School Children,04/04/2023,4119179-35314,"31,297.50",FIRST STEPS NURSERY.
Dedicated Schools Grant BG0015,DSG Early Years Block,Transfer Payments,510032,School Children,04/04/2023,4119184-35236,"2,695.88",GIANT STEPS LTD.
Dedicated Schools Grant BG0015,DSG Early Years Block,Transfer Payments,510030,School Children,04/04/2023,4119184-35496,"10,920.00",GIANT STEPS LTD.
Dedicated Schools Grant BG0015,DSG Early Years Block,Transfer Payments,510032,School Children,04/04/2023,4119185-35235,"1,347.94",GIANT STEPS LTD.
Dedicated Schools Grant BG0015,DSG Early Years Block,Transfer Payments,510030,School Children,04/04/2023,4119185-35495,"6,619.28",GIANT STEPS LTD.
Dedicated Schools Grant BG0015,DSG Early Years Block,Transfer Payments,510030,School Children,04/04/2023,4119190-35497,"16,571.52",GREEN LANE NURSERY & CHILDCARE CENTRE.
Dedicated Schools Grant BG0015,DSG Early Years Block,Transfer Payments,510032,School Children,04/04/2023,4119194-35126,"10,513.91",HAPPY TIMES DAYCARE LTD.
Dedicated Schools Grant BG0015,DSG Early Years Block,Transfer Payments,510030,School Children,04/04/2023,4119194-35316,"3,202.88",HAPPY TIMES DAYCARE LTD.
Dedicated Schools Grant BG0015,DSG Early Years Block,Transfer Payments,510032,School Children,04/04/2023,4119195-35114,"14,557.73",HAPPYTIMES DAYCARE LTD.
Dedicated Schools Grant BG0015,DSG Early Years Block,Transfer Payments,510030,School Children,04/04/2023,4119195-35299,"7,207.20",HAPPYTIMES DAYCARE LTD.
Dedicated Schools Grant BG0015,DSG Early Years Block,Transfer Payments,510030,School Children,04/04/2023,4119196-35498,"7,508.48",HARTSIDE PRIMARY ACADEMY.
Dedicated Schools Grant BG0015,DSG Early Years Block,Transfer Payments,510032,School Children,04/04/2023,4119199-35127,"4,043.81",HAYSTACKS NURSERY..
Dedicated Schools Grant BG0015,DSG Early Years Block,Transfer Payments,510030,School Children,04/04/2023,4119199-35317,"64,140.86",HAYSTACKS NURSERY..
Dedicated Schools Grant BG0015,DSG Early Years Block,Transfer Payments,510032,School Children,04/04/2023,4119200-35128,"2,426.29",HAZEL DENE CHILDCARE LTD.
Dedicated Schools Grant BG0015,DSG Early Years Block,Transfer Payments,510030,School Children,04/04/2023,4119200-35318,"3,931.20",HAZEL DENE CHILDCARE LTD.
Dedicated Schools Grant BG0015,DSG Early Years Block,Transfer Payments,510032,School Children,04/04/2023,4119208-35129,"6,065.72",HIPPITOTS LTD.
Dedicated Schools Grant BG0015,DSG Early Years Block,Transfer Payments,510030,School Children,04/04/2023,4119208-35321,"35,092.84",HIPPITOTS LTD.
Dedicated Schools Grant BG0015,DSG Early Years Block,Transfer Payments,510032,School Children,04/04/2023,4119210-35130,"12,131.44",HOUSE OF EDEN LTD.
Dedicated Schools Grant BG0015,DSG Early Years Block,Transfer Payments,510030,School Children,04/04/2023,4119210-35322,"45,580.86",HOUSE OF EDEN LTD.
Dedicated Schools Grant BG0015,DSG Early Years Block,Transfer Payments,510032,School Children,04/04/2023,4119211-35133,"7,278.86",HOWLETCH & SHOTTON CHILDCARE LTD.
Dedicated Schools Grant BG0015,DSG Early Years Block,Transfer Payments,510030,School Children,04/04/2023,4119211-35326,"26,793.00",HOWLETCH & SHOTTON CHILDCARE LTD.
Dedicated Schools Grant BG0015,DSG Early Years Block,Transfer Payments,510032,School Children,04/04/2023,4119212-35132,"17,792.78",HOWLETCH & SHOTTON CHILDCARE LTD.
Dedicated Schools Grant BG0015,DSG Early Years Block,Transfer Payments,510030,School Children,04/04/2023,4119212-35325,"10,717.20",HOWLETCH & SHOTTON CHILDCARE LTD.
Dedicated Schools Grant BG0015,DSG Early Years Block,Transfer Payments,510030,School Children,04/04/2023,4119226-35548,"9,718.31",JIGSAW LEARNING TRUST.
Dedicated Schools Grant BG0015,DSG Early Years Block,Transfer Payments,510032,School Children,04/04/2023,4119245-35247,"1,617.53",KELLOE PHOENIX CENTRE (CHILDCARE).
Dedicated Schools Grant BG0015,DSG Early Years Block,Transfer Payments,510030,School Children,04/04/2023,4119245-35524,"3,416.40",KELLOE PHOENIX CENTRE (CHILDCARE).
Dedicated Schools Grant BG0015,DSG Early Years Block,Transfer Payments,510032,School Children,04/04/2023,4119249-35136,"3,235.05",KIDS 1ST NURSERIES DURHAM.
Dedicated Schools Grant BG0015,DSG Early Years Block,Transfer Payments,510030,School Children,04/04/2023,4119249-35329,"52,223.05",KIDS 1ST NURSERIES DURHAM.
Dedicated Schools Grant BG0015,DSG Early Years Block,Transfer Payments,510032,School Children,04/04/2023,4119250-35137,"7,278.86",KIDZ VILLAGE LTD.
Dedicated Schools Grant BG0015,DSG Early Years Block,Transfer Payments,510030,School Children,04/04/2023,4119250-35330,"16,197.19",KIDZ VILLAGE LTD.
Dedicated Schools Grant BG0015,DSG Early Years Block,Transfer Payments,510032,School Children,04/04/2023,4119251-35138,"6,470.10",KIDZONE.
Dedicated Schools Grant BG0015,DSG Early Years Block,Transfer Payments,510030,School Children,04/04/2023,4119251-35331,"28,828.80",KIDZONE.
Dedicated Schools Grant BG0015,DSG Early Years Block,Transfer Payments,510030,School Children,04/04/2023,4119253-35527,"5,910.45",KIRK MERRINGTON PRE SCHOOL.
Dedicated Schools Grant BG0015,DSG Early Years Block,Transfer Payments,510030,School Children,04/04/2023,4119254-35528,"6,989.99",KIRKLANDS DAY NURSERY.
Dedicated Schools Grant BG0015,DSG Early Years Block,Transfer Payments,510032,School Children,04/04/2023,4119266-35250,"1,887.11",LEADGATE CHILD CENTRE LTD.
Dedicated Schools Grant BG0015,DSG Early Years Block,Transfer Payments,510030,School Children,04/04/2023,4119266-35533,"13,173.71",LEADGATE CHILD CENTRE LTD.
Dedicated Schools Grant BG0015,DSG Early Years Block,Transfer Payments,510032,School Children,04/04/2023,4119273-35252,"4,043.81",LITTLE ACORNS NORTH EAST LTD.
Dedicated Schools Grant BG0015,DSG Early Years Block,Transfer Payments,510030,School Children,04/04/2023,4119273-35535,"6,921.53",LITTLE ACORNS NORTH EAST LTD.
Dedicated Schools Grant BG0015,DSG Early Years Block,Transfer Payments,510032,School Children,04/04/2023,4119274-35141,"8,195.46",LITTLE CUBS DAY NURSERY.
Dedicated Schools Grant BG0015,DSG Early Years Block,Transfer Payments,510030,School Children,04/04/2023,4119274-35336,"64,078.85",LITTLE CUBS DAY NURSERY.
Dedicated Schools Grant BG0015,DSG Early Years Block,Transfer Payments,510032,School Children,04/04/2023,4119275-35142,"12,131.44",LITTLE STARS EARLY YEARS.
Dedicated Schools Grant BG0015,DSG Early Years Block,Transfer Payments,510030,School Children,04/04/2023,4119275-35337,"10,563.35",LITTLE STARS EARLY YEARS.
Dedicated Schools Grant BG0015,DSG Early Years Block,Transfer Payments,510032,School Children,04/04/2023,4119276-35254,"4,043.81",LITTLE WAVES DAY NURSERY LTD.
Dedicated Schools Grant BG0015,DSG Early Years Block,Transfer Payments,510030,School Children,04/04/2023,4119276-35538,"11,925.23",LITTLE WAVES DAY NURSERY LTD.
Dedicated Schools Grant BG0015,DSG Early Years Block,Transfer Payments,510032,School Children,04/04/2023,4119314-35149,"8,087.63",NELLIE`S DAY NURSERY LTD.
Dedicated Schools Grant BG0015,DSG Early Years Block,Transfer Payments,510030,School Children,04/04/2023,4119314-35346,"16,251.30",NELLIE`S DAY NURSERY LTD.
Dedicated Schools Grant BG0015,DSG Early Years Block,Transfer Payments,510032,School Children,04/04/2023,4119315-35257,"1,617.53",NEW BEGINNINGS (MOORSIDE) CO LTD.
Dedicated Schools Grant BG0015,DSG Early Years Block,Transfer Payments,510030,School Children,04/04/2023,4119315-35546,"10,600.20",NEW BEGINNINGS (MOORSIDE) CO LTD.
Dedicated Schools Grant BG0015,DSG Early Years Block,Transfer Payments,510032,School Children,04/04/2023,4119318-35279,539.18,NORTHUMBRIA DAY NURSERIES LTD T/A WOODLANDS DAY NURSERY.
Dedicated Schools Grant BG0015,DSG Early Years Block,Transfer Payments,510030,School Children,04/04/2023,4119318-35596,640.58,NORTHUMBRIA DAY NURSERIES LTD T/A WOODLANDS DAY NURSERY.
Dedicated Schools Grant BG0015,DSG Early Years Block,Transfer Payments,510032,School Children,04/04/2023,4119319-35258,"1,078.35",NORTHUMBRIAN TRUST DAY NURSERIES LTD.
Dedicated Schools Grant BG0015,DSG Early Years Block,Transfer Payments,510030,School Children,04/04/2023,4119319-35550,"5,338.13",NORTHUMBRIAN TRUST DAY NURSERIES LTD.
Dedicated Schools Grant BG0015,DSG Early Years Block,Transfer Payments,510032,School Children,04/04/2023,4119321-35151,"13,641.13",NURSERYTIME LTD.
Dedicated Schools Grant BG0015,DSG Early Years Block,Transfer Payments,510030,School Children,04/04/2023,4119321-35348,"20,092.80",NURSERYTIME LTD.
Dedicated Schools Grant BG0015,DSG Early Years Block,Transfer Payments,510032,School Children,04/04/2023,4119327-35153,"12,131.44",PLAYDAY NURSERY.
Dedicated Schools Grant BG0015,DSG Early Years Block,Transfer Payments,510030,School Children,04/04/2023,4119327-35352,"42,588.00",PLAYDAY NURSERY.
Dedicated Schools Grant BG0015,DSG Early Years Block,Transfer Payments,510030,School Children,04/04/2023,4119328-35551,"6,320.50",PLAYOLOGY LTD.
Dedicated Schools Grant BG0015,DSG Early Years Block,Transfer Payments,510030,School Children,04/04/2023,4119334-35353,"5,358.53",RAINBOW NURSERY DURHAM HIGH SCHOOL.
Dedicated Schools Grant BG0015,DSG Early Years Block,Transfer Payments,510032,School Children,04/04/2023,4119335-35262,"3,774.23",RAINBOW NURSERY LTD (MIDDLESTONE MOOR).
Dedicated Schools Grant BG0015,DSG Early Years Block,Transfer Payments,510030,School Children,04/04/2023,4119335-35555,"17,225.33",RAINBOW NURSERY LTD (MIDDLESTONE MOOR).
Dedicated Schools Grant BG0015,DSG Early Years Block,Transfer Payments,510030,School Children,04/04/2023,4119338-35557,"17,225.33",RIBBON ACADEMY TRUST.
Dedicated Schools Grant BG0015,DSG Early Years Block,Transfer Payments,510032,School Children,04/04/2023,4119339-35263,"5,391.75",RIBBON DAYCARE.
Dedicated Schools Grant BG0015,DSG Early Years Block,Transfer Payments,510030,School Children,04/04/2023,4119339-35558,"14,796.11",RIBBON DAYCARE.
Dedicated Schools Grant BG0015,DSG Early Years Block,Transfer Payments,510030,School Children,04/04/2023,4119347-35559,"3,975.08",SACRISTON ACADEMY - EARLY YEARS T/A PRIVATE NURSERY.
Dedicated Schools Grant BG0015,DSG Early Years Block,Transfer Payments,510032,School Children,04/04/2023,4119349-35155,808.76,SAPLINGS NATURE KINDERGARTEN & FOREST SCHOOL.
Dedicated Schools Grant BG0015,DSG Early Years Block,Transfer Payments,510030,School Children,04/04/2023,4119349-35355,"16,380.00",SAPLINGS NATURE KINDERGARTEN & FOREST SCHOOL.
Dedicated Schools Grant BG0015,DSG Early Years Block,Transfer Payments,510032,School Children,04/04/2023,4119355-34940,902.55,SEAHAM KINDERGARTEN LTD.
Dedicated Schools Grant BG0015,DSG Early Years Block,Transfer Payments,510032,School Children,04/04/2023,4119355-35265,"1,617.53",SEAHAM KINDERGARTEN LTD.
Dedicated Schools Grant BG0015,DSG Early Years Block,Transfer Payments,510030,School Children,04/04/2023,4119355-35565,"3,455.40",SEAHAM KINDERGARTEN LTD.
Dedicated Schools Grant BG0015,DSG Early Years Block,Transfer Payments,510032,School Children,04/04/2023,4119356-35266,"1,887.11",SEASIDE LANE NURSERY.
Dedicated Schools Grant BG0015,DSG Early Years Block,Transfer Payments,510030,School Children,04/04/2023,4119356-35566,"2,870.89",SEASIDE LANE NURSERY.
Dedicated Schools Grant BG0015,DSG Early Years Block,Transfer Payments,510030,School Children,04/04/2023,4119357-35568,890.24,SEDGEFIELD OUT OF SCHOOL FUN CLUB.
Dedicated Schools Grant BG0015,DSG Early Years Block,Transfer Payments,510032,School Children,04/04/2023,4119362-35267,539.18,SHINING STARS PARKHILL LTD.
Dedicated Schools Grant BG0015,DSG Early Years Block,Transfer Payments,510030,School Children,04/04/2023,4119362-35570,"6,291.87",SHINING STARS PARKHILL LTD.
Dedicated Schools Grant BG0015,DSG Early Years Block,Transfer Payments,510032,School Children,04/04/2023,4119364-35158,"1,617.53",SHOTLEY BRIDGE NURSERY SCHOOL LTD.
Dedicated Schools Grant BG0015,DSG Early Years Block,Transfer Payments,510030,School Children,04/04/2023,4119364-35357,"42,112.69",SHOTLEY BRIDGE NURSERY SCHOOL LTD.
Dedicated Schools Grant BG0015,DSG Early Years Block,Transfer Payments,510032,School Children,04/04/2023,4119371-35159,"8,896.39",ST OSWALD`S PRE SCHOOL LEARNING CENTRE.
Dedicated Schools Grant BG0015,DSG Early Years Block,Transfer Payments,510030,School Children,04/04/2023,4119371-35364,"49,719.35",ST OSWALD`S PRE SCHOOL LEARNING CENTRE.
Dedicated Schools Grant BG0015,DSG Early Years Block,Transfer Payments,510030,School Children,04/04/2023,4119372-35572,"5,868.53",STANLEY LEARNING PARTNERSHIP.
Dedicated Schools Grant BG0015,DSG Early Years Block,Transfer Payments,510030,School Children,04/04/2023,4119373-35301,"9,070.43",STANLEY LEARNING PARTNERSHIP.
Dedicated Schools Grant BG0015,DSG Early Years Block,Transfer Payments,510032,School Children,04/04/2023,4119374-35249,"3,235.05",STANLEY LEARNING PARTNERSHIP.
Dedicated Schools Grant BG0015,DSG Early Years Block,Transfer Payments,510030,School Children,04/04/2023,4119374-35530,"8,833.50",STANLEY LEARNING PARTNERSHIP.
Dedicated Schools Grant BG0015,DSG Early Years Block,Transfer Payments,510030,School Children,04/04/2023,4119375-35457,"4,195.91",STANLEY LEARNING PARTNERSHIP.
Dedicated Schools Grant BG0015,DSG Early Years Block,Transfer Payments,510030,School Children,04/04/2023,4119376-35475,"8,612.66",STANLEY LEARNING PARTNERSHIP.
Dedicated Schools Grant BG0015,DSG Early Years Block,Transfer Payments,510030,School Children,04/04/2023,4119379-35580,"6,319.95",STEPHENSON WAY ACADEMY & NURSERY SCHOOL.
Dedicated Schools Grant BG0015,DSG Early Years Block,Transfer Payments,510030,School Children,04/04/2023,4119380-35581,"4,798.95",STEPPING STONES DAY NURSERY (DURHAM).
Dedicated Schools Grant BG0015,DSG Early Years Block,Transfer Payments,510032,School Children,04/04/2023,4119383-35271,"4,852.58",SUNSHINE DAY NURSERY LTD.
Dedicated Schools Grant BG0015,DSG Early Years Block,Transfer Payments,510030,School Children,04/04/2023,4119383-35582,"14,897.03",SUNSHINE DAY NURSERY LTD.
Dedicated Schools Grant BG0015,DSG Early Years Block,Transfer Payments,510032,School Children,04/04/2023,4119384-35270,"5,661.34",SUNSHINE DAY NURSERY LTD.
Dedicated Schools Grant BG0015,DSG Early Years Block,Transfer Payments,510032,School Children,04/04/2023,4119385-35272,"3,235.05",SUNSHINE DAY NURSERY LTD.
Dedicated Schools Grant BG0015,DSG Early Years Block,Transfer Payments,510030,School Children,04/04/2023,4119385-35583,"9,275.18",SUNSHINE DAY NURSERY LTD.
Dedicated Schools Grant BG0015,DSG Early Years Block,Transfer Payments,510030,School Children,04/04/2023,4119394-35369,"5,518.67",THE EDUCATION PARTNERSHIP (UK) LTD.
Dedicated Schools Grant BG0015,DSG Early Years Block,Transfer Payments,510030,School Children,04/04/2023,4119395-35567,"16,413.15",THE LAIDLAW SCHOOLS TRUST T/A SEDGEFIELD HARDWICK PRIMARY SCHOOL.
Dedicated Schools Grant BG0015,DSG Early Years Block,Transfer Payments,510032,School Children,04/04/2023,4119396-35273,"4,043.81",THE LAURELS CHILD CARE COMPANY LTD.
Dedicated Schools Grant BG0015,DSG Early Years Block,Transfer Payments,510030,School Children,04/04/2023,4119396-35586,"10,821.04",THE LAURELS CHILD CARE COMPANY LTD.
Dedicated Schools Grant BG0015,DSG Early Years Block,Transfer Payments,510032,School Children,04/04/2023,4119398-35160,"8,411.13",THE NURSERY.
Dedicated Schools Grant BG0015,DSG Early Years Block,Transfer Payments,510030,School Children,04/04/2023,4119398-35370,"33,950.48",THE NURSERY.
Dedicated Schools Grant BG0015,DSG Early Years Block,Transfer Payments,510032,School Children,04/04/2023,4119399-35161,"7,278.86",TILLY MINTS CHERUBS DAY NURSERY LTD.
Dedicated Schools Grant BG0015,DSG Early Years Block,Transfer Payments,510030,School Children,04/04/2023,4119399-35371,"42,112.69",TILLY MINTS CHERUBS DAY NURSERY LTD.
Dedicated Schools Grant BG0015,DSG Early Years Block,Transfer Payments,510032,School Children,04/04/2023,4119400-35274,539.18,TINY TINKERS NURSERY.
Dedicated Schools Grant BG0015,DSG Early Years Block,Transfer Payments,510032,School Children,04/04/2023,4119402-35241,"4,852.58",TM NURSERY ENTERPRISES LTD T/A JACK IN THE BOX DAYCARE.
Dedicated Schools Grant BG0015,DSG Early Years Block,Transfer Payments,510030,School Children,04/04/2023,4119402-35506,"10,600.20",TM NURSERY ENTERPRISES LTD T/A JACK IN THE BOX DAYCARE.
Dedicated Schools Grant BG0015,DSG Early Years Block,Transfer Payments,510030,School Children,04/04/2023,4119404-35307,"41,075.78",TOGETHER LEARNING PARTNERSHIP (CLEVES CROSS PRIMARY SCHOOL).
Dedicated Schools Grant BG0015,DSG Early Years Block,Transfer Payments,510032,School Children,04/04/2023,4119405-35154,"6,470.10",TOGETHER LEARNING PARTNERSHIP (ROSA STREET PRIMARY SCHOOL).
Dedicated Schools Grant BG0015,DSG Early Years Block,Transfer Payments,510030,School Children,04/04/2023,4119405-35354,"24,512.96",TOGETHER LEARNING PARTNERSHIP (ROSA STREET PRIMARY SCHOOL).
Dedicated Schools Grant BG0015,DSG Early Years Block,Transfer Payments,510032,School Children,04/04/2023,4119407-35162,"18,601.54",TOTS `R` US.
Dedicated Schools Grant BG0015,DSG Early Years Block,Transfer Payments,510030,School Children,04/04/2023,4119407-35372,"25,552.80",TOTS `R` US.
Dedicated Schools Grant BG0015,DSG Early Years Block,Transfer Payments,510032,School Children,04/04/2023,4119410-35276,"1,617.53",TRIMDON`S LITTLE TYKES LTD.
Dedicated Schools Grant BG0015,DSG Early Years Block,Transfer Payments,510030,School Children,04/04/2023,4119410-35590,"1,104.19",TRIMDON`S LITTLE TYKES LTD.
Dedicated Schools Grant BG0015,DSG Early Years Block,Transfer Payments,510030,School Children,04/04/2023,4119411-35358,"27,825.53",TUDHOE LEARNING TRUST T/A SOUTH HETTON PRIMARY SCHOOL.
Dedicated Schools Grant BG0015,DSG Early Years Block,Transfer Payments,510032,School Children,04/04/2023,4119413-35229,539.18,UNIVERSITY OF DURHAM DAY NURSERY.
Dedicated Schools Grant BG0015,DSG Early Years Block,Transfer Payments,510030,School Children,04/04/2023,4119413-35485,"10,582.16",UNIVERSITY OF DURHAM DAY NURSERY.
Dedicated Schools Grant BG0015,DSG Early Years Block,Transfer Payments,510030,School Children,04/04/2023,4119417-35591,"8,276.13",VICTORIA LANE ACADEMY.
Dedicated Schools Grant BG0015,DSG Early Years Block,Transfer Payments,510032,School Children,04/04/2023,4119424-35164,"4,043.81",WESTFIELD HOUSE NURSERY.
Dedicated Schools Grant BG0015,DSG Early Years Block,Transfer Payments,510030,School Children,04/04/2023,4119424-35375,"45,352.13",WESTFIELD HOUSE NURSERY.
Dedicated Schools Grant BG0015,DSG Early Years Block,Transfer Payments,510032,School Children,04/04/2023,4119425-35277,"2,695.88",WHEATLEY HILL COMMUNITY NURSERY LTD.
Dedicated Schools Grant BG0015,DSG Early Years Block,Transfer Payments,510030,School Children,04/04/2023,4119425-35594,"7,207.20",WHEATLEY HILL COMMUNITY NURSERY LTD.
Dedicated Schools Grant BG0015,DSG Early Years Block,Transfer Payments,510032,School Children,04/04/2023,4119426-35278,"3,504.64",WINGATE COMMUNITY CHILDCARE LTD.
Dedicated Schools Grant BG0015,DSG Early Years Block,Transfer Payments,510030,School Children,04/04/2023,4119427-35376,"24,835.69",WITTON GILBERT PRE SCHOOL.
Dedicated Schools Grant BG0015,DSG Early Years Block,Transfer Payments,510030,School Children,04/04/2023,4119428-35597,"17,490.33",YORK HOUSE NURSERY.
Dedicated Schools Grant BG0015,DSG Early Years Block,Transfer Payments,510032,School Children,04/04/2023,4119430-35167,"7,548.45",YOUR CO-OP LITTLE PIONEERS NURSERY & PRE SCHOOL.
Dedicated Schools Grant BG0015,DSG Early Years Block,Transfer Payments,510030,School Children,04/04/2023,4119430-35379,"33,196.80",YOUR CO-OP LITTLE PIONEERS NURSERY & PRE SCHOOL.
Dedicated Schools Grant BG0015,DSG Early Years Block,Transfer Payments,510032,School Children,04/04/2023,4119065-35110,808.76,REDACTED - PAYMENT TO INDIVIDUAL
Dedicated Schools Grant BG0015,DSG Early Years Block,Transfer Payments,510030,School Children,04/04/2023,4119065-35294,"3,843.45",REDACTED - PAYMENT TO INDIVIDUAL
Dedicated Schools Grant BG0015,DSG Early Years Block,Transfer Payments,510032,School Children,04/04/2023,4119067-35205,539.18,REDACTED - PAYMENT TO INDIVIDUAL
Dedicated Schools Grant BG0015,DSG Early Years Block,Transfer Payments,510030,School Children,04/04/2023,4119067-35448,"1,669.20",REDACTED - PAYMENT TO INDIVIDUAL
Dedicated Schools Grant BG0015,DSG Early Years Block,Transfer Payments,510032,School Children,04/04/2023,4119068-35206,539.18,REDACTED - PAYMENT TO INDIVIDUAL
Dedicated Schools Grant BG0015,DSG Early Years Block,Transfer Payments,510030,School Children,04/04/2023,4119069-35452,"1,043.25",REDACTED - PAYMENT TO INDIVIDUAL
Dedicated Schools Grant BG0015,DSG Early Years Block,Transfer Payments,510032,School Children,04/04/2023,4119071-35207,539.18,REDACTED - PAYMENT TO INDIVIDUAL
Dedicated Schools Grant BG0015,DSG Early Years Block,Transfer Payments,510030,School Children,04/04/2023,4119071-35451,854.10,REDACTED - PAYMENT TO INDIVIDUAL
Dedicated Schools Grant BG0015,DSG Early Years Block,Transfer Payments,510032,School Children,04/04/2023,4119074-35211,934.57,REDACTED - PAYMENT TO INDIVIDUAL
Dedicated Schools Grant BG0015,DSG Early Years Block,Transfer Payments,510032,School Children,04/04/2023,4119080-35213,"2,426.29",REDACTED - PAYMENT TO INDIVIDUAL
Dedicated Schools Grant BG0015,DSG Early Years Block,Transfer Payments,510030,School Children,04/04/2023,4119080-35456,"11,444.16",REDACTED - PAYMENT TO INDIVIDUAL
Dedicated Schools Grant BG0015,DSG Early Years Block,Transfer Payments,510032,School Children,04/04/2023,4119123-35224,808.76,REDACTED - PAYMENT TO INDIVIDUAL
Dedicated Schools Grant BG0015,DSG Early Years Block,Transfer Payments,510030,School Children,04/04/2023,4119123-35473,"1,079.81",REDACTED - PAYMENT TO INDIVIDUAL
Dedicated Schools Grant BG0015,DSG Early Years Block,Transfer Payments,510030,School Children,04/04/2023,4119125-35304,"5,925.66",REDACTED - PAYMENT TO INDIVIDUAL
Dedicated Schools Grant BG0015,DSG Early Years Block,Transfer Payments,510030,School Children,04/04/2023,4119169-35488,655.20,REDACTED - PAYMENT TO INDIVIDUAL
Dedicated Schools Grant BG0015,DSG Early Years Block,Transfer Payments,510030,School Children,04/04/2023,4119170-35489,618.64,REDACTED - PAYMENT TO INDIVIDUAL
Dedicated Schools Grant BG0015,DSG Early Years Block,Transfer Payments,510032,School Children,04/04/2023,4119192-35253,539.18,REDACTED - PAYMENT TO INDIVIDUAL
Dedicated Schools Grant BG0015,DSG Early Years Block,Transfer Payments,510030,School Children,04/04/2023,4119192-35537,"4,103.29",REDACTED - PAYMENT TO INDIVIDUAL
Dedicated Schools Grant BG0015,DSG Early Years Block,Transfer Payments,510032,School Children,04/04/2023,4119198-35238,539.18,REDACTED - PAYMENT TO INDIVIDUAL
Dedicated Schools Grant BG0015,DSG Early Years Block,Transfer Payments,510030,School Children,04/04/2023,4119198-35500,"2,989.35",REDACTED - PAYMENT TO INDIVIDUAL
Dedicated Schools Grant BG0015,DSG Early Years Block,Transfer Payments,510032,School Children,04/04/2023,4119201-35239,539.18,REDACTED - PAYMENT TO INDIVIDUAL
Dedicated Schools Grant BG0015,DSG Early Years Block,Transfer Payments,510030,School Children,04/04/2023,4119201-35501,647.89,REDACTED - PAYMENT TO INDIVIDUAL
Dedicated Schools Grant BG0015,DSG Early Years Block,Transfer Payments,510030,School Children,04/04/2023,4119203-35503,"2,650.05",REDACTED - PAYMENT TO INDIVIDUAL
Dedicated Schools Grant BG0015,DSG Early Years Block,Transfer Payments,510032,School Children,04/04/2023,4119204-35240,539.18,REDACTED - PAYMENT TO INDIVIDUAL
Dedicated Schools Grant BG0015,DSG Early Years Block,Transfer Payments,510030,School Children,04/04/2023,4119217-35507,893.10,REDACTED - PAYMENT TO INDIVIDUAL
Dedicated Schools Grant BG0015,DSG Early Years Block,Transfer Payments,510030,School Children,04/04/2023,4119218-35508,640.58,REDACTED - PAYMENT TO INDIVIDUAL
Dedicated Schools Grant BG0015,DSG Early Years Block,Transfer Payments,510030,School Children,04/04/2023,4119219-35327,"1,836.12",REDACTED - PAYMENT TO INDIVIDUAL
Dedicated Schools Grant BG0015,DSG Early Years Block,Transfer Payments,510032,School Children,04/04/2023,4119229-35227,"2,426.29",REDACTED - PAYMENT TO INDIVIDUAL
Dedicated Schools Grant BG0015,DSG Early Years Block,Transfer Payments,510030,School Children,04/04/2023,4119229-35479,"6,838.81",REDACTED - PAYMENT TO INDIVIDUAL
Dedicated Schools Grant BG0015,DSG Early Years Block,Transfer Payments,510030,School Children,04/04/2023,4119231-35514,512.46,REDACTED - PAYMENT TO INDIVIDUAL
Dedicated Schools Grant BG0015,DSG Early Years Block,Transfer Payments,510030,School Children,04/04/2023,4119240-35521,"1,443.49",REDACTED - PAYMENT TO INDIVIDUAL
Dedicated Schools Grant BG0015,DSG Early Years Block,Transfer Payments,510032,School Children,04/04/2023,4119244-35135,"2,426.29",REDACTED - PAYMENT TO INDIVIDUAL
Dedicated Schools Grant BG0015,DSG Early Years Block,Transfer Payments,510030,School Children,04/04/2023,4119244-35328,"3,129.75",REDACTED - PAYMENT TO INDIVIDUAL
Dedicated Schools Grant BG0015,DSG Early Years Block,Transfer Payments,510030,School Children,04/04/2023,4119248-35526,"2,491.13",REDACTED - PAYMENT TO INDIVIDUAL
Dedicated Schools Grant BG0015,DSG Early Years Block,Transfer Payments,510032,School Children,04/04/2023,4119255-35139,"1,617.53",REDACTED - PAYMENT TO INDIVIDUAL
Dedicated Schools Grant BG0015,DSG Early Years Block,Transfer Payments,510030,School Children,04/04/2023,4119255-35332,"3,843.45",REDACTED - PAYMENT TO INDIVIDUAL
Dedicated Schools Grant BG0015,DSG Early Years Block,Transfer Payments,510030,School Children,04/04/2023,4119257-35536,"2,712.45",REDACTED - PAYMENT TO INDIVIDUAL
Dedicated Schools Grant BG0015,DSG Early Years Block,Transfer Payments,510032,School Children,04/04/2023,4119263-35140,808.76,REDACTED - PAYMENT TO INDIVIDUAL
Dedicated Schools Grant BG0015,DSG Early Years Block,Transfer Payments,510030,School Children,04/04/2023,4119263-35333,"1,377.09",REDACTED - PAYMENT TO INDIVIDUAL
Dedicated Schools Grant BG0015,DSG Early Years Block,Transfer Payments,510030,School Children,04/04/2023,4119264-35532,"2,886.98",REDACTED - PAYMENT TO INDIVIDUAL
Dedicated Schools Grant BG0015,DSG Early Years Block,Transfer Payments,510030,School Children,04/04/2023,4119265-35334,"1,237.28",REDACTED - PAYMENT TO INDIVIDUAL
Dedicated Schools Grant BG0015,DSG Early Years Block,Transfer Payments,510030,School Children,04/04/2023,4119270-35335,"1,266.53",REDACTED - PAYMENT TO INDIVIDUAL
Dedicated Schools Grant BG0015,DSG Early Years Block,Transfer Payments,510032,School Children,04/04/2023,4119277-35255,539.18,REDACTED - PAYMENT TO INDIVIDUAL
Dedicated Schools Grant BG0015,DSG Early Years Block,Transfer Payments,510030,School Children,04/04/2023,4119277-35539,633.26,REDACTED - PAYMENT TO INDIVIDUAL
Dedicated Schools Grant BG0015,DSG Early Years Block,Transfer Payments,510030,School Children,04/04/2023,4119279-35338,"4,099.68",REDACTED - PAYMENT TO INDIVIDUAL
Dedicated Schools Grant BG0015,DSG Early Years Block,Transfer Payments,510030,School Children,04/04/2023,4119285-35542,"1,649.70",REDACTED - PAYMENT TO INDIVIDUAL
Dedicated Schools Grant BG0015,DSG Early Years Block,Transfer Payments,510032,School Children,04/04/2023,4119287-35144,"2,426.29",REDACTED - PAYMENT TO INDIVIDUAL
Dedicated Schools Grant BG0015,DSG Early Years Block,Transfer Payments,510030,School Children,04/04/2023,4119287-35340,"1,266.53",REDACTED - PAYMENT TO INDIVIDUAL
Dedicated Schools Grant BG0015,DSG Early Years Block,Transfer Payments,510030,School Children,04/04/2023,4119289-35342,640.58,REDACTED - PAYMENT TO INDIVIDUAL
Dedicated Schools Grant BG0015,DSG Early Years Block,Transfer Payments,510032,School Children,04/04/2023,4119290-35146,"1,617.53",REDACTED - PAYMENT TO INDIVIDUAL
Dedicated Schools Grant BG0015,DSG Early Years Block,Transfer Payments,510030,School Children,04/04/2023,4119291-35343,"1,222.65",REDACTED - PAYMENT TO INDIVIDUAL
Dedicated Schools Grant BG0015,DSG Early Years Block,Transfer Payments,510032,School Children,04/04/2023,4119292-35147,808.76,REDACTED - PAYMENT TO INDIVIDUAL
Dedicated Schools Grant BG0015,DSG Early Years Block,Transfer Payments,510030,School Children,04/04/2023,4119292-35344,"2,474.55",REDACTED - PAYMENT TO INDIVIDUAL
Dedicated Schools Grant BG0015,DSG Early Years Block,Transfer Payments,510030,School Children,04/04/2023,4119296-35468,"1,153.04",REDACTED - PAYMENT TO INDIVIDUAL
Dedicated Schools Grant BG0015,DSG Early Years Block,Transfer Payments,510032,School Children,04/04/2023,4119301-35216,539.18,REDACTED - PAYMENT TO INDIVIDUAL
Dedicated Schools Grant BG0015,DSG Early Years Block,Transfer Payments,510030,School Children,04/04/2023,4119301-35460,655.20,REDACTED - PAYMENT TO INDIVIDUAL
Dedicated Schools Grant BG0015,DSG Early Years Block,Transfer Payments,510030,School Children,04/04/2023,4119305-35493,"1,237.28",REDACTED - PAYMENT TO INDIVIDUAL
Dedicated Schools Grant BG0015,DSG Early Years Block,Transfer Payments,510032,School Children,04/04/2023,4119310-35156,808.76,REDACTED - PAYMENT TO INDIVIDUAL
Dedicated Schools Grant BG0015,DSG Early Years Block,Transfer Payments,510030,School Children,04/04/2023,4119312-35585,716.37,REDACTED - PAYMENT TO INDIVIDUAL
Dedicated Schools Grant BG0015,DSG Early Years Block,Transfer Payments,510032,School Children,04/04/2023,4119313-35256,"1,347.94",REDACTED - PAYMENT TO INDIVIDUAL
Dedicated Schools Grant BG0015,DSG Early Years Block,Transfer Payments,510030,School Children,04/04/2023,4119313-35545,"2,989.35",REDACTED - PAYMENT TO INDIVIDUAL
Dedicated Schools Grant BG0015,DSG Early Years Block,Transfer Payments,510030,School Children,04/04/2023,4119325-35351,"1,961.31",REDACTED - PAYMENT TO INDIVIDUAL
Dedicated Schools Grant BG0015,DSG Early Years Block,Transfer Payments,510032,School Children,04/04/2023,4119332-35260,808.76,REDACTED - PAYMENT TO INDIVIDUAL
Dedicated Schools Grant BG0015,DSG Early Years Block,Transfer Payments,510030,School Children,04/04/2023,4119333-35554,"2,902.58",REDACTED - PAYMENT TO INDIVIDUAL
Dedicated Schools Grant BG0015,DSG Early Years Block,Transfer Payments,510030,School Children,04/04/2023,4119350-35560,647.89,REDACTED - PAYMENT TO INDIVIDUAL
Dedicated Schools Grant BG0015,DSG Early Years Block,Transfer Payments,510032,School Children,04/04/2023,4119351-35264,539.18,REDACTED - PAYMENT TO INDIVIDUAL
Dedicated Schools Grant BG0015,DSG Early Years Block,Transfer Payments,510030,School Children,04/04/2023,4119352-35562,"1,266.53",REDACTED - PAYMENT TO INDIVIDUAL
Dedicated Schools Grant BG0015,DSG Early Years Block,Transfer Payments,510030,School Children,04/04/2023,4119360-35569,"1,251.90",REDACTED - PAYMENT TO INDIVIDUAL
Dedicated Schools Grant BG0015,DSG Early Years Block,Transfer Payments,510032,School Children,04/04/2023,4119361-35157,808.76,REDACTED - PAYMENT TO INDIVIDUAL
Dedicated Schools Grant BG0015,DSG Early Years Block,Transfer Payments,510030,School Children,04/04/2023,4119361-35356,"4,586.40",REDACTED - PAYMENT TO INDIVIDUAL
Dedicated Schools Grant BG0015,DSG Early Years Block,Transfer Payments,510030,School Children,04/04/2023,4119369-35571,640.58,REDACTED - PAYMENT TO INDIVIDUAL
Dedicated Schools Grant BG0015,DSG Early Years Block,Transfer Payments,510030,School Children,04/04/2023,4119388-35367,640.58,REDACTED - PAYMENT TO INDIVIDUAL
Dedicated Schools Grant BG0015,DSG Early Years Block,Transfer Payments,510032,School Children,04/04/2023,4119415-35163,"3,235.05",REDACTED - PAYMENT TO INDIVIDUAL
Dedicated Schools Grant BG0015,DSG Early Years Block,Transfer Payments,510030,School Children,04/04/2023,4119415-35373,960.86,REDACTED - PAYMENT TO INDIVIDUAL
Children and Young Peoples Services,Head of Education and Skills,Supplies and Services,338094,Services,04/04/2023,4119136-1272,"1,145.00",CORNERSTONES CENTRE FOR THE COMMUNITY.
Adult and Health Services,Adults Excluded,Supplies and Services,338066,Services,04/04/2023,4119188-C-INV180384,"14,700.00",GLOBAL MEDIA GROUP SERVICES LTD.
Adult and Health Services,Adults Excluded,Supplies and Services,338066,Services,04/04/2023,4119188-C-INV187867,739.20,GLOBAL MEDIA GROUP SERVICES LTD.
Neighbourhoods and Climate Change,Environmental Services,Supplies and Services,338078,Services,04/04/2023,4119420-INV-56446,"3,039.60",VISTECH SERVICES LTD.
Neighbourhoods and Climate Change,Environmental Services,Supplies and Services,338078,Services,04/04/2023,4119420-INV-56447,"2,109.84",VISTECH SERVICES LTD.
Neighbourhoods and Climate Change,Environmental Services,Supplies and Services,338078,Services,04/04/2023,4119420-INV-56448,"1,233.72",VISTECH SERVICES LTD.
Neighbourhoods and Climate Change,Environmental Services,Supplies and Services,338078,Services,04/04/2023,4119420-INV-56449,"2,297.58",VISTECH SERVICES LTD.
Children and Young Peoples Services,Head of Early Help Inclusion & Vulnerable Children.,Supplies and Services,338078,Services,04/04/2023,4119420-INV-56453,"6,060.10",VISTECH SERVICES LTD.
Children and Young Peoples Services,Head of Education and Skills,Supplies and Services,338027,Services,04/04/2023,4119295-20,"1,102.50",REDACTED - PAYMENT TO INDIVIDUAL
Neighbourhoods and Climate Change,Highways,Stock A926,926900,Stock in hand-Inventory system,04/04/2023,4119431-1122477,980.58,YOUR NRG LTD.
Resources BK0010,Corporate Finance & Commercial Services,Supplies and Services,336005,Advertising E336,05/04/2023,4119640-42288364,"10,153.44",NEWSQUEST (YORKSHIRE & NORTH EAST) LTD.
Regeneration Economy and Growth,Planning & Housing,Supplies and Services,336005,Advertising E336,05/04/2023,4119640-42288762,910.99,NEWSQUEST (YORKSHIRE & NORTH EAST) LTD.
Children and Young Peoples Services,Head of Childrens Social Care,Employees,080025,Agency Staff,05/04/2023,4119548-2469582,"180,756.42",GEOMETRIC RESULTS INTERNATIONAL.
Neighbourhoods and Climate Change,Highways,Construction work A908,908109,Capital - Resurfacing,05/04/2023,4119639-1800011711818,777.14,NEWCASTLE UPON TYNE CITY COUNCIL.
Children and Young Peoples Services,Head of Early Help Inclusion & Vulnerable Children.,Premises,145023,Cleaning and Domestic Supplies,05/04/2023,4119554-06/216094,"1,018.64",GREENHAM TRADING LTD.
Neighbourhoods and Climate Change,Community Protection,Supplies and Services,342053,Computers and Communications,05/04/2023,4119483-C/SR264881,"6,572.80",CIVICA UK LTD.
Regeneration Economy and Growth,Corporate Property and Land,Supplies and Services,342225,Computers and Communications,05/04/2023,4119552-0181022,"3,264.00",GRAITEC LTD.
Neighbourhoods and Climate Change,Highways,Supplies and Services,342033,Computers and Communications,05/04/2023,4119571-2100543935,"5,864.64",INSIGHT DIRECT (UK) LTD.
Resources BK0010,Digital Services,Supplies and Services,342051,Computers and Communications,05/04/2023,4119755-LD64783,"1,848.00",XMA LTD.
Children and Young Peoples Services,Head of Early Help Inclusion & Vulnerable Children.,Supplies and Services,352001,Conference Expenses,05/04/2023,4119752-1109,975.00,WINNOVATION TRAINING LTD.
Regeneration Economy and Growth,Planning & Housing,Construction work A908,908105,Construction work,05/04/2023,4119446-96725704,732.00,APEX ACOUSTICS LTD.
Neighbourhoods and Climate Change,Highways,Construction work A908,908105,Construction work,05/04/2023,4119584-203241,"26,133.60",JOURNEO PASSENGER SYSTEMS LTD.
Regeneration Economy and Growth,Economic Development Level C,Construction work A908,908105,Construction work,05/04/2023,4119606-175914,"1,008.00",LUCION ENVIRONMENTAL LLP LTD.
Regeneration Economy and Growth,Transport and Contracted Services,Construction work A908,908105,Construction work,05/04/2023,4119759-1120029436,"12,370.80",YUNEX LTD T/A YUNEX TRAFFIC.
Neighbourhoods and Climate Change,Environmental Services,Fees,901002,Professional fees 901002,05/04/2023,4119563-26906,"1,629.00",HICKTON CONSULTANTS LIMITED.
Neighbourhoods and Climate Change,Environmental Services,Transport,230005,Contract Hire,05/04/2023,4119435-I239527,"1,594.39",ACL HIRE LTD.
Neighbourhoods and Climate Change,Environmental Services,Transport,230005,Contract Hire,05/04/2023,4119435-I239528,"1,594.39",ACL HIRE LTD.
Neighbourhoods and Climate Change,Environmental Services,Transport,230005,Contract Hire,05/04/2023,4119500-061764,"3,682.80",DAWSONGROUP ENVIRONMENTAL MUNICIAPL CIVIL LTD (EMC).
Neighbourhoods and Climate Change,Environmental Services,Transport,230005,Contract Hire,05/04/2023,4119500-061765,"3,682.80",DAWSONGROUP ENVIRONMENTAL MUNICIAPL CIVIL LTD (EMC).
Neighbourhoods and Climate Change,Environmental Services,Transport,230005,Contract Hire,05/04/2023,4119500-061766,"3,682.80",DAWSONGROUP ENVIRONMENTAL MUNICIAPL CIVIL LTD (EMC).
Neighbourhoods and Climate Change,Environmental Services,Transport,230005,Contract Hire,05/04/2023,4119649-SL07630893INV,"1,262.69",NORTHGATE VEHICLE HIRE LTD.
Children and Young Peoples Services,Head of Education and Skills,Transport,230008,Contract Hire,05/04/2023,4119485-19/23,"7,268.00",CLARKS TAXIS LTD.
Regeneration Economy and Growth,Transport and Contracted Services,Third Party Payments,460151,Contract Payments,05/04/2023,4119574-27622,"1,479.36",JACK COUPE & SONS LTD T/A COUPE LINE.
Regeneration Economy and Growth,Corporate Property and Land,Supplies and Services,304221,Equipment and Materials,05/04/2023,4119476-140014427,"1,080.08",CARLISLE CONSTRUCTION MATERIALS LTD.
Regeneration Economy and Growth,Corporate Property and Land,Supplies and Services,304221,Equipment and Materials,05/04/2023,4119530-11885-9397,864.00,EXPERVENT LTD T/A EXPERVENT AIR MOVEMENT SOLUTIONS.
Neighbourhoods and Climate Change,Highways,Supplies and Services,304221,Equipment and Materials,05/04/2023,4119533-145191,"2,188.94",FABRIKAT (NOTTINGHAM) LTD.
Regeneration Economy and Growth,Culture Sport and Tourism,Supplies and Services,304259,Equipment and Materials,05/04/2023,4119556-INV-5449,744.66,GYM TECH NORTH EAST.
Regeneration Economy and Growth,Culture Sport and Tourism,Supplies and Services,304259,Equipment and Materials,05/04/2023,4119556-INV-5489,684.77,GYM TECH NORTH EAST.
Neighbourhoods and Climate Change,Environmental Services,Supplies and Services,304221,Equipment and Materials,05/04/2023,4119560-SI-8110,"2,462.40",HARELAW SAWMILL LTD.
Neighbourhoods and Climate Change,Highways,Supplies and Services,304221,Equipment and Materials,05/04/2023,4119586-0108/00028676,"1,008.00",JT DOVE LTD.
Regeneration Economy and Growth,Corporate Property and Land,Supplies and Services,304221,Equipment and Materials,05/04/2023,4119586-0213/00841762,991.20,JT DOVE LTD.
Regeneration Economy and Growth,Corporate Property and Land,Supplies and Services,304221,Equipment and Materials,05/04/2023,4119586-0213/00841763,"1,672.50",JT DOVE LTD.
Regeneration Economy and Growth,Corporate Property and Land,Supplies and Services,304221,Equipment and Materials,05/04/2023,4119601-00032552,"1,020.00",LESTER CONTROL SYSTEMS LTD.
Regeneration Economy and Growth,Corporate Property and Land,Supplies and Services,304221,Equipment and Materials,05/04/2023,4119619-53325017,994.36,MITSUBISHI ELECTRIC EUROPE.
Regeneration Economy and Growth,Corporate Property and Land,Supplies and Services,304221,Equipment and Materials,05/04/2023,4119636-43004,630.62,NE & C WINDOWS & DOORS LTD.
Neighbourhoods and Climate Change,Highways,Supplies and Services,304221,Equipment and Materials,05/04/2023,4119714-9046638531,603.57,TARMAC TRADING LTD.
Neighbourhoods and Climate Change,Environmental Services,Supplies and Services,304221,Equipment and Materials,05/04/2023,4119717-CD970037942,849.60,THE HELPING HAND CO (LEDBURY) LTD.
Neighbourhoods and Climate Change,Highways,Supplies and Services,304221,Equipment and Materials,05/04/2023,4119732-244181,"3,185.88",TYNEDALE ROADSTONE LTD.
Regeneration Economy and Growth,Corporate Property and Land,Supplies and Services,304221,Equipment and Materials,05/04/2023,4119733-04036700,"3,751.32",UK ELECTRIC LTD.*
Regeneration Economy and Growth,Corporate Property and Land,Supplies and Services,304221,Equipment and Materials,05/04/2023,4119740-6890490953,"4,192.80",VIESSMANN LTD.
Children and Young Peoples Services,Central Charges (CYPS),Supplies and Services,304040,Equipment and Materials,05/04/2023,318601-SI-36334,"4,471.20",THE ASSOCIATION OF DIRECTORS OF CHILDREN`S SERVICES LTD (ADCS).
Regeneration Economy and Growth,Culture Sport and Tourism,Supplies and Services,304259,Equipment and Materials,05/04/2023,4119486-34991,"9,087.60",CLICK NETHERFIELD LTD.
Regeneration Economy and Growth,Culture Sport and Tourism,Supplies and Services,304337,Equipment and Materials,05/04/2023,4119534-54945,669.35,FARRAHS OF HARROGATE LTD.
Neighbourhoods and Climate Change,Partnerships & Community Engagement Div.,Supplies and Services,384956,Miscellaneous Expenses,05/04/2023,4119569-105839657,"1,408.80",IBM UNITED KINGDOM LTD.*
Regeneration Economy and Growth,Business Durham CL0850,Supplies and Services,384899,Miscellaneous Expenses,05/04/2023,4119604-RES-03-2023-620,"2,592.91",LOOP D LOOP LTD.
Children and Young Peoples Services,Head of Childrens Social Care,Supplies and Services,384500,Miscellaneous Expenses,05/04/2023,4119450-ARC2223-604,910.00,ARC ADOPTION NORTH EAST.
Children and Young Peoples Services,Head of Early Help Inclusion & Vulnerable Children.,Supplies and Services,384199,Miscellaneous Expenses,05/04/2023,4119451-379,"1,845.00",ARMSTRONG DECORATORS.
Regeneration Economy and Growth,Planning & Housing,Supplies and Services,384999,Miscellaneous Expenses,05/04/2023,4119454-281-268-414,"1,386.00",AYMAN HOSPITALITY LTD T/A HAYAT EXPRESS HOTEL.
Regeneration Economy and Growth,Planning & Housing,Supplies and Services,384999,Miscellaneous Expenses,05/04/2023,4119454-303-448-301,693.00,AYMAN HOSPITALITY LTD T/A HAYAT EXPRESS HOTEL.
Regeneration Economy and Growth,Planning & Housing,Supplies and Services,384999,Miscellaneous Expenses,05/04/2023,4119454-423-259-624,693.00,AYMAN HOSPITALITY LTD T/A HAYAT EXPRESS HOTEL.
Regeneration Economy and Growth,Planning & Housing,Supplies and Services,384999,Miscellaneous Expenses,05/04/2023,4119454-811-198-212,"1,386.00",AYMAN HOSPITALITY LTD T/A HAYAT EXPRESS HOTEL.
Regeneration Economy and Growth,Business Durham CL0850,Supplies and Services,384899,Miscellaneous Expenses,05/04/2023,4119491-RES-04-2023-108,"1,185.92",COOPER`S CRECHE LTD.
Neighbourhoods and Climate Change,Community Protection,Supplies and Services,384199,Miscellaneous Expenses,05/04/2023,4119616-487,"4,800.00",MIND OVER MATTER CONSULTANCY LTD.
Neighbourhoods and Climate Change,Environmental Services,Supplies and Services,384199,Miscellaneous Expenses,05/04/2023,4119647-1943,"31,245.00",NORTH EAST ENVIRONMENT NETWORK LTD T/A (OASES).
Neighbourhoods and Climate Change,Partnerships & Community Engagement Div.,Supplies and Services,384956,Miscellaneous Expenses,05/04/2023,4119702-81737,"3,030.00",SNAP SURVEYS LTD.
Children and Young Peoples Services,Head of Early Help Inclusion & Vulnerable Children.,Supplies and Services,384302,Miscellaneous Expenses,05/04/2023,4119760-6023RE-PROVISION,673.40,THE WHITEHOUSE CENTRE LTD.
Adult and Health Services,Commissioning inc Supporting People,Third Party Payments,440999,Other third party payments E440,05/04/2023,4119641-RES-03-2023-698,"3,165.00",NHC GROUP LTD.
Children and Young Peoples Services,Head of Childrens Social Care,Third Party Payments,440046,Other third party payments E440,05/04/2023,4119478-23396,"11,385.00",CASTLE VIEW GROUP TRAINING.
Children and Young Peoples Services,Head of Childrens Social Care,Third Party Payments,440046,Other third party payments E440,05/04/2023,4119478-24585,"17,104.20",CASTLE VIEW GROUP TRAINING.
Children and Young Peoples Services,Head of Childrens Social Care,Third Party Payments,440046,Other third party payments E440,05/04/2023,4119478-24698,"12,127.80",CASTLE VIEW GROUP TRAINING.
Children and Young Peoples Services,Head of Childrens Social Care,Third Party Payments,440046,Other third party payments E440,05/04/2023,4119478-24740,"11,727.60",CASTLE VIEW GROUP TRAINING.
Children and Young Peoples Services,Head of Childrens Social Care,Third Party Payments,440046,Other third party payments E440,05/04/2023,4119478-24802,842.78,CASTLE VIEW GROUP TRAINING.
Children and Young Peoples Services,Head of Childrens Social Care,Third Party Payments,440046,Other third party payments E440,05/04/2023,4119478-24807,"11,727.60",CASTLE VIEW GROUP TRAINING.
Children and Young Peoples Services,Head of Education and Skills,Third Party Payments,440999,Other third party payments E440,05/04/2023,4119489-CTA/DCC/LO1B/RO6,"3,539.25",COMMUNICATORS TRAINING ASSOCIATES LTD.
Children and Young Peoples Services,Head of Education and Skills,Third Party Payments,440999,Other third party payments E440,05/04/2023,4119489-CTA/DCC/LOT1B/RO5,"4,182.75",COMMUNICATORS TRAINING ASSOCIATES LTD.
Children and Young Peoples Services,Head of Education and Skills,Third Party Payments,440999,Other third party payments E440,05/04/2023,4119489-CTA/DCC/LOT2B/R06,966.70,COMMUNICATORS TRAINING ASSOCIATES LTD.
Children and Young Peoples Services,Head of Childrens Social Care,Third Party Payments,440046,Other third party payments E440,05/04/2023,4119612-30118280,"3,658.44",MAJOR RECRUITMENT LTD.
Children and Young Peoples Services,Head of Childrens Social Care,Third Party Payments,440046,Other third party payments E440,05/04/2023,4119612-30118281,"11,008.34",MAJOR RECRUITMENT LTD.
Children and Young Peoples Services,Head of Childrens Social Care,Third Party Payments,440046,Other third party payments E440,05/04/2023,4119612-30121380,"4,915.92",MAJOR RECRUITMENT LTD.
Children and Young Peoples Services,Head of Childrens Social Care,Third Party Payments,440046,Other third party payments E440,05/04/2023,4119612-30121381,"3,322.37",MAJOR RECRUITMENT LTD.
Children and Young Peoples Services,Head of Childrens Social Care,Third Party Payments,440046,Other third party payments E440,05/04/2023,4119612-30121382,"3,437.03",MAJOR RECRUITMENT LTD.
Children and Young Peoples Services,Head of Childrens Social Care,Third Party Payments,440046,Other third party payments E440,05/04/2023,4119612-30121383,"11,317.46",MAJOR RECRUITMENT LTD.
Children and Young Peoples Services,Head of Childrens Social Care,Third Party Payments,440046,Other third party payments E440,05/04/2023,4119612-30121384,"7,575.52",MAJOR RECRUITMENT LTD.
Children and Young Peoples Services,Head of Childrens Social Care,Third Party Payments,440046,Other third party payments E440,05/04/2023,4119612-30121385,"2,401.06",MAJOR RECRUITMENT LTD.
Children and Young Peoples Services,Head of Childrens Social Care,Third Party Payments,440046,Other third party payments E440,05/04/2023,4119612-30121386,"8,813.47",MAJOR RECRUITMENT LTD.
Children and Young Peoples Services,Head of Childrens Social Care,Third Party Payments,440046,Other third party payments E440,05/04/2023,4119612-30121387,"6,561.34",MAJOR RECRUITMENT LTD.
Children and Young Peoples Services,Head of Childrens Social Care,Third Party Payments,440046,Other third party payments E440,05/04/2023,4119612-30121388,"2,542.43",MAJOR RECRUITMENT LTD.
Children and Young Peoples Services,Head of Childrens Social Care,Third Party Payments,440046,Other third party payments E440,05/04/2023,4119612-30121389,"3,017.24",MAJOR RECRUITMENT LTD.
Children and Young Peoples Services,Head of Childrens Social Care,Third Party Payments,440046,Other third party payments E440,05/04/2023,4119612-30121391,757.22,MAJOR RECRUITMENT LTD.
Children and Young Peoples Services,Head of Childrens Social Care,Third Party Payments,440046,Other third party payments E440,05/04/2023,4119612-30121393,"11,256.47",MAJOR RECRUITMENT LTD.
Children and Young Peoples Services,Head of Childrens Social Care,Third Party Payments,440046,Other third party payments E440,05/04/2023,4119612-30121394,"2,316.07",MAJOR RECRUITMENT LTD.
Children and Young Peoples Services,Head of Childrens Social Care,Third Party Payments,440046,Other third party payments E440,05/04/2023,4119612-30121718,"3,671.81",MAJOR RECRUITMENT LTD.
Children and Young Peoples Services,Head of Childrens Social Care,Third Party Payments,440046,Other third party payments E440,05/04/2023,4119612-30121719,"2,909.29",MAJOR RECRUITMENT LTD.
Children and Young Peoples Services,Head of Childrens Social Care,Third Party Payments,440046,Other third party payments E440,05/04/2023,4119612-30121721,"7,721.54",MAJOR RECRUITMENT LTD.
Children and Young Peoples Services,Head of Childrens Social Care,Third Party Payments,440046,Other third party payments E440,05/04/2023,4119612-30121722,"3,606.38",MAJOR RECRUITMENT LTD.
Children and Young Peoples Services,Head of Childrens Social Care,Third Party Payments,440046,Other third party payments E440,05/04/2023,4119612-30121723,867.31,MAJOR RECRUITMENT LTD.
Children and Young Peoples Services,Head of Childrens Social Care,Third Party Payments,440046,Other third party payments E440,05/04/2023,4119612-30121724,"7,612.94",MAJOR RECRUITMENT LTD.
Children and Young Peoples Services,Head of Childrens Social Care,Third Party Payments,440046,Other third party payments E440,05/04/2023,4119612-30121726,"4,914.44",MAJOR RECRUITMENT LTD.
Children and Young Peoples Services,Head of Childrens Social Care,Third Party Payments,440046,Other third party payments E440,05/04/2023,4119612-30121727,"3,098.93",MAJOR RECRUITMENT LTD.
Children and Young Peoples Services,Head of Childrens Social Care,Third Party Payments,440046,Other third party payments E440,05/04/2023,4119612-30121728,823.75,MAJOR RECRUITMENT LTD.
Children and Young Peoples Services,Head of Childrens Social Care,Third Party Payments,440046,Other third party payments E440,05/04/2023,4119612-30121730,"10,511.84",MAJOR RECRUITMENT LTD.
Children and Young Peoples Services,Head of Childrens Social Care,Third Party Payments,440046,Other third party payments E440,05/04/2023,4119612-30121731,"10,978.37",MAJOR RECRUITMENT LTD.
Neighbourhoods and Climate Change,Environmental Services,Supplies and Services,324117,Provisions E324,05/04/2023,4119573-23492,780.96,J MORAN LTD T/A CAFFE VINCI.
Neighbourhoods and Climate Change,Environmental Services,Supplies and Services,324117,Provisions E324,05/04/2023,4119573-23830,799.04,J MORAN LTD T/A CAFFE VINCI.
Regeneration Economy and Growth,Culture Sport and Tourism,Supplies and Services,324117,Provisions E324,05/04/2023,4119573-24062,771.80,J MORAN LTD T/A CAFFE VINCI.
Adult and Health Services,Head of Adults,Third Party Payments,478151,Purchase of Care,05/04/2023,4119434-SI-1868,"3,523.26",ACCEPT CARE LTD.
Adult and Health Services,Head of Adults,Third Party Payments,479102,Purchase of Care,05/04/2023,4119474-INV-3673,"1,212.00",BYKARE SOLUTIONS LTD.
Adult and Health Services,Head of Adults,Third Party Payments,479102,Purchase of Care,05/04/2023,4119474-INV-3678,"2,388.00",BYKARE SOLUTIONS LTD.
Adult and Health Services,Head of Adults,Third Party Payments,479102,Purchase of Care,05/04/2023,4119474-INV-3713,"2,598.00",BYKARE SOLUTIONS LTD.
Adult and Health Services,Head of Adults,Third Party Payments,479102,Purchase of Care,05/04/2023,4119474-INV-3725,"2,470.00",BYKARE SOLUTIONS LTD.
Adult and Health Services,Head of Adults,Third Party Payments,479102,Purchase of Care,05/04/2023,4119474-INV-3755,"2,836.00",BYKARE SOLUTIONS LTD.
Adult and Health Services,Head of Adults,Third Party Payments,479102,Purchase of Care,05/04/2023,4119474-INV-3798,"4,776.00",BYKARE SOLUTIONS LTD.
Adult and Health Services,Head of Adults,Third Party Payments,479102,Purchase of Care,05/04/2023,4119474-INV-3825,"4,776.00",BYKARE SOLUTIONS LTD.
Adult and Health Services,Head of Adults,Third Party Payments,470101,Purchase of Care,05/04/2023,4119475-RES-04-2023-127,"2,966.92",CARE UK COMMUNITY PARTNERSHIPS LTD.
Adult and Health Services,Head of Adults,Third Party Payments,479102,Purchase of Care,05/04/2023,4119493-123,"5,635.20",COUNT CARE SERVICES LTD.
Adult and Health Services,Commissioning inc Supporting People,Third Party Payments,479102,Purchase of Care,05/04/2023,4119518-EDCI13032023,"26,245.00",EAST DURHAM COMMUNITY INITIATIVES LTD.
Adult and Health Services,Commissioning inc Supporting People,Third Party Payments,470111,Purchase of Care,05/04/2023,4119600-LCD-FTI136833,"6,060.01",LEONARD CHESHIRE DISABILITY.
Adult and Health Services,Head of Adults,Third Party Payments,479102,Purchase of Care,05/04/2023,4119663-INV-0122,"5,860.31",POSITIVE CARE & SUPPORT LTD.
Neighbourhoods and Climate Change,Environmental Services,Third Party Payments,430100,Rendered by Private Contractors,05/04/2023,4119437-IV170623,"1,140.00",ADVANCED RADIATORS LTD.
Neighbourhoods and Climate Change,Environmental Services,Third Party Payments,430100,Rendered by Private Contractors,05/04/2023,4119441-00-001918,720.00,ALPHA RECOVERY LTD.
Neighbourhoods and Climate Change,Environmental Services,Third Party Payments,430100,Rendered by Private Contractors,05/04/2023,4119444-INV-5107,780.92,ANNFIELD AUTO SERVICES.
Regeneration Economy and Growth,Corporate Property and Land,Third Party Payments,430100,Rendered by Private Contractors,05/04/2023,4119448-5252,"5,940.00",APEX ROOFING SPECIALISTS LTD.
Neighbourhoods and Climate Change,Environmental Services,Third Party Payments,430100,Rendered by Private Contractors,05/04/2023,4119542-113746,641.02,FR SHARROCK LTD.
Neighbourhoods and Climate Change,Environmental Services,Third Party Payments,430100,Rendered by Private Contractors,05/04/2023,4119547-90033845,"7,755.31",GEESINK NORBA LTD.
Regeneration Economy and Growth,Corporate Property and Land,Third Party Payments,430100,Rendered by Private Contractors,05/04/2023,4119557-8,"112,379.35",H MALONE & SONS LTD.
Neighbourhoods and Climate Change,Highways,Third Party Payments,430100,Rendered by Private Contractors,05/04/2023,4119564-3491,"6,988.80",HIGHWAY CONSTRUCTION SERVICES LTD.
Neighbourhoods and Climate Change,Environmental Services,Third Party Payments,430113,Rendered by Private Contractors,05/04/2023,4119568-W231116,"479,049.83",HW MARTIN HOLDINGS LTD.
Neighbourhoods and Climate Change,Environmental Services,Third Party Payments,430100,Rendered by Private Contractors,05/04/2023,4119577-165146,"9,468.72",JG PAXTON & SONS LTD.
Neighbourhoods and Climate Change,Environmental Services,Third Party Payments,430100,Rendered by Private Contractors,05/04/2023,4119577-165148,823.99,JG PAXTON & SONS LTD.
Neighbourhoods and Climate Change,Highways,Third Party Payments,430100,Rendered by Private Contractors,05/04/2023,4119582-0000083890,"5,940.00",JOHN WADE (HAULAGE) LTD.
Regeneration Economy and Growth,Corporate Property and Land,Third Party Payments,430100,Rendered by Private Contractors,05/04/2023,4119614-69107,"2,664.00",MARIAN DOOR SERVICES.
Regeneration Economy and Growth,Corporate Property and Land,Third Party Payments,430100,Rendered by Private Contractors,05/04/2023,4119636-42943,"13,519.92",NE & C WINDOWS & DOORS LTD.
Regeneration Economy and Growth,Corporate Property and Land,Third Party Payments,430100,Rendered by Private Contractors,05/04/2023,4119636-42944,"12,621.06",NE & C WINDOWS & DOORS LTD.
Regeneration Economy and Growth,Corporate Property and Land,Third Party Payments,430100,Rendered by Private Contractors,05/04/2023,4119636-42946,702.00,NE & C WINDOWS & DOORS LTD.
Neighbourhoods and Climate Change,Highways,Third Party Payments,430100,Rendered by Private Contractors,05/04/2023,4119651-8392,"4,272.00",NU PHALT CONTRACTING LTD.
Neighbourhoods and Climate Change,Highways,Third Party Payments,430100,Rendered by Private Contractors,05/04/2023,4119653-26348,"2,664.00",OLIVERS TREE SERVICES LTD.
Regeneration Economy and Growth,Corporate Property and Land,Third Party Payments,430100,Rendered by Private Contractors,05/04/2023,4119654-3400,"4,325.28",PARAMOUNT CEILINGS & PARTITIONS LTD.
Neighbourhoods and Climate Change,Highways,Third Party Payments,430100,Rendered by Private Contractors,05/04/2023,4119665-177633,"13,468.20",PREMIER TRAFFIC MANAGEMENT LTD.
Regeneration Economy and Growth,Transport and Contracted Services,Third Party Payments,430100,Rendered by Private Contractors,05/04/2023,4119667-148614,"1,517.76",PROTECTOR SECURITY GROUP LTD.
Neighbourhoods and Climate Change,Highways,Third Party Payments,430100,Rendered by Private Contractors,05/04/2023,4119670-14825,"8,965.26",QUANTUM POWER CONNECTIONS LTD.
Neighbourhoods and Climate Change,Highways,Third Party Payments,430100,Rendered by Private Contractors,05/04/2023,4119670-14828,626.83,QUANTUM POWER CONNECTIONS LTD.
Neighbourhoods and Climate Change,Highways,Third Party Payments,430100,Rendered by Private Contractors,05/04/2023,4119670-14829,626.83,QUANTUM POWER CONNECTIONS LTD.
Neighbourhoods and Climate Change,Highways,Third Party Payments,430100,Rendered by Private Contractors,05/04/2023,4119670-14831,"1,253.66",QUANTUM POWER CONNECTIONS LTD.
Neighbourhoods and Climate Change,Highways,Third Party Payments,430100,Rendered by Private Contractors,05/04/2023,4119670-14833,626.83,QUANTUM POWER CONNECTIONS LTD.
Neighbourhoods and Climate Change,Highways,Third Party Payments,430100,Rendered by Private Contractors,05/04/2023,4119670-14834,626.83,QUANTUM POWER CONNECTIONS LTD.
Neighbourhoods and Climate Change,Highways,Third Party Payments,430100,Rendered by Private Contractors,05/04/2023,4119670-14835,862.27,QUANTUM POWER CONNECTIONS LTD.
Neighbourhoods and Climate Change,Highways,Third Party Payments,430100,Rendered by Private Contractors,05/04/2023,4119670-14836,626.83,QUANTUM POWER CONNECTIONS LTD.
Neighbourhoods and Climate Change,Highways,Third Party Payments,430100,Rendered by Private Contractors,05/04/2023,4119670-14837,626.83,QUANTUM POWER CONNECTIONS LTD.
Neighbourhoods and Climate Change,Highways,Third Party Payments,430100,Rendered by Private Contractors,05/04/2023,4119670-14838,626.83,QUANTUM POWER CONNECTIONS LTD.
Neighbourhoods and Climate Change,Highways,Third Party Payments,430100,Rendered by Private Contractors,05/04/2023,4119670-14839,626.83,QUANTUM POWER CONNECTIONS LTD.
Neighbourhoods and Climate Change,Environmental Services,Third Party Payments,430100,Rendered by Private Contractors,05/04/2023,4119677-488653,812.68,RICKERBY LTD.
Neighbourhoods and Climate Change,Environmental Services,Third Party Payments,430100,Rendered by Private Contractors,05/04/2023,4119705-105/23/6103,600.00,SOCIETE GENERALE EQUIPMENT FINANCE LTD.
Neighbourhoods and Climate Change,Highways,Third Party Payments,430100,Rendered by Private Contractors,05/04/2023,4119725-TRNE036817,740.40,TOTAL RESOURCES (UK) LTD.
Neighbourhoods and Climate Change,Highways,Third Party Payments,430127,Rendered by Private Contractors,05/04/2023,4119743-51765,"1,008.00",W MARLEY AGRICULTURAL CONTRACTORS LTD.
Children and Young Peoples Services,Head of Childrens Social Care,Third Party Payments,425041,Rendered by Voluntary Organisations,05/04/2023,4119591-900167493,"9,000.00",KENT COUNTY COUNCIL.
Neighbourhoods and Climate Change,Environmental Services,Transport,210057,Repair and Maintenance of Vehicles,05/04/2023,4119503-96438304,"5,391.31",DENNIS EAGLE LTD T/A TERBERG MATEC (UK) LTD.
Neighbourhoods and Climate Change,Environmental Services,Transport,210057,Repair and Maintenance of Vehicles,05/04/2023,4119504-DE11574725,781.56,DENNIS EAGLE LTD.
Neighbourhoods and Climate Change,Environmental Services,Transport,210057,Repair and Maintenance of Vehicles,05/04/2023,4119671-1381653,829.16,QUICKCO.
Neighbourhoods and Climate Change,Environmental Services,Transport,210057,Repair and Maintenance of Vehicles,05/04/2023,4119528-5139,846.00,EURO TRUCK BODIES LTD.
Neighbourhoods and Climate Change,Environmental Services,Transport,210057,Repair and Maintenance of Vehicles,05/04/2023,4119528-5141,846.00,EURO TRUCK BODIES LTD.
Dedicated Schools Grant BG0015,DSG Early Years Block,Transfer Payments,510030,School Children,05/04/2023,4119561-35319,640.58,REDACTED - PAYMENT TO INDIVIDUAL
Dedicated Schools Grant BG0015,DSG Early Years Block,Transfer Payments,510030,School Children,05/04/2023,4119460-35656,800.00,BISHOP AUCKLAND COLLEGE NURSERY.
Dedicated Schools Grant BG0015,DSG Early Years Block,Transfer Payments,510030,School Children,05/04/2023,4119462-35672,843.15,BISHOP HOGARTH CATHOLIC EDUCATION TRUST.
Dedicated Schools Grant BG0015,DSG Early Years Block,Transfer Payments,510032,School Children,05/04/2023,4119472-35635,902.55,BUSY BEES (DURHAM) LTD.
Dedicated Schools Grant BG0015,DSG Early Years Block,Transfer Payments,510030,School Children,05/04/2023,4119472-35658,793.80,BUSY BEES (DURHAM) LTD.
Dedicated Schools Grant BG0015,DSG Early Years Block,Transfer Payments,510032,School Children,05/04/2023,4119479-35636,779.48,CASTLE VIEW PRIVATE DAY NURSERY LTD.
Dedicated Schools Grant BG0015,DSG Early Years Block,Transfer Payments,510030,School Children,05/04/2023,4119501-35680,"1,180.94",DAYPARK LTD T/A YELLOW WELLIES.
Dedicated Schools Grant BG0015,DSG Early Years Block,Transfer Payments,510032,School Children,05/04/2023,4119517-35641,902.55,EAST DURHAM COLLEGE.
Dedicated Schools Grant BG0015,DSG Early Years Block,Transfer Payments,510032,School Children,05/04/2023,4119523-35638,541.53,EMERALDS LITTLE GEMS DAYCARE LTD.
Dedicated Schools Grant BG0015,DSG Early Years Block,Transfer Payments,510030,School Children,05/04/2023,4119650-35679,850.32,NORTHUMBRIA DAY NURSERIES LTD T/A WOODLANDS DAY NURSERY.
Dedicated Schools Grant BG0015,DSG Early Years Block,Transfer Payments,510030,School Children,05/04/2023,4119675-35667,676.35,RIBBON ACADEMY TRUST.
Dedicated Schools Grant BG0015,DSG Early Years Block,Transfer Payments,510030,School Children,05/04/2023,4119676-35668,"2,520.09",RIBBON DAYCARE.
Dedicated Schools Grant BG0015,DSG Early Years Block,Transfer Payments,510030,School Children,05/04/2023,4119692-35669,"2,701.58",SEAHAM KINDERGARTEN LTD.
Dedicated Schools Grant BG0015,DSG Early Years Block,Transfer Payments,510032,School Children,05/04/2023,4119758-35645,"2,625.60",YOUR CO-OP LITTLE PIONEERS NURSERY & PRE SCHOOL.
Dedicated Schools Grant BG0015,DSG Early Years Block,Transfer Payments,510030,School Children,05/04/2023,4119758-35681,"1,458.52",YOUR CO-OP LITTLE PIONEERS NURSERY & PRE SCHOOL.
Children and Young Peoples Services,Childrens Services Operational Support,Supplies and Services,338089,Services,05/04/2023,4119657-0000CYC170223,800.00,REDACTED - PAYMENT TO INDIVIDUAL
Neighbourhoods and Climate Change,Environmental Services,Supplies and Services,338066,Services,05/04/2023,4119596-1011,"8,150.00",LAKE DISTRICT MOBILITY.
Regeneration Economy and Growth,Culture Sport and Tourism,Supplies and Services,338047,Services,05/04/2023,4119488-10600,"2,201.69",COMEDY STORE MANAGEMENT T/A THE COMEDY STORE LTD.
Children and Young Peoples Services,Head of Childrens Social Care,Supplies and Services,338044,Services,05/04/2023,4119513-POL-1-130323,847.55,DR URSULA CAWTHORNE T/A CAWTHORNE PSYCHOLOGICAL SERVICES LTD.
Neighbourhoods and Climate Change,Environmental Services,Supplies and Services,338066,Services,05/04/2023,4119527-SI-1255,"1,200.00",ENVIRONMENTAL LAND MANAGEMENT SOLUTIONS LTD.
Resources BK0010,Legal & Democratic Services,Supplies and Services,338025,Services,05/04/2023,4119551-F2860,550.00,GORDON FLETCHER & SONS LTD.
Children and Young Peoples Services,Head of Childrens Social Care,Supplies and Services,338044,Services,05/04/2023,4119603-286314,"2,182.80",LEXTOX.
Regeneration Economy and Growth,Business Durham CL0850,Supplies and Services,338078,Services,05/04/2023,4119690-17330,"3,388.90",SAFEGUARD SECURITY (NE) LTD.
Regeneration Economy and Growth,Business Durham CL0850,Supplies and Services,338078,Services,05/04/2023,4119690-17511,"3,388.90",SAFEGUARD SECURITY (NE) LTD.
Regeneration Economy and Growth,Business Durham CL0850,Supplies and Services,338078,Services,05/04/2023,4119690-17537,"3,388.90",SAFEGUARD SECURITY (NE) LTD.
Resources BK0010,Legal & Democratic Services,Supplies and Services,338042,Services,05/04/2023,4119731-305240/INVHPR175,798.00,TRINITY CHAMBERS.
Resources BK0010,Legal & Democratic Services,Supplies and Services,338042,Services,05/04/2023,4119731-305541/INVHPR176,690.00,TRINITY CHAMBERS.
Resources BK0010,Legal & Democratic Services,Supplies and Services,338042,Services,05/04/2023,4119731-305588/INVLS206,690.00,TRINITY CHAMBERS.
Regeneration Economy and Growth,Business Durham CL0850,Supplies and Services,338066,Services,05/04/2023,4119735-66280,"16,086.00",UNW LLP.
Resources BK0010,Legal & Democratic Services,Supplies and Services,338101,Services,05/04/2023,318593-002-2023CHIPJ-SC,"1,000.00",REDACTED - PAYMENT TO INDIVIDUAL
Children and Young Peoples Services,Head of Childrens Social Care,Supplies and Services,338066,Services,05/04/2023,4119607-5,"1,947.53",REDACTED - PAYMENT TO INDIVIDUAL
Neighbourhoods and Climate Change,Highways,Stock A926,926004,Stock,05/04/2023,4119570-400047771,"2,150.15",ICL UK SALES LTD (CLEVELAND POTASH LTD).
Resources BK0010,Digital Services,Stock A926,926900,Stock in hand-Inventory system,05/04/2023,4119571-2100543933,"3,960.14",INSIGHT DIRECT (UK) LTD.
Neighbourhoods and Climate Change,Highways,Stock A926,926900,Stock in hand-Inventory system,05/04/2023,4119703-1275,"6,624.00",SNAPFAST LTD.
Regeneration Economy and Growth,Planning & Housing,Supplies and Services,372009,Subscriptions E372,05/04/2023,4119635-NERC29965,"1,698.40",NATURAL ENVIRONMENT RESEARCH COUNCIL (NERC).
Children and Young Peoples Services,Head of Childrens Social Care,Supplies and Services,336005,Advertising E336,06/04/2023,4119996-INV-9529,792.00,TTM MANAGEMENT LTD.
Neighbourhoods and Climate Change,Community Protection,Supplies and Services,336005,Advertising E336,06/04/2023,4119881-INV-004482,"1,197.60",ITSA LTD.
Adult and Health Services,Head of Adults,Premises,150005,Apportioned Exps of Operational Blds,06/04/2023,4119797-JOB001/20901,954.00,USE (232362) C JOBLING LTD T/A RAINBOW INTERNATIONAL.
Neighbourhoods and Climate Change,Environmental Services,Premises,106080,Centrally Controlled Rep and Maint,06/04/2023,4119766-IN10883,"6,265.42",ACROL AIR CONDITIONING CO LTD.
Regeneration Economy and Growth,Culture Sport and Tourism,Premises,106082,Centrally Controlled Rep and Maint,06/04/2023,4119766-IN436,"18,003.06",ACROL AIR CONDITIONING CO LTD.
Children and Young Peoples Services,Head of Childrens Social Care,Premises,106080,Centrally Controlled Rep and Maint,06/04/2023,4119869-7081017851,"2,647.69",HONEYWELL NOVAR SYSTEMS LTD.
Regeneration Economy and Growth,Corporate Property and Land,Premises,106099,Centrally Controlled Rep and Maint,06/04/2023,4119950-74995-23,"1,068.00",RJ UTILITY SERVICES LTD.
Neighbourhoods and Climate Change,Environmental Services,Premises,106083,Centrally Controlled Rep and Maint,06/04/2023,4119997-dlb03923,"2,286.00",TYCO FIRE & INTEGRATED SOLUTIONS (UK) LTD.
Resources BK0010,Digital Services,Supplies and Services,342051,Computers and Communications,06/04/2023,4119813-C/MG267655,"12,900.00",CIVICA UK LTD.
Resources BK0010,Digital Services,Supplies and Services,342051,Computers and Communications,06/04/2023,4119813-C/RB267132,"4,677.76",CIVICA UK LTD.
Resources BK0010,Pensions CK0700,Supplies and Services,342051,Computers and Communications,06/04/2023,4119848-HEX67000759793,"2,194.15",EXPERIAN LTD.
Regeneration Economy and Growth,Corporate Property and Land,Construction work A908,908105,Construction work,06/04/2023,4119869-7081016318,"3,506.21",HONEYWELL NOVAR SYSTEMS LTD.
Regeneration Economy and Growth,Corporate Property and Land,Construction work A908,908105,Construction work,06/04/2023,4119979-144077,"51,680.38",SWITCHSHOP LTD.
Regeneration Economy and Growth,Corporate Property and Land,Fees,901002,Professional fees 901002,06/04/2023,4119793-SIN041964,"160,821.98",BLOOM PROCUREMENT SERVICES LTD (FORMERLY NEPRO LTD).
Neighbourhoods and Climate Change,Environmental Services,Fees,901002,Professional fees 901002,06/04/2023,4119867-26146,"5,280.00",HICKTON CONSULTANTS LIMITED.
Neighbourhoods and Climate Change,Environmental Services,Fees,901002,Professional fees 901002,06/04/2023,4119867-26147,"3,168.00",HICKTON CONSULTANTS LIMITED.
Neighbourhoods and Climate Change,Environmental Services,Fees,901002,Professional fees 901002,06/04/2023,4119867-26410,"5,913.60",HICKTON CONSULTANTS LIMITED.
Neighbourhoods and Climate Change,Environmental Services,Fees,901002,Professional fees 901002,06/04/2023,4119867-26411,"3,379.20",HICKTON CONSULTANTS LIMITED.
Neighbourhoods and Climate Change,Environmental Services,Fees,901002,Professional fees 901002,06/04/2023,4119867-26566,"3,854.40",HICKTON CONSULTANTS LIMITED.
Neighbourhoods and Climate Change,Environmental Services,Fees,901002,Professional fees 901002,06/04/2023,4119867-26578,"2,323.20",HICKTON CONSULTANTS LIMITED.
Neighbourhoods and Climate Change,Environmental Services,Fees,901002,Professional fees 901002,06/04/2023,4119867-26580,"2,323.20",HICKTON CONSULTANTS LIMITED.
Neighbourhoods and Climate Change,Environmental Services,Fees,901002,Professional fees 901002,06/04/2023,4119867-26768,"5,702.40",HICKTON CONSULTANTS LIMITED.
Neighbourhoods and Climate Change,Environmental Services,Fees,901002,Professional fees 901002,06/04/2023,4119867-26769,"2,217.60",HICKTON CONSULTANTS LIMITED.
Neighbourhoods and Climate Change,Environmental Services,Fees,901002,Professional fees 901002,06/04/2023,4119867-26955,"2,428.80",HICKTON CONSULTANTS LIMITED.
Neighbourhoods and Climate Change,Environmental Services,Fees,901002,Professional fees 901002,06/04/2023,4119867-26957,"2,745.60",HICKTON CONSULTANTS LIMITED.
Neighbourhoods and Climate Change,Environmental Services,Transport,230005,Contract Hire,06/04/2023,4119780-HI3102020,857.28,ARNOLD CLARK CAR & VAN RENTAL.
Neighbourhoods and Climate Change,Environmental Services,Transport,230005,Contract Hire,06/04/2023,4119822-23308,"1,034.09",CP DAVIDSON & SONS LTD.
Neighbourhoods and Climate Change,Environmental Services,Transport,230005,Contract Hire,06/04/2023,4119822-23309,879.79,CP DAVIDSON & SONS LTD.
Neighbourhoods and Climate Change,Environmental Services,Transport,230005,Contract Hire,06/04/2023,4119829-673058,601.52,DAWSONGROUP VANS LTD.
Neighbourhoods and Climate Change,Environmental Services,Transport,230005,Contract Hire,06/04/2023,4119829-673059,601.52,DAWSONGROUP VANS LTD.
Neighbourhoods and Climate Change,Environmental Services,Transport,230005,Contract Hire,06/04/2023,4119829-673065,686.71,DAWSONGROUP VANS LTD.
Neighbourhoods and Climate Change,Environmental Services,Transport,230005,Contract Hire,06/04/2023,4119829-673068,781.20,DAWSONGROUP VANS LTD.
Neighbourhoods and Climate Change,Environmental Services,Transport,230005,Contract Hire,06/04/2023,4119844-13001551341,825.39,ENTERPRISE FLEX-E-RENT T/A BURNT TREE GROUP LTD.
Children and Young Peoples Services,Head of Education and Skills,Transport,230008,Contract Hire,06/04/2023,4119856-103369,"1,452.60",G & P JOHNSON LTD T/A NIGHTINGALE COACHES.
Children and Young Peoples Services,Head of Education and Skills,Transport,230008,Contract Hire,06/04/2023,4119856-103370,"1,915.80",G & P JOHNSON LTD T/A NIGHTINGALE COACHES.
Children and Young Peoples Services,Head of Education and Skills,Transport,230008,Contract Hire,06/04/2023,4119856-103373,"1,763.10",G & P JOHNSON LTD T/A NIGHTINGALE COACHES.
Children and Young Peoples Services,Head of Education and Skills,Transport,230008,Contract Hire,06/04/2023,4119856-103374,"1,197.20",G & P JOHNSON LTD T/A NIGHTINGALE COACHES.
Children and Young Peoples Services,Head of Education and Skills,Transport,230008,Contract Hire,06/04/2023,4119856-103377,"1,311.75",G & P JOHNSON LTD T/A NIGHTINGALE COACHES.
Children and Young Peoples Services,Head of Education and Skills,Transport,230008,Contract Hire,06/04/2023,4119856-103378,"1,158.15",G & P JOHNSON LTD T/A NIGHTINGALE COACHES.
Neighbourhoods and Climate Change,Environmental Services,Transport,230005,Contract Hire,06/04/2023,4119913-431578,618.48,MINSTER SELF DRIVE.
Resources BK0010,Legal & Democratic Services,Premises,120021,Energy Costs,06/04/2023,4119794-43201,"1,442.54",BRADLEY HALL LTD.
Neighbourhoods and Climate Change,Highways,Supplies and Services,304221,Equipment and Materials,06/04/2023,4119769-34287630,630.86,AGGREGATE INDUSTRIES UK LTD.
Neighbourhoods and Climate Change,Highways,Supplies and Services,304221,Equipment and Materials,06/04/2023,4119776-SIN005850,"4,025.38",ARBOR TIMBER & BUILDERS MERCHANTS LTD.
Neighbourhoods and Climate Change,Highways,Supplies and Services,304221,Equipment and Materials,06/04/2023,4119776-SIN005853,"4,151.00",ARBOR TIMBER & BUILDERS MERCHANTS LTD.
Neighbourhoods and Climate Change,Highways,Supplies and Services,304221,Equipment and Materials,06/04/2023,4119776-SIN005854,"4,151.00",ARBOR TIMBER & BUILDERS MERCHANTS LTD.
Neighbourhoods and Climate Change,Highways,Supplies and Services,304221,Equipment and Materials,06/04/2023,4119776-SIN005855,"3,108.46",ARBOR TIMBER & BUILDERS MERCHANTS LTD.
Children and Young Peoples Services,Head of Early Help Inclusion & Vulnerable Children.,Supplies and Services,304259,Equipment and Materials,06/04/2023,4119779-377,605.00,ARMSTRONG DECORATORS.
Neighbourhoods and Climate Change,Environmental Services,Supplies and Services,304999,Equipment and Materials,06/04/2023,4119782-INV001560,"1,518.00",ASSOCIATED MAINTENANCE SERVICES LTD.
Regeneration Economy and Growth,Culture Sport and Tourism,Supplies and Services,304259,Equipment and Materials,06/04/2023,4119785-100759,"1,238.40",BAILEYS BLINDS LTD.
Regeneration Economy and Growth,Corporate Property and Land,Supplies and Services,304221,Equipment and Materials,06/04/2023,4119842-059-315913,"1,857.36",EDMUNDSON ELECTRICAL LTD.
Regeneration Economy and Growth,Corporate Property and Land,Supplies and Services,304221,Equipment and Materials,06/04/2023,4119842-059-315962,918.88,EDMUNDSON ELECTRICAL LTD.
Regeneration Economy and Growth,Corporate Property and Land,Supplies and Services,304221,Equipment and Materials,06/04/2023,4119842-059-315981,664.42,EDMUNDSON ELECTRICAL LTD.
Regeneration Economy and Growth,Corporate Property and Land,Supplies and Services,304221,Equipment and Materials,06/04/2023,4119891-0213/00842940,763.62,JT DOVE LTD.
Neighbourhoods and Climate Change,Environmental Services,Supplies and Services,304403,Equipment and Materials,06/04/2023,4119936-26098,"1,584.00",NORTHERN POWER CLEAN LTD.
Regeneration Economy and Growth,Culture Sport and Tourism,Supplies and Services,304259,Equipment and Materials,06/04/2023,4119964-0000035630,"3,922.42",SITELINK COMMUNICATIONS LTD.
Regeneration Economy and Growth,Culture Sport and Tourism,Supplies and Services,304259,Equipment and Materials,06/04/2023,4119968-SI-22230304,"2,400.00",SPORTS MAINTENANCE SERVICES LTD.
Regeneration Economy and Growth,Corporate Property and Land,Supplies and Services,304221,Equipment and Materials,06/04/2023,4119980-970324,"3,597.65",T CROSSLING & CO LTD.
Neighbourhoods and Climate Change,Environmental Services,Supplies and Services,304259,Equipment and Materials,06/04/2023,4119992-NSIN00090709,"1,042.56",THOMAS OWEN & SONS (NEWCASTLE) LTD.
Neighbourhoods and Climate Change,Highways,Supplies and Services,304221,Equipment and Materials,06/04/2023,4119998-244184,"1,557.00",TYNEDALE ROADSTONE LTD.
Neighbourhoods and Climate Change,Highways,Supplies and Services,304221,Equipment and Materials,06/04/2023,4119998-244185,"2,594.40",TYNEDALE ROADSTONE LTD.
Neighbourhoods and Climate Change,Highways,Supplies and Services,304221,Equipment and Materials,06/04/2023,4120008-10731,832.62,WILLIAM SUGG & COMPANY LTD.
Regeneration Economy and Growth,Planning & Housing,Cap Exp on Grants & Other Financial Assistance (REFCUS),918501,Exp assets not owned by authority,06/04/2023,4119905-RES-04-2023-199,"4,524.00",M & R DEVELOPMENTS & CONTRACTORS LTD.
Children and Young Peoples Services,Head of Childrens Social Care,Supplies and Services,364359,Grants to Voluntary Organisations,06/04/2023,4119858-MARCH2023-AK,604.00,REDACTED - PAYMENT TO INDIVIDUAL
Neighbourhoods and Climate Change,Environmental Services,Supplies and Services,384700,Miscellaneous Expenses,06/04/2023,4120007-RES-04-2023-138,"4,183.00",REDACTED - PAYMENT TO INDIVIDUAL
Neighbourhoods and Climate Change,Environmental Services,Supplies and Services,384700,Miscellaneous Expenses,06/04/2023,4119889-RES-04-2023-163,"13,857.59",REDACTED - PAYMENT TO INDIVIDUAL
Neighbourhoods and Climate Change,Environmental Services,Supplies and Services,384700,Miscellaneous Expenses,06/04/2023,4119917-RES-04-2023-133,"2,678.00",REDACTED - PAYMENT TO INDIVIDUAL
Regeneration Economy and Growth,Economic Development Level C,Supplies and Services,384650,Miscellaneous Expenses,06/04/2023,4119919-14032023,675.00,REDACTED - PAYMENT TO INDIVIDUAL
Neighbourhoods and Climate Change,Environmental Services,Supplies and Services,384700,Miscellaneous Expenses,06/04/2023,4119772-RES-04-2023-137,"8,147.15",REDACTED - PAYMENT TO INDIVIDUAL
Neighbourhoods and Climate Change,Environmental Services,Supplies and Services,384700,Miscellaneous Expenses,06/04/2023,4119806-RES-04-2023-165,"10,551.87",REDACTED - PAYMENT TO INDIVIDUAL
Neighbourhoods and Climate Change,Environmental Services,Supplies and Services,384700,Miscellaneous Expenses,06/04/2023,4119914-RES-04-2023-162,"42,846.16",MOUNTAIN BOTHIES ASSOCIATION.
Neighbourhoods and Climate Change,Partnerships & Community Engagement Div.,Supplies and Services,384086,Miscellaneous Expenses,06/04/2023,4119861-VOUCHERKCATKJ01-23,"1,000.00",GREAT AYCLIFFE TOWN COUNCIL.
Neighbourhoods and Climate Change,Partnerships & Community Engagement Div.,Supplies and Services,384086,Miscellaneous Expenses,06/04/2023,4119816-VOUCHERFANK08-22,999.00,COMMUNITY FITNESS CHESTER LE STREET CIC.
Neighbourhoods and Climate Change,Environmental Services,Supplies and Services,384974,Miscellaneous Expenses,06/04/2023,4119836-NEI-EXP-04-2023-002,"40,000.00",DRIVER & VEHICLE STANDARDS AGENCY (DVSA).
Dedicated Schools Grant BG0015,DSG High Needs Block,Supplies and Services,384302,Miscellaneous Expenses,06/04/2023,4119847-0000001063,"1,650.00",EXCEL ACADEMY PARTNERSHIP T/A FRAMWELLGATE SCHOOL DURHAM.
Regeneration Economy and Growth,Transport and Contracted Services,Supplies and Services,384540,Miscellaneous Expenses,06/04/2023,4119930-104089,"16,968.00",NEXUS.
Neighbourhoods and Climate Change,Partnerships & Community Engagement Div.,Supplies and Services,384086,Miscellaneous Expenses,06/04/2023,4119944-VOUCHERBATA05-22,998.95,PELTON COMMUNITY ASSOCIATION.
Neighbourhoods and Climate Change,Environmental Services,Supplies and Services,384199,Miscellaneous Expenses,06/04/2023,4119955-SINV112135,"5,990.16",SALIX RIVER & WETLAND SERVICES LTD.
Neighbourhoods and Climate Change,Partnerships & Community Engagement Div.,Supplies and Services,384086,Miscellaneous Expenses,06/04/2023,4119958-VOUCHERKCHALD01-23,600.00,SHERBURN COMMUNITY ASSOCIATION.
Children and Young Peoples Services,Head of Education and Skills,Supplies and Services,384199,Miscellaneous Expenses,06/04/2023,4119965-4100792238-MAR23,"4,180.00",SMARTT NORTH EAST LTD.
Children and Young Peoples Services,Head of Education and Skills,Supplies and Services,384199,Miscellaneous Expenses,06/04/2023,4119965-44100812762,"8,650.00",SMARTT NORTH EAST LTD.
Neighbourhoods and Climate Change,Partnerships & Community Engagement Div.,Supplies and Services,384086,Miscellaneous Expenses,06/04/2023,4119990-VOUCHERBLAJ09-22,898.00,THE ROTARY CLUB OF DURHAM ELVET.
Neighbourhoods and Climate Change,Environmental Services,Supplies and Services,384700,Miscellaneous Expenses,06/04/2023,4120005-RES-04-2023-160,"3,869.45",WEAR RIVERS TRUST.
Neighbourhoods and Climate Change,Environmental Services,Supplies and Services,384700,Miscellaneous Expenses,06/04/2023,4119803-RES-04-2023-148,"1,143.55",REDACTED - PAYMENT TO INDIVIDUAL
Neighbourhoods and Climate Change,Environmental Services,Supplies and Services,384700,Miscellaneous Expenses,06/04/2023,4119832-RES-04-2023-147,"9,632.29",DENE HOUSE FARM.
Neighbourhoods and Climate Change,Environmental Services,Supplies and Services,384700,Miscellaneous Expenses,06/04/2023,4119845-RES-04-2023-136,"6,589.60",EPIACUM HERITAGE LTD.
Children and Young Peoples Services,Head of Education and Skills,Supplies and Services,384199,Miscellaneous Expenses,06/04/2023,4119846-SI-3048,"2,534.40",EVOLUTION TRAINING & CONSULTANCY SERVICES LTD.
Neighbourhoods and Climate Change,Partnerships & Community Engagement Div.,Supplies and Services,384086,Miscellaneous Expenses,06/04/2023,4119854-VOUCHERKCBLAJ01-23,900.00,FRIENDS OF KELLOE PRIMARY SCHOOL.
Neighbourhoods and Climate Change,Partnerships & Community Engagement Div.,Supplies and Services,384086,Miscellaneous Expenses,06/04/2023,4119939-VOUCHERBATA06-23,999.00,OUSTON COMMUNITY ASSOCIATION.
Regeneration Economy and Growth,Economic Development Level C,Supplies and Services,384437,Miscellaneous Expenses,06/04/2023,4119940-F27702802/2,936.00,P & O FERRIES HOLDINGS LTD.
Children and Young Peoples Services,Head of Education and Skills,Supplies and Services,384302,Miscellaneous Expenses,06/04/2023,4119953-21020,720.00,ROCK UK ADVENTURE CENTRES LTD.
Neighbourhoods and Climate Change,Partnerships & Community Engagement Div.,Supplies and Services,384086,Miscellaneous Expenses,06/04/2023,4119957-VOUCHERBROD08-22,500.00,SEDGEFIELD COMMUNITY ASSOCIATION.
Children and Young Peoples Services,Head of Childrens Social Care,Third Party Payments,440046,Other third party payments E440,06/04/2023,4119937-02032023/2,"16,385.67",OIKOS RESIDENTIAL FAMILY CENTRES.
Children and Young Peoples Services,Head of Childrens Social Care,Third Party Payments,440046,Other third party payments E440,06/04/2023,4119937-28022023/3,"11,631.62",OIKOS RESIDENTIAL FAMILY CENTRES.
Children and Young Peoples Services,Head of Childrens Social Care,Third Party Payments,440046,Other third party payments E440,06/04/2023,4119802-23440,"18,331.50",CASTLE VIEW GROUP TRAINING.
Children and Young Peoples Services,Head of Childrens Social Care,Third Party Payments,440046,Other third party payments E440,06/04/2023,4119835-DURMCKDOM04A,"5,291.43",DRAGONFLY CHILDREN`S SERVICES LTD T/A CHRYSALIS ASSESSMENT CENTRE.
Dedicated Schools Grant BG0015,DSG High Needs Block,Third Party Payments,440080,Other third party payments E440,06/04/2023,4119871-RES-04-2023-174,"126,293.00",HOPE WOOD ACADEMY.
Children and Young Peoples Services,Head of Childrens Social Care,Third Party Payments,440046,Other third party payments E440,06/04/2023,4119906-30121390,"10,527.97",MAJOR RECRUITMENT LTD.
Children and Young Peoples Services,Head of Childrens Social Care,Third Party Payments,440046,Other third party payments E440,06/04/2023,4119906-30121720,"11,541.90",MAJOR RECRUITMENT LTD.
Adult and Health Services,Central/Other,Third Party Payments,440150,Other third party payments E440,06/04/2023,4119931-BCF/APRIL2023,"1,672,011.00",NHS NORTH EAST & NORTH CUMBRIA ICB.
Children and Young Peoples Services,Head of Childrens Social Care,Third Party Payments,440046,Other third party payments E440,06/04/2023,4119970-03903,903.00,STANDBY HEALTHCARE (NORTH WEST) LTD.
Children and Young Peoples Services,Head of Childrens Social Care,Third Party Payments,440046,Other third party payments E440,06/04/2023,4119970-03928,903.00,STANDBY HEALTHCARE (NORTH WEST) LTD.
Children and Young Peoples Services,Head of Childrens Social Care,Third Party Payments,440046,Other third party payments E440,06/04/2023,4119970-03952,774.00,STANDBY HEALTHCARE (NORTH WEST) LTD.
Children and Young Peoples Services,Head of Childrens Social Care,Third Party Payments,440046,Other third party payments E440,06/04/2023,4119970-03977,903.00,STANDBY HEALTHCARE (NORTH WEST) LTD.
Children and Young Peoples Services,Head of Childrens Social Care,Third Party Payments,440046,Other third party payments E440,06/04/2023,4119970-04001,903.00,STANDBY HEALTHCARE (NORTH WEST) LTD.
Regeneration Economy and Growth,Business Durham CL0850,Supplies and Services,340001,Postages E340,06/04/2023,4119925-RES-03-2023-696,"5,000.00",NEOPOST CREDIFON.
Regeneration Economy and Growth,Business Durham CL0850,Supplies and Services,340001,Postages E340,06/04/2023,4119925-RES-04-2023-134,"2,000.00",NEOPOST CREDIFON.
Adult and Health Services,Head of Adults,Third Party Payments,479102,Purchase of Care,06/04/2023,4119946-INV-0117,"1,032.50",POSITIVE CARE & SUPPORT LTD.
Adult and Health Services,Head of Adults,Third Party Payments,479102,Purchase of Care,06/04/2023,4119946-INV-0121,"5,860.31",POSITIVE CARE & SUPPORT LTD.
Adult and Health Services,Head of Adults,Third Party Payments,479102,Purchase of Care,06/04/2023,4119987-SS003,749.00,THE BARKARY BOARDING KENNELS.
Regeneration Economy and Growth,Corporate Property and Land,Third Party Payments,430100,Rendered by Private Contractors,06/04/2023,4119805-746,"14,053.39",CEILINGS DIRECT LTD.
Neighbourhoods and Climate Change,Highways,Third Party Payments,430127,Rendered by Private Contractors,06/04/2023,4119825-INV-0244,"4,905.00",D & L HOPPS.
Regeneration Economy and Growth,Transport and Contracted Services,Third Party Payments,430106,Rendered by Private Contractors,06/04/2023,4119850-PUBLICSERVICE19/3/23-31/03/23,"1,371.00",FERRYHILL VILLAGE TRAVEL.
Regeneration Economy and Growth,Corporate Property and Land,Third Party Payments,430100,Rendered by Private Contractors,06/04/2023,4119923-42448-SPENNYMOORLC,"52,453.00",NE & C WINDOWS & DOORS LTD.
Regeneration Economy and Growth,Corporate Property and Land,Third Party Payments,430100,Rendered by Private Contractors,06/04/2023,4119923-42625,"14,061.00",NE & C WINDOWS & DOORS LTD.
Regeneration Economy and Growth,Corporate Property and Land,Third Party Payments,430100,Rendered by Private Contractors,06/04/2023,4119923-42769,999.60,NE & C WINDOWS & DOORS LTD.
Regeneration Economy and Growth,Corporate Property and Land,Third Party Payments,430100,Rendered by Private Contractors,06/04/2023,4119923-42827,"45,190.00",NE & C WINDOWS & DOORS LTD.
Regeneration Economy and Growth,Transport and Contracted Services,Third Party Payments,430108,Rendered by Private Contractors,06/04/2023,4119928-1800011712215,"100,165.68",NEWCASTLE UPON TYNE CITY COUNCIL.
Regeneration Economy and Growth,Transport and Contracted Services,Third Party Payments,430108,Rendered by Private Contractors,06/04/2023,4119928-1800011712227,"6,454.25",NEWCASTLE UPON TYNE CITY COUNCIL.
Regeneration Economy and Growth,Transport and Contracted Services,Third Party Payments,430108,Rendered by Private Contractors,06/04/2023,4119928-1800011712239,"6,309.56",NEWCASTLE UPON TYNE CITY COUNCIL.
Regeneration Economy and Growth,Corporate Property and Land,Third Party Payments,430100,Rendered by Private Contractors,06/04/2023,4120009-58415,"40,314.44",WILLOWCRETE MANUFACTURING COMPANY LTD (MFG).
Neighbourhoods and Climate Change,Highways,Third Party Payments,430128,Rendered by Private Contractors,06/04/2023,4119876-C566,"4,704.00",REDACTED - PAYMENT TO INDIVIDUAL
Neighbourhoods and Climate Change,Highways,Third Party Payments,430128,Rendered by Private Contractors,06/04/2023,4119876-C567,"2,928.00",REDACTED - PAYMENT TO INDIVIDUAL
Neighbourhoods and Climate Change,Environmental Services,Premises,115125,Repairs to Grounds,06/04/2023,4119778-22937,"5,820.17",ARM PIPETEK LTD.
Neighbourhoods and Climate Change,Environmental Services,Transport,215005,Running Costs of Vehicles,06/04/2023,4120015-1132426,"17,043.00",YOUR NRG LTD.
Children and Young Peoples Services,Head of Childrens Social Care,Third Party Payments,486020,Service level agreements E486,06/04/2023,4120004-INV-5090BALANCE,"1,695.00",WE CARE RECRUITMENT SOLUTIONS LTD.
Children and Young Peoples Services,Head of Childrens Social Care,Third Party Payments,486020,Service level agreements E486,06/04/2023,4120004-INV-5840,"1,260.00",WE CARE RECRUITMENT SOLUTIONS LTD.
Children and Young Peoples Services,Head of Childrens Social Care,Third Party Payments,486020,Service level agreements E486,06/04/2023,4120004-INV-5841,"1,260.00",WE CARE RECRUITMENT SOLUTIONS LTD.
Children and Young Peoples Services,Head of Childrens Social Care,Third Party Payments,486020,Service level agreements E486,06/04/2023,4120004-INV-5849,720.00,WE CARE RECRUITMENT SOLUTIONS LTD.
Children and Young Peoples Services,Head of Childrens Social Care,Third Party Payments,486020,Service level agreements E486,06/04/2023,4120004-INV-5850,600.00,WE CARE RECRUITMENT SOLUTIONS LTD.
Children and Young Peoples Services,Head of Childrens Social Care,Third Party Payments,486020,Service level agreements E486,06/04/2023,4120004-INV-5856,600.00,WE CARE RECRUITMENT SOLUTIONS LTD.
Children and Young Peoples Services,Head of Childrens Social Care,Third Party Payments,486020,Service level agreements E486,06/04/2023,4120004-INV-5866,864.00,WE CARE RECRUITMENT SOLUTIONS LTD.
Children and Young Peoples Services,Head of Childrens Social Care,Third Party Payments,486020,Service level agreements E486,06/04/2023,4120004-INV-5874,720.00,WE CARE RECRUITMENT SOLUTIONS LTD.
Children and Young Peoples Services,Head of Childrens Social Care,Third Party Payments,486020,Service level agreements E486,06/04/2023,4120004-INV-5876,720.00,WE CARE RECRUITMENT SOLUTIONS LTD.
Children and Young Peoples Services,Head of Childrens Social Care,Third Party Payments,486020,Service level agreements E486,06/04/2023,4120004-INV-5886,600.00,WE CARE RECRUITMENT SOLUTIONS LTD.
Children and Young Peoples Services,Head of Childrens Social Care,Third Party Payments,486020,Service level agreements E486,06/04/2023,4120004-INV-5888,630.00,WE CARE RECRUITMENT SOLUTIONS LTD.
Children and Young Peoples Services,Head of Childrens Social Care,Third Party Payments,486020,Service level agreements E486,06/04/2023,4120004-INV-5915,600.00,WE CARE RECRUITMENT SOLUTIONS LTD.
Children and Young Peoples Services,Head of Childrens Social Care,Third Party Payments,486020,Service level agreements E486,06/04/2023,4120004-INV-5958,720.00,WE CARE RECRUITMENT SOLUTIONS LTD.
Children and Young Peoples Services,Head of Childrens Social Care,Third Party Payments,486020,Service level agreements E486,06/04/2023,4120004-INV-5976,"1,800.00",WE CARE RECRUITMENT SOLUTIONS LTD.
Children and Young Peoples Services,Head of Childrens Social Care,Third Party Payments,486020,Service level agreements E486,06/04/2023,4120004-INV-5978,"2,100.00",WE CARE RECRUITMENT SOLUTIONS LTD.
Children and Young Peoples Services,Head of Childrens Social Care,Third Party Payments,486020,Service level agreements E486,06/04/2023,4120004-INV-6000,600.00,WE CARE RECRUITMENT SOLUTIONS LTD.
Children and Young Peoples Services,Head of Childrens Social Care,Third Party Payments,486020,Service level agreements E486,06/04/2023,4120004-INV-6032,750.00,WE CARE RECRUITMENT SOLUTIONS LTD.
Children and Young Peoples Services,Head of Childrens Social Care,Third Party Payments,486020,Service level agreements E486,06/04/2023,4120004-INV-6069,"1,800.00",WE CARE RECRUITMENT SOLUTIONS LTD.
Children and Young Peoples Services,Head of Childrens Social Care,Third Party Payments,486020,Service level agreements E486,06/04/2023,4120004-INV-6071,"2,100.00",WE CARE RECRUITMENT SOLUTIONS LTD.
Regeneration Economy and Growth,Corporate Property and Land,Premises,108099,Service Repairs and Maintenance,06/04/2023,4119766-IN10796,"14,411.93",ACROL AIR CONDITIONING CO LTD.
Children and Young Peoples Services,Head of Early Help Inclusion & Vulnerable Children.,Premises,108135,Service Repairs and Maintenance,06/04/2023,4119779-384,"3,826.00",ARMSTRONG DECORATORS.
Children and Young Peoples Services,Head of Early Help Inclusion & Vulnerable Children.,Premises,108099,Service Repairs and Maintenance,06/04/2023,4119788-250223,"1,164.00",BELLWOOD REWINDS LTD.
Regeneration Economy and Growth,Corporate Property and Land,Premises,108099,Service Repairs and Maintenance,06/04/2023,4119869-7081016076,"2,052.28",HONEYWELL NOVAR SYSTEMS LTD.
Adult and Health Services,Public Health CC0450,Premises,108099,Service Repairs and Maintenance,06/04/2023,4119869-7081016319,"1,065.55",HONEYWELL NOVAR SYSTEMS LTD.
Regeneration Economy and Growth,Corporate Property and Land,Premises,108099,Service Repairs and Maintenance,06/04/2023,4120002-2726,"1,351.20",VENTILATION HYGIENE SPECIALISTS (VHS) LTD.
Regeneration Economy and Growth,Corporate Property and Land,Premises,108099,Service Repairs and Maintenance,06/04/2023,4120002-2729,"1,238.40",VENTILATION HYGIENE SPECIALISTS (VHS) LTD.
Resources BK0010,Legal & Democratic Services,Supplies and Services,338057,Services,06/04/2023,4119792-2226,894.00,BIOFORTUNA LTD.
Regeneration Economy and Growth,Economic Development Level C,Supplies and Services,338066,Services,06/04/2023,4119793-SIN041965,"36,171.60",BLOOM PROCUREMENT SERVICES LTD (FORMERLY NEPRO LTD).
Adult and Health Services,Head of Adults,Supplies and Services,338364,Services,06/04/2023,4119799-89840,866.96,CARE ABILITY HEALTHCARE LTD.
Adult and Health Services,Head of Adults,Supplies and Services,338364,Services,06/04/2023,4119799-90022,"1,620.62",CARE ABILITY HEALTHCARE LTD.
Adult and Health Services,Head of Adults,Supplies and Services,338364,Services,06/04/2023,4119799-90023,632.64,CARE ABILITY HEALTHCARE LTD.
Adult and Health Services,Head of Adults,Supplies and Services,338364,Services,06/04/2023,4119799-90024,"1,404.00",CARE ABILITY HEALTHCARE LTD.
Regeneration Economy and Growth,Culture Sport and Tourism,Supplies and Services,338047,Services,06/04/2023,4119815-10599,"2,100.00",COMEDY STORE MANAGEMENT T/A THE COMEDY STORE LTD.
Children and Young Peoples Services,Head of Childrens Social Care,Supplies and Services,338044,Services,06/04/2023,4119852-98314,820.88,FORENSIC TESTING SERVICE LTD.
Adult and Health Services,Head of Adults,Supplies and Services,338365,Services,06/04/2023,4119902-INV-43938,"1,297.20",LOCKWISE LTD.
Children and Young Peoples Services,Head of Childrens Social Care,Supplies and Services,338044,Services,06/04/2023,4119910-34846,"2,862.00",MEDICAL EXPERT WITNESS ALLIANCE LLP (MEWA).
Resources BK0010,Legal & Democratic Services,Supplies and Services,338025,Services,06/04/2023,4119921-14032023,"1,900.00",N ALDERSON FUNERAL DIRECTOR LTD.
Regeneration Economy and Growth,Culture Sport and Tourism,Supplies and Services,338047,Services,06/04/2023,4119935-0191,"3,420.00",NORTH EXHIBITION SERVICES LTD.
Children and Young Peoples Services,Head of Childrens Social Care,Supplies and Services,338045,Services,06/04/2023,4119952-2006,"2,108.00",ROC SOLID LTD.
Adult and Health Services,Head of Adults,Supplies and Services,338365,Services,06/04/2023,4119989-CD970038203,"4,303.92",THE HELPING HAND CO (LEDBURY) LTD.
Resources BK0010,Legal & Democratic Services,Supplies and Services,338042,Services,06/04/2023,4119994-301438/INVGR570,"1,236.00",TRINITY CHAMBERS.
Children and Young Peoples Services,Head of Childrens Social Care,Supplies and Services,338044,Services,06/04/2023,4119834-SI-1659,"3,367.92",REDACTED - PAYMENT TO INDIVIDUAL
Children and Young Peoples Services,Childrens Services Operational Support,Intangible Assets,917001,Software capitalised licence fees,06/04/2023,4119783-UKINV-1142,"2,160.00",AZEUS UK LTD.
Children and Young Peoples Services,Childrens Services Operational Support,Intangible Assets,917001,Software capitalised licence fees,06/04/2023,4119783-UKINV-1143,"3,240.00",AZEUS UK LTD.
Neighbourhoods and Climate Change,Highways,Stock A926,926004,Stock,06/04/2023,4119877-400047840,"2,400.55",ICL UK SALES LTD (CLEVELAND POTASH LTD).
Neighbourhoods and Climate Change,Highways,Stock A926,926900,Stock in hand-Inventory system,06/04/2023,4119809-0000493917,624.00,CID PRODUCTS LLP.
Neighbourhoods and Climate Change,Highways,Stock A926,926900,Stock in hand-Inventory system,06/04/2023,4119941-XL298692,987.00,PARK ELECTRICAL DISTRIBUTORS LTD.
Resources BK0010,Corporate Finance & Commercial Services,Supplies and Services,372009,Subscriptions E372,06/04/2023,4119787-9000308959,"3,000.00",BARNSLEY METROPOLITAN BOROUGH COUNCIL.
Dedicated Schools Grant BG0015,DSG High Needs Block,Central Support and Other Recharges,689996,Unclassified E690,06/04/2023,4119871-RES-04-2023-175,"179,496.00",HOPE WOOD ACADEMY.
Children and Young Peoples Services,Head of Education and Skills,Supplies and Services,336005,Advertising E336,11/04/2023,4120039-93653,979.20,ALLWAG PROMOTIONS LTD.
Regeneration Economy and Growth,Planning & Housing,Supplies and Services,336005,Advertising E336,11/04/2023,4120482-42334800,674.00,NEWSQUEST (YORKSHIRE & NORTH EAST) LTD.
Children and Young Peoples Services,Head of Childrens Social Care,Supplies and Services,336005,Advertising E336,11/04/2023,4120561-S5408,"1,200.00",ROUND SUN LTD T/A PRIMARY TIMES NORTH EAST.
Neighbourhoods and Climate Change,Highways,Fees,901004,Capital - Detailed Design,11/04/2023,4120549-SIA241641,635.14,REACH PUBLISHING SERVICES LTD T/A REACH PLC.
Neighbourhoods and Climate Change,Highways,Construction work A908,908112,Capital - Drainage,11/04/2023,4120500-915420309,"71,485.20",NORTHUMBRIAN WATER LTD.
Neighbourhoods and Climate Change,Highways,Construction work A908,908112,Capital - Drainage,11/04/2023,4120500-915420317,"81,502.80",NORTHUMBRIAN WATER LTD.
Regeneration Economy and Growth,Transport and Contracted Services,Supplies and Services,328041,Clothing uniforms and laundry E328,11/04/2023,4120317-102120,827.64,KING SCIENTIFIC.
Children and Young Peoples Services,Head of Childrens Social Care,Supplies and Services,342053,Computers and Communications,11/04/2023,4120097-1070897,616.88,BYTES SOFTWARE SERVICES LTD.
Regeneration Economy and Growth,Transport and Contracted Services,Supplies and Services,342215,Computers and Communications,11/04/2023,4120213-INV30979,630.00,FERROGRAPH LTD.
Regeneration Economy and Growth,Transport and Contracted Services,Supplies and Services,342215,Computers and Communications,11/04/2023,4120213-INV30983,"1,374.00",FERROGRAPH LTD.
Regeneration Economy and Growth,Transport and Contracted Services,Supplies and Services,342051,Computers and Communications,11/04/2023,4120224-220221926,"1,685.10",GATESHEAD COUNCIL.
Children and Young Peoples Services,Childrens Services Operational Support,Supplies and Services,342053,Computers and Communications,11/04/2023,4120516-18723,"1,742.40",OXFORD COMPUTER CONSULTANTS LTD.
Neighbourhoods and Climate Change,Environmental Services,Supplies and Services,342215,Computers and Communications,11/04/2023,4120634-55144,"5,028.47",UK TELEMATICS LTD.
Neighbourhoods and Climate Change,Environmental Services,Supplies and Services,342215,Computers and Communications,11/04/2023,4120634-55168,"5,028.47",UK TELEMATICS LTD.
Children and Young Peoples Services,Head of Childrens Social Care - Excluded Services,Supplies and Services,352001,Conference Expenses,11/04/2023,4120309-AA-170323,500.00,REDACTED - PAYMENT TO INDIVIDUAL
Neighbourhoods and Climate Change,Highways,Construction work A908,908105,Construction work,11/04/2023,4120247-73259,"125,000.00",HIGHWAYS ENGLAND COMPANY LTD.
Regeneration Economy and Growth,Corporate Property and Land,Construction work A908,908105,Construction work,11/04/2023,4120055-106685722,"2,256.00",APEX ACOUSTICS LTD.
Neighbourhoods and Climate Change,Environmental Services,Construction work A908,908105,Construction work,11/04/2023,4120272-231,"2,158.49",IVEGATE LTD.
Regeneration Economy and Growth,Transport and Contracted Services,Construction work A908,908105,Construction work,11/04/2023,4120277-27627,"1,606.28",JACK COUPE & SONS LTD T/A COUPE LINE.
Neighbourhoods and Climate Change,Environmental Services,Fees,901002,Professional fees 901002,11/04/2023,4120078-43323,900.00,BGP CONSULTING LTD T/A BILLINGHURST GEORGE & PARTNERS.
Neighbourhoods and Climate Change,Environmental Services,Fees,901002,Professional fees 901002,11/04/2023,4120164-64024844,"3,840.00",DESCO (DESIGN & CONSULTANCY) LTD.
Neighbourhoods and Climate Change,Environmental Services,Fees,901002,Professional fees 901002,11/04/2023,4120164-64025214,"3,840.00",DESCO (DESIGN & CONSULTANCY) LTD.
Regeneration Economy and Growth,Transport and Contracted Services,Fees,901002,Professional fees 901002,11/04/2023,4120646-NT66669,840.00,WARDELL ARMSTRONG LLP.
Children and Young Peoples Services,Head of Childrens Social Care,Transport,230005,Contract Hire,11/04/2023,4120016-22344,"1,908.00",24/7 TAXI SERVICES (PETERLEE) LTD.
Children and Young Peoples Services,Head of Childrens Social Care,Transport,230005,Contract Hire,11/04/2023,4120144-115411,604.20,CROFT BUSINESS SERVICES LTD T/A CROFT TRAVEL.
Children and Young Peoples Services,Head of Childrens Social Care,Transport,230005,Contract Hire,11/04/2023,4120144-115415,"1,059.84",CROFT BUSINESS SERVICES LTD T/A CROFT TRAVEL.
Children and Young Peoples Services,Head of Childrens Social Care,Transport,230005,Contract Hire,11/04/2023,4120144-115416,"1,271.42",CROFT BUSINESS SERVICES LTD T/A CROFT TRAVEL.
Children and Young Peoples Services,Head of Childrens Social Care,Transport,230005,Contract Hire,11/04/2023,4120144-115452,604.20,CROFT BUSINESS SERVICES LTD T/A CROFT TRAVEL.
Children and Young Peoples Services,Head of Childrens Social Care,Transport,230005,Contract Hire,11/04/2023,4120144-115455,"1,059.84",CROFT BUSINESS SERVICES LTD T/A CROFT TRAVEL.
Children and Young Peoples Services,Head of Childrens Social Care,Transport,230005,Contract Hire,11/04/2023,4120144-115456,"1,112.50",CROFT BUSINESS SERVICES LTD T/A CROFT TRAVEL.
Children and Young Peoples Services,Head of Childrens Social Care,Transport,230005,Contract Hire,11/04/2023,4120144-115457,794.64,CROFT BUSINESS SERVICES LTD T/A CROFT TRAVEL.
Children and Young Peoples Services,Head of Childrens Social Care,Transport,230005,Contract Hire,11/04/2023,4120144-115492,604.20,CROFT BUSINESS SERVICES LTD T/A CROFT TRAVEL.
Children and Young Peoples Services,Head of Childrens Social Care,Transport,230005,Contract Hire,11/04/2023,4120144-115496,"1,059.84",CROFT BUSINESS SERVICES LTD T/A CROFT TRAVEL.
Children and Young Peoples Services,Head of Childrens Social Care,Transport,230005,Contract Hire,11/04/2023,4120144-115498,794.64,CROFT BUSINESS SERVICES LTD T/A CROFT TRAVEL.
Children and Young Peoples Services,Head of Childrens Social Care,Transport,230005,Contract Hire,11/04/2023,4120167-DH2308D,926.00,DH2 CABS.
Children and Young Peoples Services,Head of Childrens Social Care,Transport,230005,Contract Hire,11/04/2023,4120167-DH2308L,616.00,DH2 CABS.
Children and Young Peoples Services,Head of Childrens Social Care,Transport,230005,Contract Hire,11/04/2023,4120167-DH2310B,500.00,DH2 CABS.
Children and Young Peoples Services,Head of Childrens Social Care,Transport,230005,Contract Hire,11/04/2023,4120167-DH2310D,738.00,DH2 CABS.
Children and Young Peoples Services,Head of Childrens Social Care,Transport,230005,Contract Hire,11/04/2023,4120167-DH2310P,682.00,DH2 CABS.
Children and Young Peoples Services,Head of Childrens Social Care,Transport,230005,Contract Hire,11/04/2023,4120167-DH2310S,706.00,DH2 CABS.
Children and Young Peoples Services,Head of Childrens Social Care,Transport,230005,Contract Hire,11/04/2023,4120167-DH2310V,"1,160.00",DH2 CABS.
Children and Young Peoples Services,Head of Childrens Social Care,Transport,230005,Contract Hire,11/04/2023,4120167-DH2311C,757.00,DH2 CABS.
Children and Young Peoples Services,Head of Childrens Social Care,Transport,230005,Contract Hire,11/04/2023,4120167-DH2311O,891.00,DH2 CABS.
Children and Young Peoples Services,Head of Childrens Social Care,Transport,230005,Contract Hire,11/04/2023,4120167-DH2311R,763.00,DH2 CABS.
Children and Young Peoples Services,Head of Childrens Social Care,Transport,230005,Contract Hire,11/04/2023,4120167-DH2311V,"1,160.00",DH2 CABS.
Children and Young Peoples Services,Head of Childrens Social Care,Transport,230005,Contract Hire,11/04/2023,4120167-DH2311ZF,690.00,DH2 CABS.
Children and Young Peoples Services,Head of Childrens Social Care,Transport,230005,Contract Hire,11/04/2023,4120167-DH2311ZF.,519.00,DH2 CABS.
Children and Young Peoples Services,Head of Childrens Social Care,Transport,230005,Contract Hire,11/04/2023,4120596-JAN48/STL23,757.20,STL CABS LTD.
Children and Young Peoples Services,Head of Childrens Social Care,Transport,230005,Contract Hire,11/04/2023,4120596-JAN59/STL23,640.80,STL CABS LTD.
Children and Young Peoples Services,Head of Childrens Social Care,Transport,230005,Contract Hire,11/04/2023,4120596-JAN98/STL23,744.00,STL CABS LTD.
Children and Young Peoples Services,Head of Childrens Social Care,Transport,230005,Contract Hire,11/04/2023,4120596-JAN99/STL23,854.40,STL CABS LTD.
Children and Young Peoples Services,Head of Childrens Social Care,Transport,230005,Contract Hire,11/04/2023,4120596-MAR11/STL23,"1,068.00",STL CABS LTD.
Children and Young Peoples Services,Head of Childrens Social Care,Transport,230005,Contract Hire,11/04/2023,4120596-MAR13/STL23,708.00,STL CABS LTD.
Children and Young Peoples Services,Head of Childrens Social Care,Transport,230005,Contract Hire,11/04/2023,4120596-MAR16/STL23,708.00,STL CABS LTD.
Children and Young Peoples Services,Head of Childrens Social Care,Transport,230005,Contract Hire,11/04/2023,4120596-MAR18/STL23,714.00,STL CABS LTD.
Children and Young Peoples Services,Head of Childrens Social Care,Transport,230005,Contract Hire,11/04/2023,4120596-MAR19/STL23,"1,268.40",STL CABS LTD.
Children and Young Peoples Services,Head of Childrens Social Care,Transport,230005,Contract Hire,11/04/2023,4120596-MAR2/STL23,"1,116.00",STL CABS LTD.
Children and Young Peoples Services,Head of Childrens Social Care,Transport,230005,Contract Hire,11/04/2023,4120596-MAR21/STL23,669.60,STL CABS LTD.
Children and Young Peoples Services,Head of Childrens Social Care,Transport,230005,Contract Hire,11/04/2023,4120596-MAR22/STL23,705.60,STL CABS LTD.
Children and Young Peoples Services,Head of Childrens Social Care,Transport,230005,Contract Hire,11/04/2023,4120596-MAR29/STL23,"1,310.40",STL CABS LTD.
Children and Young Peoples Services,Head of Childrens Social Care,Transport,230005,Contract Hire,11/04/2023,4120596-MAR4/STL23,669.60,STL CABS LTD.
Children and Young Peoples Services,Head of Childrens Social Care,Transport,230005,Contract Hire,11/04/2023,4120596-MAR42/STL23,637.20,STL CABS LTD.
Children and Young Peoples Services,Head of Childrens Social Care,Transport,230005,Contract Hire,11/04/2023,4120596-MAR43/STL23,604.80,STL CABS LTD.
Children and Young Peoples Services,Head of Childrens Social Care,Transport,230005,Contract Hire,11/04/2023,4120596-MAR54/STL23,612.00,STL CABS LTD.
Children and Young Peoples Services,Head of Childrens Social Care,Transport,230005,Contract Hire,11/04/2023,4120596-MAR57/STL23,669.60,STL CABS LTD.
Children and Young Peoples Services,Head of Childrens Social Care,Transport,230005,Contract Hire,11/04/2023,4120596-MAR62/STL23,680.40,STL CABS LTD.
Children and Young Peoples Services,Head of Childrens Social Care,Transport,230005,Contract Hire,11/04/2023,4120596-MAR9/STL23,691.20,STL CABS LTD.
Children and Young Peoples Services,Head of Childrens Social Care,Transport,230005,Contract Hire,11/04/2023,4120596-SEP71/STL23,613.20,STL CABS LTD.
Adult and Health Services,Public Health CC0450,Third Party Payments,460803,Contract Payments,11/04/2023,4120225-7610022072,"5,245.50",GATESHEAD HEALTH NHS FOUNDATION TRUST.
Adult and Health Services,Public Health CC0450,Third Party Payments,460803,Contract Payments,11/04/2023,4120257-SI-HK-000789,"28,478.90",HUMANKIND CHARITY.
Regeneration Economy and Growth,Transport and Contracted Services,Third Party Payments,460151,Contract Payments,11/04/2023,4120277-27625,835.51,JACK COUPE & SONS LTD T/A COUPE LINE.
Adult and Health Services,Public Health CC0450,Third Party Payments,460803,Contract Payments,11/04/2023,4120587-D0044564,"107,250.00",SOUTH TEES HOSPITALS NHS FOUNDATION TRUST.
Adult and Health Services,Public Health CC0450,Third Party Payments,460803,Contract Payments,11/04/2023,4120587-D0045262,"10,491.00",SOUTH TEES HOSPITALS NHS FOUNDATION TRUST.
Adult and Health Services,Public Health CC0450,Third Party Payments,460803,Contract Payments,11/04/2023,4120601-2803088696,"3,552.00",SUNDERLAND CITY COUNCIL.
Adult and Health Services,Public Health CC0450,Third Party Payments,460803,Contract Payments,11/04/2023,4120601-2803088697,"8,288.00",SUNDERLAND CITY COUNCIL.
Adult and Health Services,Public Health CC0450,Third Party Payments,460803,Contract Payments,11/04/2023,4120638-10850256,"48,000.00",UNIVERSITY OF TEESSIDE.
Neighbourhoods and Climate Change,Environmental Services,Supplies and Services,304999,Equipment and Materials,11/04/2023,4120326-7778N-DCC-18320-230315-0,"5,940.00",LEE FOR SERVICE LTD T/A SIROMER TRACTORS.
Resources BK0010,Legal & Democratic Services,Supplies and Services,304259,Equipment and Materials,11/04/2023,4120620-SI-187017,"1,000.88",TMR EXECUTIVE AGENCY LTD.
Resources BK0010,Legal & Democratic Services,Supplies and Services,304259,Equipment and Materials,11/04/2023,4120620-SI-187018,"1,050.92",TMR EXECUTIVE AGENCY LTD.
Resources BK0010,Legal & Democratic Services,Supplies and Services,304259,Equipment and Materials,11/04/2023,4120620-SI-187019,"1,000.88",TMR EXECUTIVE AGENCY LTD.
Resources BK0010,Legal & Democratic Services,Supplies and Services,304259,Equipment and Materials,11/04/2023,4120620-SI-187020,"1,050.92",TMR EXECUTIVE AGENCY LTD.
Regeneration Economy and Growth,Culture Sport and Tourism,Supplies and Services,304259,Equipment and Materials,11/04/2023,4120636-294721,864.00,UNIVERSAL SERVICES (SPORTS EQUIPMENT) LTD.
Regeneration Economy and Growth,Culture Sport and Tourism,Supplies and Services,304259,Equipment and Materials,11/04/2023,4120019-90153671,"3,858.47",ABACUS LIGHTING LTD.
Neighbourhoods and Climate Change,Environmental Services,Supplies and Services,304221,Equipment and Materials,11/04/2023,4120067-99400977,736.95,BALL COLEGRAVE LTD.
Neighbourhoods and Climate Change,Environmental Services,Supplies and Services,304221,Equipment and Materials,11/04/2023,4120067-99400979,942.38,BALL COLEGRAVE LTD.
Neighbourhoods and Climate Change,Environmental Services,Supplies and Services,304221,Equipment and Materials,11/04/2023,4120067-99400980,686.16,BALL COLEGRAVE LTD.
Neighbourhoods and Climate Change,Highways,Supplies and Services,304221,Equipment and Materials,11/04/2023,4120087-21160258,619.29,BREEDON TRADING LTD.
Resources BK0010,HR & Employee Services,Supplies and Services,304040,Equipment and Materials,11/04/2023,4120120-INV-71868-T5G1BO,"6,600.00",CHARTERED INSTITUTE OF PAYROLL PROFESSIONALS (CIPP).
Regeneration Economy and Growth,Corporate Property and Land,Supplies and Services,304221,Equipment and Materials,11/04/2023,4120127-DRM/259583,"2,289.60",CITY ELECTRICAL FACTORS LTD.
Regeneration Economy and Growth,Corporate Property and Land,Supplies and Services,304221,Equipment and Materials,11/04/2023,4120128-ABT611,683.18,CITY PLUMBING SUPPLIES HOLDINGS LTD.
Neighbourhoods and Climate Change,Environmental Services,Supplies and Services,304221,Equipment and Materials,11/04/2023,4120155-189413,"6,253.20",DAVID OGILVIE ENGINEERING LTD.
Regeneration Economy and Growth,Corporate Property and Land,Supplies and Services,304221,Equipment and Materials,11/04/2023,4120190-059-316002,"1,080.07",EDMUNDSON ELECTRICAL LTD.
Regeneration Economy and Growth,Corporate Property and Land,Supplies and Services,304221,Equipment and Materials,11/04/2023,4120190-059-316067,"1,434.94",EDMUNDSON ELECTRICAL LTD.
Neighbourhoods and Climate Change,Highways,Supplies and Services,304221,Equipment and Materials,11/04/2023,4120235-SI859567,943.06,GLASDON UK LTD.
Neighbourhoods and Climate Change,Highways,Supplies and Services,304221,Equipment and Materials,11/04/2023,4120235-SI859593,841.69,GLASDON UK LTD.
Neighbourhoods and Climate Change,Environmental Services,Supplies and Services,304259,Equipment and Materials,11/04/2023,4120236-1504,"3,413.16",GOTT TECHNICAL SERVICES LTD.
Resources BK0010,Digital Services,Supplies and Services,304303,Equipment and Materials,11/04/2023,4120239-INV0192520,"4,444.06",GVAV LTD.
Neighbourhoods and Climate Change,Environmental Services,Supplies and Services,304259,Equipment and Materials,11/04/2023,4120258-65638,"1,236.00",HYDRAULIC TECHNICAL SERVICES (NORTH EAST) LTD.
Children and Young Peoples Services,Head of Education and Skills,Supplies and Services,304259,Equipment and Materials,11/04/2023,4120285-61715,"2,047.20",JAX FIRST AID.
Neighbourhoods and Climate Change,Environmental Services,Supplies and Services,304259,Equipment and Materials,11/04/2023,4120286-52979,609.60,JBL SERVICES LTD.
Neighbourhoods and Climate Change,Highways,Supplies and Services,304221,Equipment and Materials,11/04/2023,4120300-0107/00037489,705.60,JT DOVE LTD.
Neighbourhoods and Climate Change,Highways,Supplies and Services,304221,Equipment and Materials,11/04/2023,4120300-0113/00043458,731.30,JT DOVE LTD.
Regeneration Economy and Growth,Corporate Property and Land,Supplies and Services,304221,Equipment and Materials,11/04/2023,4120300-0113/00043506,"1,412.57",JT DOVE LTD.
Regeneration Economy and Growth,Corporate Property and Land,Supplies and Services,304221,Equipment and Materials,11/04/2023,4120300-0120/00033464,792.00,JT DOVE LTD.
Regeneration Economy and Growth,Corporate Property and Land,Supplies and Services,304221,Equipment and Materials,11/04/2023,4120329-103020,"2,567.40",LEISURETEQ LTD.
Regeneration Economy and Growth,Corporate Property and Land,Supplies and Services,304221,Equipment and Materials,11/04/2023,4120333-INV-6573606,836.89,LINDAB LTD.
Regeneration Economy and Growth,Corporate Property and Land,Supplies and Services,304221,Equipment and Materials,11/04/2023,4120337-5689350,"5,958.11",LONDON GENERAL SALES LTD.
Neighbourhoods and Climate Change,Highways,Supplies and Services,304221,Equipment and Materials,11/04/2023,4120428-0045/45046909,"3,957.60",MKM BUILDING SUPPLIES LTD.
Neighbourhoods and Climate Change,Environmental Services,Supplies and Services,304221,Equipment and Materials,11/04/2023,4120480-065818,"1,486.50",NEW ROW FARM NURSERIES.
